Workbook

Sheet Global Info
A1: Bar No. | B1: Beats per bar | D1: Section | E1: Subsection | F1: Bar
A2: 1 | B2: 4 | D2: Exposition | E2: I-complex | F2: 1
A3: 822 | B3: 4 | E3: Dissolution | F3: 16
E4: Chorale | F4: 49 | I4: To hide the graph pane:
E5: Mobilization | F5: 67
E6: P | F6: 114
E7: TR | F7: 139
E8: S1 | F8: 191
E9: S2 | F9: 205
D10: Development | E10: I-complex | F10: 229
E11: Dissolution/S1 | F11: 237
E12: S2 | F12: 288
E13: Hammer-blow | F13: 336
E14: Utopian Vision I | F14: 364 | H14: To show subgraphs:
E15: March | F15: 397
E16: Utopian Vision II | F16: 458
E17: Hammer-blow | F17: 479
D18: Recapitulation | E18: I-complex | F18: 520
E19: Dissolution | F19: 537
E20: S1 | F20: 575
E21: Retrans | F21: 612
E22: P | F22: 642
E23: TR/S1 | F23: 670
E24: Utopian Vision III | F24: 728
D25: Coda | E25: I-complex | F25: 773
E26: Epilogue | F26: 790

Sheet Segments
A1: Label | B1: Parents | C1: Successors | D1: Bar | E1: [Pitches]-[Time-points]
A2: 003|C5 | D2: 3 | E2: C5 | F2: C6 | G2: - | H2: 0 | I2: 2 | J2: 5
A3: 004|B5 | D3: 4 | E3: B5 | F3: C6 | G3: D6 | H3: - | I3: 1 | J3: 2 | K3: 3 | L3: 4
A4: 005|Ab6 | D4: 5 | E4: Ab6 | F4: Gb6 | G4: Eb6 | H4: C6 | I4: Bb5 | J4: Ab5 | K4: - | L4: 2 | M4: 5 | N4: 6 | O4: 7 | P4: 8 | Q4: 9 | R4: 10
A5: 005|Eb6 | C5: 005|Ab6 | D5: 5 | E5: Eb6 | F5: F6 | G5: Ab6 | H5: - | I5: 0 | J5: 1.5 | K5: 2 | L5: 5
A6: 007|F6 | B6: 005|Ab6 | C6: 009|A4 | D6: 7 | E6: F6 | F6: Eb6 | G6: C6 | H6: Ab5 | I6: Eb5 | J6: C5 | K6: - | L6: 2 | M6: 3 | N6: 4 | O6: 5 | P6: 6 | Q6: 7 | R6: 8
A7: 009|A2 | D7: 9 | E7: A2 | F7: A2 | G7: A2 | H7: A2 | I7: A2 | J7: A2 | K7: - | L7: 0 | M7: 2 | N7: 3.75 | O7: 4 | P7: 5 | Q7: 6 | R7: 7.75
A8: 009|A4 | B8: 005|Eb6 | C8: 009|D5 | D8: 9 | E8: A4 | F8: B4 | G8: D5 | H8: - | I8: 0 | J8: 1.5 | K8: 2 | L8: 5
A9: 009|C#5 | D9: 9 | E9: C#5 | F9: C5 | G9: - | H9: 0 | I9: 8 | J9: 16
A10: 009|D5 | B10: 005|Ab6 | C10: 011|D#4 | D10: 9 | E10: D5 | F10: C5 | G10: A4 | H10: F4 | I10: D#4 | J10: - | K10: 2 | L10: 5 | M10: 6 | N10: 7 | O10: 8 | P10: 9.5
A11: 010|A2 | B11: 009|A2 | D11: 10 | E11: A2 | F11: A2 | G11: A2 | H11: A2 | I11: - | J11: 3.75 | K11: 4 | L11: 5 | M11: 6 | N11: 7.75
A12: 011|A2 | B12: 010|A2 | D12: 11 | E12: A2 | F12: A2 | G12: A2 | H12: A2 | I12: A2 | J12: A2 | K12: A2 | L12: A2 | M12: - | N12: 3.75 | O12: 4 | P12: 5.75 | Q12: 6 | R12: 7.75 | S12: 8 | T12: 11.75 | U12: 12 | V12: 13
A13: 011|B4 | B13: 007|F6 | C13: 013|C3 | D13: 11 | E13: B4 | F13: A4 | G13: E4 | H13: C4 | I13: A3 | J13: F3 | K13: C3 | L13: - | M13: 2 | N13: 3 | O13: 4 | P13: 5 | Q13: 6 | R13: 7 | S13: 8 | T13: 10
A14: 011|D#4 | B14: 009|A4 | C14: 011|B4 | D14: 11 | E14: D#4 | F14: E4 | G14: B4 | H14: - | I14: 0 | J14: 1.5 | K14: 2 | L14: 3
A15: 013|C3 | B15: 011|B4 | C15: 016|A1 | D15: 13 | E15: C3 | F15: A2 | G15: E2 | H15: C2 | I15: A1 | J15: - | K15: 0 | L15: 2 | M15: 4 | N15: 8 | O15: 12 | P15: 14
A16: 016|A1 | B16: 003|C5 | D16: 16 | E16: A1 | F16: A2 | G16: - | H16: 0 | I16: 2 | J16: 4
A17: 017|B2 | B17: 005|Eb6 | D17: 17 | E17: B2 | F17: C3 | G17: A2 | H17: - | I17: 0 | J17: 0.75 | K17: 1 | L17: 4
A18: 018|B2(1) | B18: 017|B2 | D18: 18 | E18: B2 | F18: C3 | G18: A2 | H18: - | I18: 0 | J18: 0.75 | K18: 1 | L18: 2
A19: 018|B2(2) | B19: 017|B2 | D19: 18 | E19: B2 | F19: C3 | G19: A2 | H19: - | I19: 2 | J19: 2.75 | K19: 3 | L19: 4
A20: 019|B2 | B20: 017|B2 | D20: 19 | E20: B2 | F20: C3 | G20: A2 | H20: - | I20: 0 | J20: 0.75 | K20: 1 | L20: 4
A21: 019|D#3 | D21: 19 | E21: D#3 | F21: E3 | G21: A3 | H21: C4 | I21: F#4 | J21: E4 | K21: - | L21: 3.5 | M21: 3.625 | N21: 3.75 | O21: 3.875 | P21: 4 | Q21: 8 | R21: 12
A22: 021|A2 | B22: 017|B2 | D22: 21 | E22: A2 | F22: B2 | G22: B2 | H22: C3 | I22: A2 | J22: - | K22: 3 | L22: 3.75 | M22: 4 | N22: 4.75 | O22: 5 | P22: 8
A23: 022|D#3 | B23: 019|D#3 | D23: 22 | E23: D#3 | F23: E3 | G23: A3 | H23: C4 | I23: A4 | J23: G#4 | K23: - | L23: 3.5 | M23: 3.625 | N23: 3.75 | O23: 3.875 | P23: 4 | Q23: 8 | R23: 12
A24: 024|B2 | B24: 021|A2 | D24: 24 | E24: B2 | F24: C3 | G24: C3 | H24: D3 | I24: B2 | J24: - | K24: 3 | L24: 3.75 | M24: 4 | N24: 4.75 | O24: 5 | P24: 8
A25: 025|G#4 | B25: 022|D#3 | C25: 026|G#4 | D25: 25 | E25: G#4 | F25: A4 | G25: F4 | H25: D4 | I25: A3 | J25: - | K25: 3.5 | L25: 3.625 | M25: 3.75 | N25: 3.875 | O25: 4 | P25: 6
A26: 026|C3(1) | B26: 017|B2 | D26: 26 | E26: C3 | F26: D3 | G26: B2 | H26: - | I26: 0 | J26: 0.75 | K26: 1 | L26: 2
A27: 026|C3(2) | B27: 017|B2 | D27: 26 | E27: C3 | F27: D3 | G27: B2 | H27: - | I27: 2 | J27: 2.75 | K27: 3 | L27: 4
A28: 026|G#4 | B28: 025|G#4 | D28: 26 | E28: G#4 | F28: A4 | G28: F4 | H28: D4 | I28: A3 | J28: - | K28: 3 | L28: 3.125 | M28: 3.25 | N28: 3.375 | O28: 3.5 | P28: 13
A29: 027|A1 | B29: 021|A2 | D29: 27 | E29: A1 | F29: B1 | G29: B1 | H29: A1 | I29: - | J29: 3 | K29: 3.75 | L29: 4 | M29: 8 | N29: 16
A30: 027|C3 | B30: 017|B2 | D30: 27 | E30: C3 | F30: D3 | G30: B2 | H30: - | I30: 0 | J30: 0.75 | K30: 1 | L30: 5
A31: 030|C3 | B31: 027|A1 | D31: 30 | E31: C3 | F31: D3 | G31: D3 | H31: - | I31: 3 | J31: 3.75 | K31: 4 | L31: 7
A32: 031|C3 | D32: 31 | E32: C3 | F32: E3 | G32: A3 | H32: C4 | I32: - | J32: 3 | K32: =-0.666666666666667+4 -> 3.333333333 | L32: =-0.333333333333333+4 -> 3.666666667 | M32: 4 | N32: 7
A33: 032|A3 | B33: 021|A2 | D33: 32 | E33: A3 | F33: D4 | G33: E4 | H33: D4 | I33: - | J33: 3 | K33: 4 | L33: 4.75 | M33: 5 | N33: 6.5
A34: 033|B3 | B34: 021|A2 | D34: 33 | E34: B3 | F34: C4 | G34: D4 | H34: E4 | I34: F4 | J34: D4 | K34: - | L34: 2.5 | M34: 3 | N34: 3.5 | O34: 4 | P34: 6 | Q34: 8 | R34: 10.5
A35: 034|B2 | D35: 34 | E35: B2 | F35: E3 | G35: B2 | H35: B3 | I35: A3 | J35: - | K35: 0 | L35: 1 | M35: 1.75 | N35: 2 | O35: 2.5 | P35: 6
A36: 035|D4 | B36: 033|B3,034|B2 | D36: 35 | E36: D4 | F36: E4 | G36: F#4 | H36: G4 | I36: F#4 | J36: B3 | K36: F#4 | L36: E4 | M36: - | N36: 2.5 | O36: 3 | P36: 3.5 | Q36: 4 | R36: 6 | S36: 7.5 | T36: 8 | U36: 9 | V36: 10.5
A37: 037|E4 | B37: 035|D4 | D37: 37 | E37: E4 | F37: F#4 | G37: G#4 | H37: A4 | I37: G#4 | J37: C#4 | K37: G4 | L37: - | M37: 2.5 | N37: 3 | O37: 3.5 | P37: 4 | Q37: 6 | R37: 7.5 | S37: 8 | T37: 16
A38: 039|A3(1) | B38: 017|B2 | D38: 39 | E38: A3 | F38: C#4 | G38: C#3 | H38: - | I38: 2 | J38: 2.75 | K38: 3 | L38: 3.75
A39: 039|A3(2) | B39: 039|A3(1) | D39: 39 | E39: A3 | F39: Bb3 | G39: C#4 | H39: C#3 | I39: - | J39: 3.75 | K39: 4 | L39: 4.75 | M39: 5 | N39: 6
A40: 040|Bb3 | B40: 039|A3(2) | D40: 40 | E40: Bb3 | F40: C#4 | G40: C#3 | H40: - | I40: 2 | J40: 2.75 | K40: 3 | L40: 4
A41: 041|C3 | B41: 040|Bb3 | D41: 41 | E41: C3 | F41: E3 | G41: E2 | H41: - | I41: 0 | J41: 0.75 | K41: 1 | L41: 3
A42: 042|C5 | B42: 041|C3 | D42: 42 | E42: C5 | F42: E5 | G42: E4 | H42: - | I42: 0 | J42: 0.375 | K42: 0.5 | L42: 1.5
A43: 042|Db4 | B43: 003|C5,017|B2 | C43: 043|Bb4 | D43: 42 | E43: Db4 | F43: Db5 | G43: C5 | H43: Bb4 | I43: - | J43: 2 | K43: 3 | L43: 3.75 | M43: 4 | N43: 5
A44: 042|F#4 | B44: 019|D#3 | D44: 42 | E44: F#4 | F44: G4 | G44: C5 | H44: E5 | I44: Ab5 | J44: G5 | K44: - | L44: 1.5 | M44: 1.625 | N44: 1.75 | O44: 1.875 | P44: 2 | Q44: 4 | R44: 6
A45: 043|Bb4 | B45: 042|Db4 | D45: 43 | E45: Bb4 | F45: Gb3 | G45: Ab3 | H45: Bb3 | I45: - | J45: 0 | K45: 1 | L45: 1.75 | M45: 2 | N45: 4
A46: 044|C#3 | B46: 041|C3 | D46: 44 | E46: C#3 | F46: E3 | G46: E2 | H46: - | I46: 0 | J46: 0.75 | K46: 1 | L46: 3
A47: 045|C5 | B47: 042|C5 | D47: 45 | E47: C5 | F47: E5 | G47: E4 | H47: - | I47: 2 | J47: 2.375 | K47: 2.5 | L47: 3.5
A48: 045|G#4 | B48: 042|F#4 | D48: 45 | E48: G#4 | F48: C5 | G48: E5 | H48: G#5 | I48: C#6 | J48: C6 | K48: - | L48: 3.5 | M48: 3.625 | N48: 3.75 | O48: 3.875 | P48: 4 | Q48: 8 | R48: 9
A49: 046|D4 | B49: 042|Db4 | C49: 046|Eb5 | D49: 46 | E49: D4 | F49: F5 | G49: E5 | H49: Eb5 | I49: - | J49: 0 | K49: 1 | L49: 1.75 | M49: 2 | N49: 3
A50: 046|Eb5 | B50: 043|Bb4 | D50: 46 | E50: Eb5 | F50: A3 | G50: Bb3 | H50: C4 | I50: - | J50: 2 | K50: 3 | L50: 3.75 | M50: 4 | N50: 8
A51: 047|F#2 | B51: 044|C#3 | D51: 47 | E51: F#2 | F51: A2 | G51: A1 | H51: - | I51: 2 | J51: 2.75 | K51: 3 | L51: 4
A52: 049|G3 | D52: 49 | E52: G3 | F52: G3 | G52: G3 | H52: F3 | I52: - | J52: 0 | K52: 2 | L52: 4 | M52: 6 | N52: 7
A53: 050|Eb3 | D53: 50 | E53: Eb3 | F53: D3 | G53: F3 | H53: Eb3 | I53: D3 | J53: C3 | K53: G2 | L53: - | M53: 3 | N53: 4 | O53: 5 | P53: 6 | Q53: 7 | R53: 8 | S53: 10 | T53: 12
A54: 053|G3 | D54: 53 | E54: G3 | F54: C4 | G54: C4 | H54: Bb3 | I54: - | J54: 0 | K54: 2 | L54: 4 | M54: 6 | N54: 8
A55: 055|F3 | D55: 55 | E55: F3 | F55: G3 | G55: Ab3 | H55: Bb3 | I55: Ab3 | J55: G3 | K55: - | L55: 0 | M55: 1 | N55: 2 | O55: 3 | P55: 4 | Q55: 6 | R55: 8
A56: 057|G3 | B56: 049|G3 | D56: 57 | E56: G3 | F56: G3 | G56: G3 | H56: F3 | I56: - | J56: 0 | K56: 2 | L56: 4 | M56: 6 | N56: 7
A57: 058|Eb3 | B57: 050|Eb3 | D57: 58 | E57: Eb3 | F57: D3 | G57: A3 | H57: A3 | I57: Bb3 | J57: A3 | K57: G3 | L57: - | M57: 3 | N57: 4 | O57: 6 | P57: 8 | Q57: 9 | R57: 10 | S57: 11 | T57: 12
A58: 061|F3 | B58: 053|G3 | D58: 61 | E58: F3 | F58: Bb3 | G58: D4 | H58: C4 | I58: - | J58: 0 | K58: 2 | L58: 4 | M58: 6 | N58: 7
A59: 062|D4 | B59: 055|F3 | C59: 065|B4 | D59: 62 | E59: D4 | F59: Eb4 | G59: D4 | H59: C4 | I59: Bb3 | J59: A3 | K59: - | L59: 3 | M59: 4 | N59: 5 | O59: 6 | P59: 7 | Q59: 8 | R59: 12
A60: 064|C#4 | B60: 019|D#3 | D60: 64 | E60: C#4 | F60: D4 | G60: G4 | H60: B4 | I60: D5 | J60: - | K60: 3.5 | L60: 3.625 | M60: 3.75 | N60: 3.875 | O60: 4 | P60: 12.5
A61: 065|B4 | B61: 009|C#5 | D61: 65 | E61: B4 | F61: Bb4 | G61: - | H61: 0 | I61: 4 | J61: 8.5
A62: 065|G2 | B62: 009|A2 | D62: 65 | E62: G2 | F62: G2 | G62: G2 | H62: G2 | I62: G2 | J62: G2 | K62: G2 | L62: - | M62: 0 | N62: 2 | O62: 3.5 | P62: 3.75 | Q62: 4 | R62: 5 | S62: 6 | T62: 6.5
A63: 069|G2 | B63: 034|B2 | D63: 69 | E63: G2 | F63: D3 | G63: G2 | H63: A3 | I63: G3 | J63: - | K63: 0 | L63: 2 | M63: 3.5 | N63: 4 | O63: 5 | P63: 7
A64: 070|G2 | B64: 069|G2 | C64: 075|Bb4 | D64: 70 | E64: G2 | F64: D3 | G64: G3 | H64: Bb3 | I64: G4 | J64: D4 | K64: - | L64: 3 | M64: 4 | N64: 5 | O64: 5.75 | P64: 6 | Q64: 8 | R64: 13
A65: 072|D4 | B65: 070|G2 | C65: 075|D5 | D65: 72 | E65: D4 | F65: G4 | G65: Bb4 | H65: G5 | I65: D5 | J65: - | K65: 0 | L65: 1 | M65: 1.75 | N65: 2 | O65: 4 | P65: 16
A66: 075|Bb4 | B66: 035|D4 | D66: 75 | E66: Bb4 | F66: A4 | G66: D4 | H66: A4 | I66: G4 | J66: - | K66: 0 | L66: 2 | M66: 3.5 | N66: 4 | O66: 5 | P66: 7.5
A67: 075|D5 | B67: 035|D4,037|E4 | C67: 082|G4 | D67: 75 | E67: D5 | F67: C#5 | G67: A4 | H67: C5 | I67: Bb4 | J67: E4 | K67: A4 | L67: - | M67: 0 | N67: 4 | O67: 7 | P67: 8 | Q67: 10 | R67: 11.5 | S67: 12 | T67: 14.5
A68: 076|C#4 | B68: 062|D4 | C68: 082|G4 | D68: 76 | E68: C#4 | F68: Ab4 | G68: G4 | H68: F#4 | I68: G4 | J68: E4 | K68: - | L68: 3.5 | M68: 4 | N68: 5 | O68: 6 | P68: 7 | Q68: 8 | R68: 10
A69: 082|Eb3 | B69: 043|Bb4 | C69: 083|F2 | D69: 82 | E69: Eb3 | F69: Eb2 | G69: E2 | H69: F2 | I69: - | J69: 0 | K69: 2 | L69: 3.5 | M69: 4 | N69: 6
A70: 082|G4 | B70: 049|G3 | C70: 084|F4 | D70: 82 | E70: G4 | F70: G4 | G70: G4 | H70: A3 | I70: - | J70: 0 | K70: 3 | L70: 4 | M70: 6 | N70: 8
A71: 083|F2 | B71: 042|Db4 | C71: 084|C#3 | D71: 83 | E71: F2 | F71: F3 | G71: Eb3 | H71: Db3 | I71: - | J71: 0 | K71: 2 | L71: 3.5 | M71: 4 | N71: 6
A72: 084|C#3 | B72: 082|Eb3 | C72: 085|A1 | D72: 84 | E72: C#3 | F72: C#2 | G72: B1 | H72: A1 | I72: - | J72: 0 | K72: 2 | L72: 3.5 | M72: 4 | N72: 5
A73: 084|F4 | B73: 050|Eb3 | C73: 086|C4,086|Ab3 | D73: 84 | E73: F4 | F73: G4 | G73: F4 | H73: Eb4 | I73: Db4 | J73: - | K73: 0 | L73: 1 | M73: 2 | N73: 3 | O73: 4 | P73: 8
A74: 085|A1 | B74: 084|F4 | C74: 088|Bb3,088|Eb4 | D74: 85 | E74: A1 | F74: B1 | G74: A1 | H74: G#1 | I74: F#1 | J74: - | K74: 0 | L74: 1 | M74: 2 | N74: 3 | O74: 4 | P74: 6
A75: 086|Ab3 | B75: 084|C#3,032|A3 | C75: 088|Bb3 | D75: 86 | E75: Ab3 | F75: G3 | G75: F#3 | H75: A3 | I75: Bb3 | J75: A3 | K75: - | L75: 0 | M75: 2 | N75: 3.5 | O75: 4 | P75: 4.75 | Q75: 5 | R75: 8
A76: 086|C4 | B76: 032|A3 | C76: 088|Eb4 | D76: 86 | E76: C4 | F76: D4 | G76: Eb4 | H76: F4 | I76: Eb4 | J76: - | K76: 0 | L76: 4 | M76: 6 | N76: 7.5 | O76: 8 | P76: 12
A77: 088|Bb3 | B77: 086|Ab3 | C77: 090|Db4 | D77: 88 | E77: Bb3 | F77: Ab3 | G77: G3 | H77: Db4 | I77: Eb4 | J77: Db4 | K77: - | L77: 0 | M77: 2 | N77: 3.5 | O77: 4 | P77: 4.75 | Q77: 5 | R77: 10
A78: 088|Eb4 | B78: 086|C4 | C78: 092|F4(1),092|F4(2) | D78: 88 | E78: Eb4 | F78: E4 | G78: F4 | H78: G4 | I78: F4 | J78: - | K78: 0 | L78: 4 | M78: 6 | N78: 7.5 | O78: 8 | P78: 10
A79: 090|Ab2 | B79: 088|Bb3,090|Db4 | C79: 092|F4(1),092|F4(2) | D79: 90 | E79: Ab2 | F79: A2 | G79: Eb3 | H79: Bb2 | I79: C3 | J79: Bb2 | K79: - | L79: 0 | M79: 2 | N79: 3.5 | O79: 4 | P79: 4.75 | Q79: 5 | R79: 7
A80: 090|Db4 | B80: 075|Bb4 | C80: 092|F4(1),092|F4(2) | D80: 90 | E80: Db4 | F80: C4 | G80: F#3 | H80: Eb4 | I80: D4 | J80: - | K80: 0 | L80: 2 | M80: 3.5 | N80: 4 | O80: 5 | P80: 8
A81: 092|F4(1) | B81: 090|Db4 | D81: 92 | E81: F4 | F81: E4 | G81: G#3 | H81: G4 | I81: F4 | J81: - | K81: 0 | L81: 2 | M81: 3.5 | N81: 4 | O81: 5 | P81: 7
A82: 092|F4(2) | B82: 092|F4(1),088|Bb3 | D82: 92 | E82: F4 | F82: E4 | G82: G#3 | H82: A4 | I82: B4 | J82: A4 | K82: - | L82: 0 | M82: 2 | N82: 3.5 | O82: 4 | P82: 4.75 | Q82: 5 | R82: 6.5
A83: 093|A4 | B83: 033|B3 | D83: 93 | E83: A4 | F83: B4 | G83: C5 | H83: D5 | I83: Eb5 | J83: C5 | K83: - | L83: 2.5 | M83: 3 | N83: 3.5 | O83: 4 | P83: 8 | Q83: 12 | R83: 17
A84: 093|E4 | B84: 032|A3 | D84: 93 | E84: E4 | F84: Ab4 | G84: Bb4 | H84: Ab4 | I84: - | J84: 3 | K84: 4 | L84: 4.75 | M84: 5 | N84: 9
A85: 093|F3 | B85: 082|Eb3 | D85: 93 | E85: F3 | F85: F2 | G85: F#2 | H85: G2 | I85: - | J85: 0 | K85: 2 | L85: 3.5 | M85: 4 | N85: 8
A86: 095|F#4 | B86: 064|C#4 | D86: 95 | E86: F#4 | F86: G4 | G86: C5 | H86: E5 | I86: G5 | J86: - | K86: 3.5 | L86: 3.625 | M86: 3.75 | N86: 3.875 | O86: 4 | P86: 9
A87: 095|G4 | B87: 093|A4 | D87: 95 | E87: G4 | F87: A4 | G87: B4 | H87: C5 | I87: - | J87: 1 | K87: 2 | L87: 3 | M87: 4 | N87: 12
A88: 096|E5 | B88: 009|C#5 | D88: 96 | E88: E5 | F88: Eb5 | G88: - | H88: 0 | I88: 4 | J88: 8
A89: 097|C2 | B89: 021|A2 | D89: 97 | E89: C2 | F89: D2 | G89: D2 | H89: Eb2 | I89: C2 | J89: D2 | K89: D2 | L89: Eb2 | M89: C2 | N89: D2 | O89: D2 | P89: Eb2 | Q89: C2 | R89: - | S89: 3 | T89: 3.75 | U89: 4 | V89: 4.75 | W89: 5 | X89: 5.75 | Y89: 6 | Z89: 6.75 | AA89: 7 | AB89: 7.75 | AC89: 8 | AD89: 8.75 | AE89: 9 | AF89: 11
A90: 099|F#3 | B90: 095|F#4 | D90: 99 | E90: F#3 | F90: G3 | G90: C4 | H90: Eb4 | I90: G4 | J90: - | K90: 3 | L90: 3.25 | M90: 3.5 | N90: 3.75 | O90: 4 | P90: 5
A91: 100|F#3(1) | B91: 099|F#3 | D91: 100 | E91: F#3 | F91: G3 | G91: C4 | H91: Eb4 | I91: Ab4 | J91: - | K91: 1 | L91: 1.25 | M91: 1.5 | N91: 1.75 | O91: 2 | P91: 3
A92: 100|F#3(2) | B92: 100|F#3(1),093|E4 | C92: 101|F#3 | D92: 100 | E92: F#3 | F92: G3 | G92: C4 | H92: Eb4 | I92: A4 | J92: Bb4 | K92: A4 | L92: - | M92: 3 | N92: 3.25 | O92: 3.5 | P92: 3.75 | Q92: 4 | R92: 4.75 | S92: 5 | T92: 6
A93: 101|B2 | B93: 025|G#4 | C93: 102|F#2 | D93: 101 | E93: B2 | F93: C3 | G93: G2 | H93: Eb2 | I93: C2 | J93: - | K93: 3 | L93: 3.25 | M93: 3.5 | N93: 3.75 | O93: 4 | P93: 5
A94: 101|F#3 | B94: 099|F#3 | C94: 102|F#3(1) | D94: 101 | E94: F#3 | F94: G3 | G94: C4 | H94: Eb4 | I94: Ab4 | J94: - | K94: 3 | L94: 3.25 | M94: 3.5 | N94: 3.75 | O94: 4 | P94: 5
A95: 102|D2 | B95: 102|F#2 | D95: 102 | E95: D2 | F95: Eb2 | G95: C2 | H95: G1 | I95: Eb1 | J95: Eb1 | K95: - | L95: 3 | M95: 3.25 | N95: 3.5 | O95: 3.75 | P95: 4 | Q95: 5 | R95: 6
A96: 102|F#2 | B96: 101|B2 | C96: 102|D2 | D96: 102 | E96: F#2 | F96: G2 | G96: Eb2 | H96: C2 | I96: G1 | J96: - | K96: 1 | L96: 1.25 | M96: 1.5 | N96: 1.75 | O96: 2 | P96: 3
A97: 102|F#3(1) | B97: 100|F#3(1),101|F#3 | C97: 102|F#3(2) | D97: 102 | E97: F#3 | F97: G3 | G97: C4 | H97: Eb4 | I97: A4 | J97: - | K97: 1 | L97: 1.25 | M97: 1.5 | N97: 1.75 | O97: 2 | P97: 3
A98: 102|F#3(2) | B98: 100|F#3(2),102|F#3(1) | D98: 102 | E98: F#3 | F98: G3 | G98: C4 | H98: Eb4 | I98: B4 | J98: C5 | K98: B4 | L98: - | M98: 3 | N98: 3.25 | O98: 3.5 | P98: 3.75 | Q98: 4 | R98: 4.75 | S98: 5 | T98: 6
A99: 103|C3 | B99: 097|C2 | C99: 105|C4 | D99: 103 | E99: C3 | F99: D3 | G99: D3 | H99: Eb3 | I99: C3 | J99: D3 | K99: D3 | L99: Eb3 | M99: C3 | N99: D3 | O99: D3 | P99: Eb3 | Q99: C3 | R99: D3 | S99: D3 | T99: Eb3 | U99: - | V99: 3 | W99: 3.75 | X99: 4 | Y99: 4.75 | Z99: 5 | AA99: 5.75 | AB99: 6 | AC99: 6.75 | AD99: 7 | AE99: 7.75 | AF99: 8 | AG99: 8.75 | AH99: 9 | AI99: 9.75 | AJ99: 10 | AK99: 10.75 | AL99: 11
A100: 104|C5 | B100: 102|F#3(2) | D100: 104 | E100: C5 | F100: D5 | G100: C5 | H100: - | I100: 2 | J100: 2.75 | K100: 3 | L100: 4
A101: 105|B4 | B101: 104|C5 | D101: 105 | E101: B4 | F101: C5 | G101: B4 | H101: - | I101: 2 | J101: 2.75 | K101: 3 | L101: 4
A102: 105|C4 | B102: 103|C3 | C102: 106|C5 | D102: 105 | E102: C4 | F102: D4 | G102: D4 | H102: Eb4 | I102: C4 | J102: D4 | K102: D4 | L102: Eb4 | M102: - | N102: 3 | O102: 3.75 | P102: 4 | Q102: 4.75 | R102: 5 | S102: 5.75 | T102: 6 | U102: 6.75 | V102: 7
A103: 106|Bb4 | B103: 105|B4 | D103: 106 | E103: Bb4 | F103: C5 | G103: Bb4 | H103: - | I103: 2 | J103: 2.75 | K103: 3 | L103: 4
A104: 106|C5 | B104: 105|C4 | D104: 106 | E104: C5 | F104: D5 | G104: D5 | H104: Eb5 | I104: C5 | J104: D5 | K104: D5 | L104: Eb5 | M104: C5 | N104: - | O104: 3 | P104: 3.75 | Q104: 4 | R104: 4.75 | S104: 5 | T104: 5.75 | U104: 6 | V104: 6.75 | W104: 7 | X104: 7.75
A105: 107|A4 | B105: 106|Bb4 | C105: 107|Ab4 | D105: 107 | E105: A4 | F105: Bb4 | G105: A4 | H105: - | I105: 1 | J105: 1.75 | K105: 2 | L105: 3
A106: 107|Ab4 | B106: 107|A4 | D106: 107 | E106: Ab4 | F106: G4 | G106: Ab4 | H106: - | I106: 3 | J106: 3.75 | K106: 4 | L106: 5
A107: 107|D5(1) | B107: 025|G#4 | C107: 108|D#5 | D107: 107 | E107: D5 | F107: Eb5 | G107: C5 | H107: G4 | I107: Eb4 | J107: - | K107: 3 | L107: 3.25 | M107: 3.5 | N107: 3.75 | O107: 4 | P107: 5
A108: 107|D5(2) | B108: 106|C5 | D108: 107 | E108: D5 | F108: D5 | G108: Eb5 | H108: C5 | I108: D5 | J108: D5 | K108: Eb5 | L108: C5 | M108: D5 | N108: D5 | O108: Eb5 | P108: C5 | Q108: D5 | R108: D5 | S108: Eb5 | T108: C5 | U108: D5 | V108: D5 | W108: Eb5 | X108: C5 | Y108: D5 | Z108: D5 | AA108: Eb5 | AB108: C5 | AC108: D5 | AD108: D5 | AE108: Eb5 | AF108: C5 | AG108: D5 | AH108: D5 | AI108: Eb5 | AJ108: C5 | AK108: D5 | AL108: - | AM108: 3.75 | AN108: 4 | AO108: 4.25 | AP108: 4.5 | AQ108: 4.75 | AR108: 5 | AS108: 5.25 | AT108: 5.5 | AU108: 5.75 | AV108: 6 | AW108: 6.25 | AX108: 6.5 | AY108: 6.75 | AZ108: 7 | BA108: 7.25 | BB108: 7.5 | BC108: 7.75 | BD108: 8 | BE108: 8.25 | BF108: 8.5 | BG108: 8.75 | BH108: 9 | BI108: 9.25 | BJ108: 9.5 | BK108: 9.75 | BL108: 10 | BM108: 10.25 | BN108: 10.5 | BO108: 10.75 | BP108: 11 | BQ108: 11.25 | BR108: 11.5 | BS108: 11.75 | BT108: 12
A109: 108|Ab4 | B109: 107|Ab4 | D109: 108 | E109: Ab4 | F109: G4 | G109: Ab4 | H109: - | I109: 3 | J109: 3.75 | K109: 4 | L109: 5
A110: 108|D#5 | B110: 107|D5(1) | C110: 109|D5 | D110: 108 | E110: D#5 | F110: E5 | G110: C5 | H110: G#4 | I110: E4 | J110: - | K110: 3 | L110: 3.25 | M110: 3.5 | N110: 3.75 | O110: 4 | P110: 5
A111: 108|G4 | B111: 107|A4,107|Ab4 | C111: 108|Ab4 | D111: 108 | E111: G4 | F111: F#4 | G111: G4 | H111: - | I111: 1 | J111: 1.75 | K111: 2 | L111: 3
A112: 109|Ab4 | B112: 108|Ab4 | D112: 109 | E112: Ab4 | F112: G4 | G112: Ab4 | H112: - | I112: 3 | J112: 3.75 | K112: 4 | L112: 6
A113: 109|D5 | B113: 107|D5(1) | D113: 109 | E113: D5 | F113: Eb5 | G113: C5 | H113: G4 | I113: E4 | J113: - | K113: 3 | L113: 3.25 | M113: 3.5 | N113: 3.75 | O113: 4 | P113: 5
A114: 109|G4 | B114: 108|G4 | C114: 109|Ab4 | D114: 109 | E114: G4 | F114: F#4 | G114: G4 | H114: - | I114: 1 | J114: 1.75 | K114: 2 | L114: 3
A115: 110|D#5 | B115: 109|D5,108|D#5 | D115: 110 | E115: D#5 | F115: E5 | G115: C5 | H115: G#4 | I115: E4 | J115: - | K115: 3 | L115: 3.25 | M115: 3.5 | N115: 3.75 | O115: 4 | P115: 5
A116: 110|E#5 | B116: 109|D5 | D116: 110 | E116: E#5 | F116: F#5 | G116: C5 | H116: A4 | I116: D#4 | J116: - | K116: 1 | L116: 1.25 | M116: 1.5 | N116: 1.75 | O116: 2 | P116: 3
A117: 111|E#5 | B117: 110|E#5 | D117: 111 | E117: E#5 | F117: F#5 | G117: C5 | H117: A4 | I117: D#4 | J117: - | K117: 1 | L117: 1.25 | M117: 1.5 | N117: 1.75 | O117: 2 | P117: 3
A118: 111|Fx5 | B118: 111|E#5 | D118: 111 | E118: Fx5 | F118: G#5 | G118: E5 | H118: C5 | I118: G#4 | J118: - | K118: 3 | L118: 3.25 | M118: 3.5 | N118: 3.75 | O118: 4 | P118: 5
A119: 112|Ab4(1) | B119: 109|Ab4 | D119: 112 | E119: Ab4 | F119: G4 | G119: Ab4 | H119: Ab4 | I119: G4 | J119: - | K119: 0 | L119: 1 | M119: 1.75 | N119: 2 | O119: 3 | P119: 3.75
A120: 112|Ab4(2) | B120: 112|Ab4(1),112|G#5 | D120: 112 | E120: Ab4 | F120: Ab4 | G120: G4 | H120: Ab4 | I120: Ab4 | J120: G4 | K120: Ab4 | L120: Ab4 | M120: G4 | N120: Ab4 | O120: A4 | P120: - | Q120: 3.75 | R120: 4 | S120: 4.5 | T120: 4.75 | U120: 5 | V120: 5.5 | W120: 5.75 | X120: 6 | Y120: 6.5 | Z120: 6.75 | AA120: 7 | AB120: 7.5
A121: 112|Fx5(1) | B121: 111|Fx5 | D121: 112 | E121: Fx5 | F121: G#5 | G121: E5 | H121: C5 | I121: G#4 | J121: - | K121: 0 | L121: 0.25 | M121: 0.5 | N121: 0.75 | O121: 1 | P121: 2
A122: 112|Fx5(2) | B122: 112|Fx5(1) | D122: 112 | E122: Fx5 | F122: G#5 | G122: E5 | H122: C5 | I122: G#4 | J122: - | K122: 1 | L122: 1.25 | M122: 1.5 | N122: 1.75 | O122: 2 | P122: 3
A123: 112|Fx5(3) | B123: 112|Fx5(2) | D123: 112 | E123: Fx5 | F123: G#5 | G123: E5 | H123: C5 | I123: G#4 | J123: - | K123: 2 | L123: 2.25 | M123: 2.5 | N123: 2.75 | O123: 3 | P123: 4
A124: 112|G#5 | B124: 112|Fx5(3),107|D5(2) | C124: 113|G#5 | D124: 112 | E124: G#5 | F124: A5 | G124: Fx5 | H124: G#5 | I124: G#5 | J124: A5 | K124: Fx5 | L124: G#5 | M124: G#5 | N124: A5 | O124: Fx5 | P124: G#5 | Q124: G#5 | R124: A5 | S124: Fx5 | T124: G#5 | U124: G#5 | V124: A5 | W124: E5 | X124: - | Y124: 3 | Z124: 3.25 | AA124: 3.5 | AB124: 3.75 | AC124: 4 | AD124: 4.25 | AE124: 4.5 | AF124: 4.75 | AG124: 5 | AH124: 5.25 | AI124: 5.5 | AJ124: 5.75 | AK124: 6 | AL124: 6.25 | AM124: 6.5 | AN124: 6.75 | AO124: 7 | AP124: 7.25 | AQ124: 7.5 | AR124: 7.75
A125: 113|G#5 | B125: 112|Fx5(3),112|G#5 | D125: 113 | E125: G#5 | F125: A5 | G125: E5 | H125: C5 | I125: E4 | J125: - | K125: 3 | L125: 3.25 | M125: 3.5 | N125: 3.75 | O125: 4 | P125: 6
A126: 114|E4 | B126: 005|Eb6,041|C3 | D126: 114 | E126: E4 | F126: F#4 | G126: A4 | H126: E4 | I126: E5 | J126: - | K126: 0 | L126: 2 | M126: 4 | N126: 4.75 | O126: 5 | P126: 7
A127: 115|C4 | B127: 095|F#4 | C127: 116|B4 | D127: 115 | E127: C4 | F127: E4 | G127: A4 | H127: B4 | I127: B4 | J127: - | K127: 3 | L127: 3.25 | M127: 3.5 | N127: 3.75 | O127: 4 | P127: 4.75
A128: 116|B4 | B128: 097|C2 | D128: 116 | E128: B4 | F128: C5 | G128: A4 | H128: B4 | I128: B4 | J128: C5 | K128: A4 | L128: B4 | M128: B4 | N128: C5 | O128: A4 | P128: - | Q128: 0 | R128: 0.75 | S128: 1 | T128: 1.75 | U128: 2 | V128: 2.75 | W128: 3 | X128: 3.75 | Y128: 4 | Z128: 4.75 | AA128: 5 | AB128: 7
A129: 117|D#5 | B129: 113|G#5 | C129: 118|E4 | D129: 117 | E129: D#5 | F129: E5 | G129: C5 | H129: A4 | I129: E4 | J129: - | K129: 3 | L129: 3.25 | M129: 3.5 | N129: 3.75 | O129: 4 | P129: 6
A130: 118|E4 | B130: 069|G2 | D130: 118 | E130: E4 | F130: B4 | G130: E4 | H130: F#5 | I130: E5 | J130: - | K130: 0 | L130: 2 | M130: 3.75 | N130: 4 | O130: 5 | P130: 7
A131: 118|G3 | B131: 095|F#4,118|E4 | D131: 118 | E131: G3 | F131: G2 | G131: F#2 | H131: G2 | I131: B2 | J131: E3 | K131: A3 | L131: G3 | M131: - | N131: 0 | O131: 2.75 | P131: 3 | Q131: 3.25 | R131: 3.5 | S131: 3.75 | T131: 4 | U131: 5 | V131: 7
A132: 119|E4 | B132: 070|G2 | C132: 121|E5 | D132: 119 | E132: E4 | F132: B4 | G132: E5 | H132: G#5 | I132: B5 | J132: G#5 | K132: - | L132: 3 | M132: 4 | N132: 5 | O132: 5.75 | P132: 6 | Q132: 8 | R132: 11
A133: 121|D4 | B133: 116|B4 | C133: 123|G#3 | D133: 121 | E133: D4 | F133: E4 | G133: E4 | H133: F4 | I133: D4 | J133: E4 | K133: E4 | L133: F4 | M133: D4 | N133: E4 | O133: E4 | P133: F4 | Q133: D4 | R133: - | S133: 3 | T133: 3.75 | U133: 4 | V133: 4.75 | W133: 5 | X133: 5.75 | Y133: 6 | Z133: 6.75 | AA133: 7 | AB133: 7.75 | AC133: 8 | AD133: 8.75 | AE133: 9 | AF133: 11
A134: 121|E5 | B134: 113|G#5 | D134: 121 | E134: E5 | F134: F5 | G134: D5 | H134: A4 | I134: D4 | J134: - | K134: 3 | L134: 3.25 | M134: 3.5 | N134: 3.75 | O134: 4 | P134: 7
A135: 122|E5 | B135: 121|E5 | C135: 123|F6 | D135: 122 | E135: E5 | F135: F5 | G135: D5 | H135: A4 | I135: A5 | J135: - | K135: 3 | L135: 3.25 | M135: 3.5 | N135: 3.75 | O135: 4 | P135: 7
A136: 123|F6 | D136: 123 | E136: F6 | F136: E6 | G136: E6 | H136: D6 | I136: D6 | J136: C6 | K136: C6 | L136: B5 | M136: - | N136: 3 | O136: 3.75 | P136: 4 | Q136: 4.75 | R136: 5 | S136: 5.75 | T136: 6 | U136: 6.75 | V136: 7
A137: 123|G#3 | B137: 117|D#5 | C137: 124|A4 | D137: 123 | E137: G#3 | F137: A3 | G137: D4 | H137: F4 | I137: A4 | J137: - | K137: 3 | L137: 3.25 | M137: 3.5 | N137: 3.75 | O137: 4 | P137: 6
A138: 124|A4 | B138: 118|E4 | D138: 124 | E138: A4 | F138: F4 | G138: D4 | H138: G#4 | I138: A4 | J138: - | K138: 0 | L138: 2 | M138: 3.75 | N138: 4 | O138: 5 | P138: 7
A139: 124|A5 | B139: 031|C3,124|A4 | D139: 124 | E139: A5 | F139: D6 | G139: F6 | H139: B6 | I139: A6 | J139: - | K139: 3 | L139: =-0.666666666666667+4 -> 3.333333333 | M139: =-0.333333333333333+4 -> 3.666666667 | N139: 4 | O139: 5 | P139: 7
A140: 124|D4 | B140: 016|A1 | D140: 124 | E140: D4 | F140: D5 | G140: - | H140: 0 | I140: 2 | J140: 4
A141: 125|E5 | B141: 017|B2 | D141: 125 | E141: E5 | F141: F5 | G141: D5 | H141: - | I141: 0 | J141: 0.75 | K141: 1 | L141: 3
A142: 125|G#4 | B142: 123|G#3,113|G#5 | C142: 126|D6 | D142: 125 | E142: G#4 | F142: A4 | G142: D5 | H142: F5 | I142: D6 | J142: - | K142: 3 | L142: 3.25 | M142: 3.5 | N142: 3.75 | O142: 4 | P142: 6
A143: 126|D6 | B143: 114|E4 | D143: 126 | E143: D6 | F143: C6 | G143: Bb5 | H143: F5 | I143: F6 | J143: - | K143: 0 | L143: 2 | M143: 4 | N143: 4.75 | O143: 5 | P143: 7
A144: 127|C#5 | B144: 125|G#4 | C144: 128|Bb5 | D144: 127 | E144: C#5 | F144: D5 | G144: F5 | H144: A5 | I144: Bb5 | J144: - | K144: 3 | L144: 3.25 | M144: 3.5 | N144: 3.75 | O144: 4 | P144: 5
A145: 128|A5 | B145: 039|A3(1) | C145: 129|A#4 | D145: 128 | E145: A5 | F145: G#5 | G145: E6 | H145: B4 | I145: - | J145: 3 | K145: 4 | L145: 4.75 | M145: 5 | N145: 7
A146: 128|Bb5 | B146: 046|D4 | D146: 128 | E146: Bb5 | F146: D6 | G146: C6 | H146: Bb5 | I146: - | J146: 0 | K146: 1 | L146: 1.75 | M146: 2 | N146: 3
A147: 129|A#4 | B147: 127|C#5 | C147: 130|G#5 | D147: 129 | E147: A#4 | F147: B4 | G147: F#5 | H147: A5 | I147: G#5 | J147: - | K147: 3 | L147: 3.25 | M147: 3.5 | N147: 3.75 | O147: 4 | P147: 4.75
A148: 129|F#4 | B148: 116|B4 | D148: 129 | E148: F#4 | F148: G#4 | G148: G#4 | H148: A4 | I148: F#4 | J148: G#4 | K148: G#4 | L148: A4 | M148: F#4 | N148: G#4 | O148: E4 | P148: - | Q148: 3 | R148: 3.75 | S148: 4 | T148: 4.75 | U148: 5 | V148: 5.75 | W148: 6 | X148: 6.75 | Y148: 7 | Z148: 7.75 | AA148: 8 | AB148: 9
A149: 129|G#3 | B149: 101|B2 | D149: 129 | E149: G#3 | F149: A3 | G149: F#3 | H149: C3 | I149: B2 | J149: - | K149: 3 | L149: 3.25 | M149: 3.5 | N149: 3.75 | O149: 4 | P149: 5
A150: 130|F#5(1) | B150: 130|G#5,039|A3(2) | D150: 130 | E150: F#5 | F150: G#5 | G150: B5 | H150: B4 | I150: - | J150: 1.75 | K150: 2 | L150: 2.75 | M150: 3 | N150: 3.75
A151: 130|F#5(2) | B151: 130|F#5(1),123|F6,112|Ab4(2) | D151: 130 | E151: F#5 | F151: G#5 | G151: B5 | H151: A5 | I151: F#5 | J151: A5 | K151: G#5 | L151: E5 | M151: G5 | N151: F5 | O151: D5 | P151: F5 | Q151: E5 | R151: - | S151: 3.75 | T151: 4 | U151: 4.5 | V151: 4.75 | W151: 5 | X151: 5.5 | Y151: 5.75 | Z151: 6 | AA151: 6.5 | AB151: 6.75 | AC151: 7 | AD151: 7.5 | AE151: 7.75 | AF151: 8
A152: 130|G#3(1) | B152: 129|G#3 | D152: 130 | E152: G#3 | F152: A3 | G152: F#3 | H152: C3 | I152: B2 | J152: - | K152: 1 | L152: 1.25 | M152: 1.5 | N152: 1.75 | O152: 2 | P152: 3
A153: 130|G#3(2) | B153: 130|G#3(1) | C153: 131|E3 | D153: 130 | E153: G#3 | F153: A3 | G153: F#3 | H153: C3 | I153: E3 | J153: - | K153: 3 | L153: 3.25 | M153: 3.5 | N153: 3.75 | O153: 4 | P153: 4.5
A154: 130|G#5 | B154: 128|A5 | D154: 130 | E154: G#5 | F154: B5 | G154: B4 | H154: - | I154: 0 | J154: 0.75 | K154: 1 | L154: 1.75
A155: 131|E3 | B155: 130|F#5(2) | D155: 131 | E155: E3 | F155: D3 | G155: E3 | H155: F#3 | I155: E3 | J155: F#3 | K155: G3 | L155: F#3 | M155: G3 | N155: Bb3 | O155: - | P155: 0 | Q155: 0.5 | R155: 0.75 | S155: 1 | T155: 1.5 | U155: 1.75 | V155: 2 | W155: 2.5 | X155: 2.75 | Y155: 3 | Z155: 4
A156: 131|G#5 | B156: 113|G#5 | C156: 132|E4 | D156: 131 | E156: G#5 | F156: A5 | G156: F5 | H156: D5 | I156: E4 | J156: - | K156: 3 | L156: 3.25 | M156: 3.5 | N156: 3.75 | O156: 4 | P156: 6
A157: 132|E4 | B157: 114|E4 | D157: 132 | E157: E4 | F157: F4 | G157: A4 | H157: - | I157: 0 | J157: 2 | K157: 4 | L157: 7
A158: 133|G#5 | B158: 131|G#5 | C158: 134|A4 | D158: 133 | E158: G#5 | F158: A5 | G158: E5 | H158: C5 | I158: A4 | J158: - | K158: 3 | L158: 3.25 | M158: 3.5 | N158: 3.75 | O158: 4 | P158: 4.75
A159: 134|A4 | B159: 128|Bb5,128|A5 | C159: 135|A5 | D159: 134 | E159: A4 | F159: G#4 | G159: A4 | H159: B4 | I159: C5 | J159: E5 | K159: A5 | L159: - | M159: 0 | N159: 0.75 | O159: 1 | P159: 1.75 | Q159: 2 | R159: 3 | S159: 4 | T159: 6
A160: 135|A5 | B160: 114|E4 | D160: 135 | E160: A5 | F160: B5 | G160: C#6 | H160: A5 | I160: A6 | J160: - | K160: 0 | L160: 2 | M160: 4 | N160: 4.75 | O160: 5 | P160: 7
A161: 136|A4 | B161: 086|Ab3 | D161: 136 | E161: A4 | F161: B4 | G161: C#5 | H161: D5 | I161: C#5 | J161: D5 | K161: - | L161: 0 | M161: 2 | N161: 3.5 | O161: 4 | P161: 4.75 | Q161: 5 | R161: 7
A162: 136|G5 | B162: 130|F#5(2) | C162: 139|D#5 | D162: 136 | E162: G5 | F162: A5 | G162: B5 | H162: A5 | I162: G5 | J162: A5 | K162: F5 | L162: G5 | M162: E5 | N162: F5 | O162: D5 | P162: - | Q162: 3 | R162: 3.5 | S162: 4 | T162: 4.75 | U162: 5 | V162: 5.75 | W162: 6 | X162: 6.75 | Y162: 7 | Z162: 7.75 | AA162: 8 | AB162: 8.75
A163: 137|C5 | B163: 136|G5 | C163: 139|D#5 | D163: 137 | E163: C5 | F163: B4 | G163: C5 | H163: A4 | I163: B4 | J163: F#4 | K163: G#4 | L163: A4 | M163: - | N163: 3 | O163: 4 | P163: 4.75 | Q163: 5 | R163: 5.75 | S163: 6 | T163: 7 | U163: 8 | V163: 9
A164: 139|A2 | B164: 121|D4 | D164: 139 | E164: A2 | F164: B2 | G164: B2 | H164: C3 | I164: A2 | J164: B2 | K164: B2 | L164: C3 | M164: A2 | N164: B2 | O164: B2 | P164: C3 | Q164: A2 | R164: - | S164: 3 | T164: 3.75 | U164: 4 | V164: 4.5 | W164: 5 | X164: 5.75 | Y164: 6 | Z164: 6.5 | AA164: 7 | AB164: 7.75 | AC164: 8 | AD164: 8.5 | AE164: 9 | AF164: 13
A165: 139|D#5 | B165: 121|E5 | D165: 139 | E165: D#5 | F165: E5 | G165: C5 | H165: A4 | I165: E4 | J165: - | K165: 3 | L165: 3.25 | M165: 3.5 | N165: 3.75 | O165: 4 | P165: 5
A166: 140|D#5(1) | B166: 139|D#5 | D166: 140 | E166: D#5 | F166: E5 | G166: C5 | H166: A4 | I166: E4 | J166: - | K166: 1 | L166: 1.25 | M166: 1.5 | N166: 1.75 | O166: 2 | P166: 3
A167: 140|D#5(2) | B167: 140|D#5(1) | D167: 140 | E167: D#5 | F167: E5 | G167: C5 | H167: A4 | I167: E4 | J167: - | K167: 3 | L167: 3.25 | M167: 3.5 | N167: 3.75 | O167: 4 | P167: 6
A168: 141|E4 | B168: 084|C#3,083|F2 | D168: 141 | E168: E4 | F168: E3 | G168: D#3 | H168: F#4 | I168: - | J168: 0 | K168: 2 | L168: 4 | M168: 6 | N168: 8
A169: 142|A2 | B169: 139|A2 | D169: 142 | E169: A2 | F169: B2 | G169: B2 | H169: C3 | I169: A2 | J169: B2 | K169: B2 | L169: C3 | M169: A2 | N169: - | O169: 1 | P169: 1.75 | Q169: 2 | R169: 2.5 | S169: 3 | T169: 3.75 | U169: 4 | V169: 4.5 | W169: 5 | X169: 8.75
A170: 143|G#4 | B170: 055|F3 | D170: 143 | E170: G#4 | F170: A4 | G170: B4 | H170: C5 | I170: B4 | J170: A4 | K170: - | L170: 0 | M170: 1 | N170: 2 | O170: 3 | P170: 4 | Q170: 6 | R170: 8
A171: 144|B3 | B171: 142|A2 | D171: 144 | E171: A3 | F171: B3 | G171: B3 | H171: C4 | I171: A3 | J171: - | K171: 3 | L171: 3.75 | M171: 4 | N171: 4.75 | O171: 5 | P171: 8.75
A172: 145|E4 | B172: 141|E4 | D172: 145 | E172: E4 | F172: E5 | G172: F#5 | H172: D#4 | I172: - | J172: 0 | K172: 2 | L172: 4 | M172: 6 | N172: 8
A173: 147|E4 | B173: 145|E4,143|G#4 | C173: 149|A5 | D173: 147 | E173: E4 | F173: E5 | G173: F#5 | H173: G5 | I173: G#5 | J173: F4 | K173: - | L173: 0 | M173: 1 | N173: 2 | O173: 3 | P173: 4 | Q173: 6 | R173: 8
A174: 149|A5 | B174: 082|G4 | D174: 149 | E174: A5 | F174: A5 | G174: A5 | H174: G5 | I174: - | J174: 0 | K174: 3 | L174: 4 | M174: 6 | N174: 7
A175: 149|D3 | B175: 082|Eb3 | D175: 149 | E175: D3 | F175: D2 | G175: Eb2 | H175: - | I175: 0 | J175: 2 | K175: 4 | L175: 8
A176: 150|F5 | B176: 058|Eb3 | D176: 150 | E176: F5 | F176: E5 | G176: B5 | H176: B5 | I176: C6 | J176: Bb5 | K176: Ab5 | L176: - | M176: 3 | N176: 4 | O176: 6 | P176: 8 | Q176: 9 | R176: 10 | S176: 11 | T176: 12
A177: 151|D4 | B177: 149|D3 | D177: 151 | E177: D4 | F177: D3 | G177: Eb3 | H177: - | I177: 0 | J177: 2 | K177: 4 | L177: 8
A178: 153|G5 | B178: 061|F3 | D178: 153 | E178: G5 | F178: C6 | G178: E6 | H178: D6 | I178: - | J178: 0 | K178: 2 | L178: 4 | M178: 6 | N178: 7
A179: 154|E6 | B179: 062|D4 | C179: 157|C6 | D179: 154 | E179: E6 | F179: F6 | G179: G6 | H179: A6 | I179: G6 | J179: C6 | K179: E6 | L179: D6 | M179: C6 | N179: - | O179: 3 | P179: 4 | Q179: 5 | R179: 5.5 | S179: 6 | T179: 7 | U179: 8 | V179: 10 | W179: 12 | X179: 14
A180: 157|C3 | B180: 144|B3 | C180: 158|D3 | D180: 157 | E180: C3 | F180: D3 | G180: B2 | H180: C3 | I180: Db3 | J180: - | K180: 0 | L180: 0.75 | M180: 1 | N180: 1.75 | O180: 2 | P180: 4
A181: 157|C6 | B181: 084|C#3 | C181: 158|Bb4 | D181: 157 | E181: C6 | F181: C5 | G181: B4 | H181: Bb4 | I181: - | J181: 0 | K181: 2 | L181: 3.5 | M181: 4 | N181: 6
A182: 157|E4 | B182: 157|C3 | D182: 157 | E182: E4 | F182: F4 | G182: G4 | H182: E4 | I182: F4 | J182: F#4 | K182: - | L182: 0 | M182: 2 | N182: 2.75 | O182: 3 | P182: 3.75 | Q182: 4 | R182: 6
A183: 158|Bb4 | B183: 042|Db4 | C183: 160|E5 | D183: 158 | E183: Bb4 | F183: Bb5 | G183: A5 | H183: G#5 | I183: - | J183: 0 | K183: 2 | L183: 3.5 | M183: 4 | N183: 8
A184: 158|D3 | B184: 157|C3 | D184: 158 | E184: D3 | F184: Eb3 | G184: C3 | H184: D3 | I184: Eb3 | J184: - | K184: 0 | L184: 0.75 | M184: 1 | N184: 1.75 | O184: 2 | P184: 4
A185: 159|E3 | B185: 158|D3 | C185: 160|A2 | D185: 159 | E185: E3 | F185: F3 | G185: D3 | H185: E3 | I185: E3 | J185: F3 | K185: D3 | L185: E3 | M185: A2 | N185: - | O185: 0 | P185: 0.75 | Q185: 1 | R185: 1.75 | S185: 2 | T185: 2.75 | U185: 3 | V185: 3.75 | W185: 4 | X185: 6
A186: 160|A2 | B186: 046|D4 | C186: 161|Bb3 | D186: 160 | E186: A2 | F186: C4 | G186: Bb3 | H186: - | I186: 0 | J186: 2 | K186: 4 | L186: 6
A187: 160|E5 | B187: 082|G4 | D187: 160 | E187: E5 | F187: E5 | G187: E5 | H187: G#4 | I187: - | J187: 0 | K187: 3 | L187: 4 | M187: 6 | N187: 7
A188: 161|A4 | B188: 050|Eb3 | C188: 164|E5 | D188: 161 | E188: A4 | F188: Bb4 | G188: F5 | H188: E5 | I188: D5 | J188: D5 | K188: C#5 | L188: C5 | M188: - | N188: 3 | O188: 4 | P188: 5 | Q188: 6 | R188: 7 | S188: 8 | T188: 9 | U188: 10 | V188: 12
A189: 161|Bb3 | B189: 157|C6 | C189: 164|A3 | D189: 161 | E189: Bb3 | F189: Bb2 | G189: A2 | H189: G#2 | I189: - | J189: 0 | K189: 2 | L189: 3.5 | M189: 4 | N189: 6.75
A190: 164|A3 | B190: 149|D3 | C190: 165|Bb2 | D190: 164 | E190: A3 | F190: A2 | G190: Bb2 | H190: - | I190: 0 | J190: 2 | K190: 4 | L190: 6
A191: 164|E5 | B191: 053|G3 | C191: 166|D5 | D191: 164 | E191: E5 | F191: C6 | G191: B5 | H191: A5 | I191: G#5 | J191: - | K191: 0 | L191: 2 | M191: 3.5 | N191: 4 | O191: 6 | P191: 8
A192: 165|Bb2 | B192: 160|A2 | C192: 166|B3 | D192: 165 | E192: Bb2 | F192: D4 | G192: C4 | H192: B3 | I192: - | J192: 0 | K192: 2 | L192: 3.5 | M192: 4 | N192: 6
A193: 166|B3 | B193: 164|A3 | C193: 167|C3 | D193: 166 | E193: B3 | F193: B2 | G193: C3 | H193: - | I193: 0 | J193: 2 | K193: 4 | L193: 5
A194: 166|D5 | B194: 055|F3 | C194: 168|E5 | D194: 166 | E194: D5 | F194: E5 | G194: F5 | H194: G5 | I194: F5 | J194: E5 | K194: - | L194: 0 | M194: 1 | N194: 2 | O194: 3 | P194: 4 | Q194: 6 | R194: 8
A195: 167|C3 | B195: 085|A1 | D195: 167 | E195: C3 | F195: D3 | G195: C3 | H195: Bb2 | I195: A2 | J195: - | K195: 0 | L195: 1 | M195: 2 | N195: 3 | O195: 4 | P195: 8
A196: 168|A3 | B196: 083|F2 | C196: 170|B3 | D196: 168 | E196: A3 | F196: A4 | G196: G4 | H196: F4 | I196: - | J196: 0 | K196: 2 | L196: 3.5 | M196: 4 | N196: 8
A197: 168|E5 | B197: 082|G4,084|F4 | C197: 172|E5,172|E4 | D197: 168 | E197: E5 | F197: E5 | G197: E5 | H197: F5 | I197: E5 | J197: D5 | K197: B4 | L197: - | M197: 0 | N197: 3 | O197: 4 | P197: 5 | Q197: 6 | R197: 7 | S197: 8 | T197: 13
A198: 169|Bb2 | B198: 168|A3 | C198: 170|A3 | D198: 169 | E198: Bb2 | F198: C4 | G198: Bb3 | H198: A3 | I198: - | J198: 0 | K198: 2 | L198: 3.5 | M198: 4 | N198: 6
A199: 170|A3 | B199: 166|B3 | C199: 172|C3 | D199: 170 | E199: A3 | F199: A2 | G199: Bb2 | H199: - | I199: 0 | J199: 2 | K199: 4 | L199: 7
A200: 170|B3 | B200: 168|A3 | C200: 172|E5,172|E4 | D200: 170 | E200: B3 | F200: B4 | G200: A4 | H200: G4 | I200: - | J200: 0 | K200: 2 | L200: 3.5 | M200: 4 | N200: 8
... 928 more rows

Sheet Vertices
B1: Visual Properties | H1: Labels | L1: Layout | R1: Graph Metrics | AA1: Do Not Edit
A2: Vertex | B2: Color | C2: Shape | D2: Size | E2: Opacity | F2: Image File | G2: Visibility | H2: Label | I2: Label Fill Color | J2: Label Position | K2: Tooltip | L2: Layout Order | M2: X | N2: Y | O2: Locked? | P2: Polar R | Q2: Polar Angle | R2: Degree | S2: In-Degree | T2: Out-Degree | U2: Betweenness Centrality | V2: Closeness Centrality | W2: Eigenvector Centrality | X2: PageRank | Y2: Clustering Coefficient | Z2: Reciprocated Vertex Pair Ratio | AA2: ID | AB2: Dynamic Filter | AC2: Type | AD2: Strong Component | AE2: Role | AF2: Family | AG2: Type Region | AH2: Process | AI2: Onset | AJ2: Offset
A3: 003|C5 | B3: 0, 12, 96 | G3: Show | H3: 003|C5 | AA3: 3 | AC3: 1.1 | AE3: Source | AF3: S1 | AG3: 1.1.1 | AH3: Ait | AI3: 3 | AJ3: 4.25
A4: 004|B5 | B4: 0, 136, 227 | G4: Show | H4: 004|B5 | AA4: 4 | AC4: 1.11 | AE4: Source | AF4: S2 | AG4: 1.11.1 | AH4: Ait | AI4: 4.25 | AJ4: 5
A5: 005|Eb6 | B5: 0, 100, 50 | G5: Show | H5: 005|Eb6 | AA5: 5 | AC5: 1.2 | AE5: Source | AF5: S3 | AG5: 1.20.1 | AH5: Ait | AI5: 5 | AJ5: 6.25
A6: 005|Ab6 | B6: 0, 176, 22 | G6: Show | H6: 005|Ab6 | AA6: 6 | AC6: 1.17 | AE6: Source | AF6: S4 | AG6: 1.17.1 | AH6: Ait | AI6: 5.5 | AJ6: 7.5
A7: 007|F6 | B7: 191, 0, 0 | G7: Show | H7: 007|F6 | AA7: 7 | AC7: 1.128 | AF7: S4 | AG7: 1.128.1 | AH7: Ait | AI7: 7.5 | AJ7: 9
A8: 009|A2 | B8: 230, 120, 0 | G8: Show | H8: 009|A2 | AA8: 8 | AC8: 1.18 | AE8: Source | AF8: S6 | AG8: 1.180.1 | AH8: At | AI8: 9 | AJ8: 10.9375
A9: 009|A4 | B9: 0, 100, 50 | G9: Show | H9: 009|A4 | AA9: 9 | AC9: 1.2 | AF9: S3 | AG9: 1.20.1 | AH9: C | AI9: 9 | AJ9: 10.25
A10: 009|C#5 | B10: 255, 191, 0 | G10: Show | H10: 009|C#5 | AA10: 10 | AC10: 1.3 | AE10: Source | AF10: S5 | AG10: 1.3.1 | AH10: At | AI10: 9 | AJ10: 13
A11: 009|D5 | B11: 150, 200, 0 | G11: Show | H11: 009|D5 | AA11: 11 | AC11: 1.42 | AF11: S4 | AG11: 1.42.1 | AH11: Ait | AI11: 9.5 | AJ11: 11.375
A12: 010|A2 | B12: 230, 120, 0 | G12: Show | H12: 010|A2 | AA12: 12 | AC12: 1.18 | AF12: S6 | AG12: 1.180.1 | AH12: Ai | AI12: 10.9375 | AJ12: 11.9375
A13: 011|D#4 | B13: 0, 100, 50 | G13: Show | H13: 011|D#4 | AA13: 13 | AC13: 1.2 | AF13: S3 | AG13: 1.20.1 | AI13: 11 | AJ13: 11.75
A14: 011|B4 | B14: 200, 0, 120 | G14: Show | H14: 011|B4 | AA14: 14 | AC14: 1.12 | AF14: S4 | AG14: 1.12.1 | AH14: Ait | AI14: 11.5 | AJ14: 13.5
A15: 011|A2 | B15: 77, 0, 96 | G15: Show | H15: 011|A2 | AA15: 15 | AC15: 2.1 | AF15: S6 | AG15: 2.1.1 | AH15: At | AI15: 11.9375 | AJ15: 14.25
A16: 013|C3 | B16: 91, 0, 191 | G16: Show | H16: 013|C3 | AA16: 16 | AC16: 1.7 | AF16: S4 | AG16: 1.7.1 | AH16: At | AI16: 13 | AJ16: 16.5
A17: 016|A1 | B17: 0, 12, 96 | G17: Show | H17: 016|A1 | AA17: 17 | AC17: 1.1 | AF17: S1 | AG17: 1.1.1 | AH17: C | AI17: 16 | AJ17: 17
A18: 017|B2 | B18: 0, 100, 50 | G18: Show | H18: 017|B2 | AA18: 18 | AC18: 1.2 | AF18: S3 | AG18: 1.20.1 | AH18: Ai | AI18: 17 | AJ18: 18
A19: 018|B2(1) | B19: 0, 100, 50 | G19: Show | H19: 018|B2(1) | AA19: 19 | AC19: 1.2 | AF19: S3 | AG19: 1.20.1 | AH19: Ai | AI19: 18 | AJ19: 18.5
A20: 018|B2(2) | B20: 0, 100, 50 | G20: Show | H20: 018|B2(2) | AA20: 20 | AC20: 1.2 | AF20: S3 | AG20: 1.20.1 | AI20: 18.5 | AJ20: 19
A21: 019|B2 | B21: 0, 100, 50 | G21: Show | H21: 019|B2 | AA21: 21 | AC21: 1.2 | AF21: S3 | AG21: 1.20.1 | AI21: 19 | AJ21: 20
A22: 019|D#3 | B22: 0, 98, 130 | G22: Show | H22: 019|D#3 | AA22: 22 | AC22: 1.6 | AE22: Source | AF22: S7 | AG22: 1.6.1 | AH22: At | AI22: 19.875 | AJ22: 22
A23: 021|A2 | B23: 0, 100, 50 | G23: Show | H23: 021|A2 | AA23: 23 | AC23: 1.2 | AF23: S3 | AG23: 1.20.1 | AH23: Ai | AI23: 21.75 | AJ23: 23
A24: 022|D#3 | B24: 0, 98, 130 | G24: Show | H24: 022|D#3 | AA24: 24 | AC24: 1.6 | AF24: S7 | AG24: 1.6.1 | AH24: C | AI24: 22.875 | AJ24: 25
A25: 024|B2 | B25: 0, 100, 50 | G25: Show | H25: 024|B2 | AA25: 25 | AC25: 1.2 | AF25: S3 | AG25: 1.20.1 | AI25: 24.75 | AJ25: 26
A26: 025|G#4 | B26: 0, 98, 130 | G26: Show | H26: 025|G#4 | AA26: 26 | AC26: 1.6 | AF26: S7 | AG26: 1.6.1 | AH26: C | AI26: 25.875 | AJ26: 26.5
A27: 026|C3(1) | B27: 0, 100, 50 | G27: Show | H27: 026|C3(1) | AA27: 27 | AC27: 1.2 | AF27: S3 | AG27: 1.20.1 | AI27: 26 | AJ27: 26.5
A28: 026|C3(2) | B28: 0, 100, 50 | G28: Show | H28: 026|C3(2) | AA28: 28 | AC28: 1.2 | AF28: S3 | AG28: 1.20.1 | AI28: 26.5 | AJ28: 27
A29: 026|G#4 | B29: 0, 98, 130 | G29: Show | H29: 026|G#4 | AA29: 29 | AC29: 1.6 | AF29: S7 | AG29: 1.6.1 | AI29: 26.75 | AJ29: 29.25
A30: 027|C3 | B30: 0, 100, 50 | G30: Show | H30: 027|C3 | AA30: 30 | AC30: 1.2 | AF30: S3 | AG30: 1.20.1 | AI30: 27 | AJ30: 28.25
A31: 027|A1 | B31: 0, 100, 50 | G31: Show | H31: 027|A1 | AA31: 31 | AC31: 1.2 | AF31: S3 | AG31: 1.20.1 | AI31: 27.75 | AJ31: 31
A32: 030|C3 | B32: 0, 100, 50 | G32: Show | H32: 030|C3 | AA32: 32 | AC32: 1.2 | AF32: S3 | AG32: 1.20.1 | AI32: 30.75 | AJ32: 31.75
A33: 031|C3 | B33: 0, 15, 115 | G33: Show | H33: 031|C3 | AA33: 33 | AC33: 1.141 | AE33: Source | AF33: S8 | AG33: 1.141.1 | AH33: Ait | AI33: 31.75 | AJ33: 32.75
A34: 032|A3 | B34: 0, 100, 50 | G34: Show | H34: 032|A3 | AA34: 34 | AC34: 1.2 | AF34: S3 | AG34: 1.20.1 | AH34: Ai | AI34: 32.75 | AJ34: 33.625
A35: 033|B3 | B35: 0, 142, 238 | G35: Show | H35: 033|B3 | AA35: 35 | AC35: 1.122 | AF35: S3 | AG35: 1.122.1 | AH35: Ait | AI35: 33.625 | AJ35: 35.625
A36: 034|B2 | B36: 0, 119, 60 | G36: Show | H36: 034|B2 | AA36: 36 | AC36: 3.1 | AE36: Source | AF36: S9 | AG36: 3.1.1 | AH36: Ait | AI36: 34 | AJ36: 35.5
A37: 035|D4 | B37: 0, 191, 24 | G37: Show | H37: 035|D4 | AA37: 37 | AC37: 1.4 | AE37: S Epiphany | AF37: 7.1.1 | AG37: 1.4.1 | AH37: Ait | AI37: 35.625 | AJ37: 37.625
A38: 037|E4 | B38: 204, 0, 0 | G38: Show | H38: 037|E4 | AA38: 38 | AC38: 1.5 | AF38: 7.1.1 | AG38: 1.5.1 | AH38: Ait | AI38: 37.625 | AJ38: 41
A39: 039|A3(1) | B39: 0, 100, 50 | G39: Show | H39: 039|A3(1) | AA39: 39 | AC39: 1.2 | AF39: S3 | AG39: 1.20.1 | AH39: Ai | AI39: 39.5 | AJ39: 39.9375
A40: 039|A3(2) | B40: 240, 126, 0 | G40: Show | H40: 039|A3(2) | AA40: 40 | AC40: 1.20a | AF40: S3 | AG40: 1.20a.1 | AH40: Ait | AI40: 39.9375 | AJ40: 40.5
A41: 040|Bb3 | B41: 0, 100, 50 | G41: Show | H41: 040|Bb3 | AA41: 41 | AC41: 1.2 | AF41: S3 | AG41: 1.20.1 | AH41: At | AI41: 40.5 | AJ41: 41
A42: 041|C3 | B42: 0, 100, 50 | G42: Show | H42: 041|C3 | AA42: 42 | AC42: 1.2 | AF42: S3 | AG42: 1.20.1 | AH42: C | AI42: 41 | AJ42: 41.75
A43: 042|C5 | B43: 0, 100, 50 | G43: Show | H43: 042|C5 | AA43: 43 | AC43: 1.2 | AF43: S3 | AG43: 1.20.1 | AI43: 42 | AJ43: 42.375
A44: 042|F#4 | B44: 0, 98, 130 | G44: Show | H44: 042|F#4 | AA44: 44 | AC44: 1.6 | AF44: S7 | AG44: 1.6.1 | AI44: 42.375 | AJ44: 43.5
A45: 042|Db4 | B45: 0, 100, 50 | G45: Show | H45: 042|Db4 | AA45: 45 | AC45: 1.2 | AE45: S Epiphany | AF45: 5.1.1 | AG45: 1.2.1 | AH45: At | AI45: 42.5 | AJ45: 43.25
A46: 043|Bb4 | B46: 0, 100, 50 | G46: Show | H46: 043|Bb4 | AA46: 46 | AC46: 1.2 | AF46: 5.1.1 | AG46: 1.2.1 | AH46: C | AI46: 43 | AJ46: 44
A47: 044|C#3 | B47: 0, 100, 50 | G47: Show | H47: 044|C#3 | AA47: 47 | AC47: 1.2 | AF47: S3 | AG47: 1.20.1 | AI47: 44 | AJ47: 44.75
A48: 045|C5 | B48: 0, 100, 50 | G48: Show | H48: 045|C5 | AA48: 48 | AC48: 1.2 | AF48: S3 | AG48: 1.20.1 | AI48: 45.5 | AJ48: 45.875
A49: 045|G#4 | B49: 0, 98, 130 | G49: Show | H49: 045|G#4 | AA49: 49 | AC49: 1.6 | AF49: S7 | AG49: 1.6.1 | AI49: 45.875 | AJ49: 47.25
A50: 046|D4 | B50: 0, 100, 50 | G50: Show | H50: 046|D4 | AA50: 50 | AC50: 1.2 | AF50: 5.1.1 | AG50: 1.2.1 | AH50: C | AI50: 46 | AJ50: 46.75
A51: 046|Eb5 | B51: 0, 100, 50 | G51: Show | H51: 046|Eb5 | AA51: 51 | AC51: 1.2 | AF51: 5.1.1 | AG51: 1.2.1 | AI51: 46.5 | AJ51: 48
A52: 047|F#2 | B52: 0, 100, 50 | G52: Show | H52: 047|F#2 | AA52: 52 | AC52: 1.2 | AF52: S3 | AG52: 1.20.1 | AI52: 47.5 | AJ52: 48
A53: 049|G3 | B53: 255, 194, 11 | G53: Show | H53: 049|G3 | AA53: 53 | AC53: 1.8 | AE53: Source | AF53: S10 | AG53: 1.8.1 | AH53: At | AI53: 49 | AJ53: 50.75
A54: 050|Eb3 | B54: 159, 213, 0 | G54: Show | H54: 050|Eb3 | AA54: 54 | AC54: 1.13 | AE54: Source | AF54: S11 | AG54: 1.13.1 | AH54: Ait | AI54: 50.75 | AJ54: 53
A55: 053|G3 | B55: 213, 0, 128 | G55: Show | H55: 053|G3 | AA55: 55 | AC55: 1.9 | AE55: Source | AF55: S12 | AG55: 1.9.1 | AH55: Ait | AI55: 53 | AJ55: 55
A56: 055|F3 | B56: 0, 12, 96 | G56: Show | H56: 055|F3 | AA56: 56 | AC56: 1.1 | AE56: Source | AF56: S13 | AG56: 1.10.1 | AH56: Ait | AI56: 55 | AJ56: 57
A57: 057|G3 | B57: 255, 194, 11 | G57: Show | H57: 057|G3 | AA57: 57 | AC57: 1.8 | AF57: S10 | AG57: 1.8.1 | AI57: 57 | AJ57: 58.75
A58: 058|Eb3 | B58: 91, 0, 115 | G58: Show | H58: 058|Eb3 | AA58: 58 | AC58: 1.14 | AF58: S11 | AG58: 1.14.1 | AH58: At | AI58: 58.75 | AJ58: 61
A59: 061|F3 | B59: 213, 0, 128 | G59: Show | H59: 061|F3 | AA59: 59 | AC59: 1.9 | AF59: S12 | AG59: 1.9.1 | AI59: 61 | AJ59: 62.75
A60: 062|D4 | B60: 97, 0, 204 | G60: Show | H60: 062|D4 | AA60: 60 | AC60: 1.15 | AF60: S13 | AG60: 1.15.1 | AH60: Ait | AI60: 62.75 | AJ60: 65
A61: 064|C#4 | B61: 0, 98, 130 | G61: Show | H61: 064|C#4 | AA61: 61 | AC61: 1.6 | AF61: S7 | AG61: 1.6.1 | AH61: C | AI61: 64.875 | AJ61: 67.125
A62: 065|B4 | B62: 255, 191, 0 | G62: Show | H62: 065|B4 | AA62: 62 | AC62: 1.3 | AF62: S5 | AG62: 1.3.1 | AI62: 65 | AJ62: 67.125
A63: 065|G2 | B63: 230, 120, 0 | G63: Show | H63: 065|G2 | AA63: 63 | AC63: 1.18 | AF63: S6 | AG63: 1.180.1 | AI63: 65 | AJ63: 66.625
A64: 069|G2 | B64: 0, 111, 147 | G64: Show | H64: 069|G2 | AA64: 64 | AC64: 1.16 | AF64: S9 | AG64: 1.16.1 | AH64: Ait | AI64: 69 | AJ64: 70.75
A65: 070|G2 | B65: 0, 17, 134 | G65: Show | H65: 070|G2 | AA65: 65 | AC65: 4.1 | AF65: S9 | AG65: 4.1.1 | AH65: At | AI65: 70.75 | AJ65: 73.25
A66: 072|D4 | B66: 0, 17, 134 | G66: Show | H66: 072|D4 | AA66: 66 | AC66: 4.1 | AF66: S9 | AG66: 4.1.1 | AI66: 72 | AJ66: 76
A67: 075|Bb4 | B67: 0, 191, 24 | G67: Show | H67: 075|Bb4 | AA67: 67 | AC67: 1.4 | AF67: 7.1.1 | AG67: 1.4.1 | AH67: C | AI67: 75 | AJ67: 76.875
A68: 075|D5 | B68: 0, 151, 251 | G68: Show | H68: 075|D5 | AA68: 68 | AC68: 1.151 | AE68: WI Epiphany | AF68: 7.1.1 | AG68: 1.151.1 | AH68: At | AI68: 75 | AJ68: 78.625
A69: 076|C#4 | B69: 230, 120, 0 | G69: Show | H69: 076|C#4 | AA69: 69 | AC69: 1.18 | AF69: S13 | AG69: 1.18.1 | AH69: At | AI69: 76.875 | AJ69: 78.5
A70: 082|Eb3 | B70: 0, 100, 50 | G70: Show | H70: 082|Eb3 | AA70: 70 | AC70: 1.2 | AF70: 5.1.1 | AG70: 1.2.1 | AH70: C | AI70: 82 | AJ70: 83.5
A71: 082|G4 | B71: 255, 194, 11 | G71: Show | H71: 082|G4 | AA71: 71 | AC71: 1.8 | AF71: S10 | AG71: 1.8.1 | AH71: Ai | AI71: 82 | AJ71: 84
A72: 083|F2 | B72: 0, 100, 50 | G72: Show | H72: 083|F2 | AA72: 72 | AC72: 1.2 | AF72: 5.1.1 | AG72: 1.2.1 | AH72: C | AI72: 83 | AJ72: 84.5
A73: 084|C#3 | B73: 0, 100, 50 | G73: Show | H73: 084|C#3 | AA73: 73 | AC73: 1.2 | AF73: 5.1.1 | AG73: 1.2.1 | AH73: Ai | AI73: 84 | AJ73: 85.25
A74: 084|F4 | B74: 91, 0, 115 | G74: Show | H74: 084|F4 | AA74: 74 | AC74: 1.14 | AF74: S11 | AG74: 1.14.2 | AH74: Ait | AI74: 84 | AJ74: 86
A75: 085|A1 | B75: 91, 0, 115 | G75: Show | H75: 085|A1 | AA75: 75 | AC75: 1.14 | AF75: S11 | AG75: 1.14.2 | AI75: 85 | AJ75: 86.5
A76: 086|Ab3 | B76: 0, 138, 69 | G76: Show | H76: 086|Ab3 | AA76: 76 | AC76: 1.19 | AE76: WE Epiphany | AF76: 5.2.1 | AG76: 1.19.1 | AH76: Ait | AI76: 86 | AJ76: 88
A77: 086|C4 | B77: 0, 100, 50 | G77: Show | H77: 086|C4 | AA77: 77 | AC77: 1.2 | AF77: S3 | AG77: 1.20.1 | AH77: Ai | AI77: 86 | AJ77: 89
A78: 088|Bb3 | B78: 0, 138, 69 | G78: Show | H78: 088|Bb3 | AA78: 78 | AC78: 1.19 | AF78: 5.2.1 | AG78: 1.19.1 | AH78: Ai | AI78: 88 | AJ78: 90.5
A79: 088|Eb4 | B79: 0, 100, 50 | G79: Show | H79: 088|Eb4 | AA79: 79 | AC79: 1.2 | AF79: S3 | AG79: 1.20.1 | AH79: C | AI79: 88 | AJ79: 90.5
A80: 090|Ab2 | B80: 0, 206, 26 | G80: Show | H80: 090|Ab2 | AA80: 80 | AC80: 1.21 | AE80: WE Epiphany | AF80: 23.1.1 | AG80: 1.21.1 | AH80: Ait | AI80: 90 | AJ80: 91.75
A81: 090|Db4 | B81: 0, 191, 24 | G81: Show | H81: 090|Db4 | AA81: 81 | AC81: 1.4 | AF81: 7.1.1 | AG81: 1.4.1 | AH81: Ai | AI81: 90 | AJ81: 92
A82: 092|F4(1) | B82: 0, 191, 24 | G82: Show | H82: 092|F4(1) | AA82: 82 | AC82: 1.4 | AF82: 7.1.1 | AG82: 1.4.1 | AH82: Ai | AI82: 92 | AJ82: 93.75
A83: 092|F4(2) | B83: 219, 0, 0 | G83: Show | H83: 092|F4(2) | AA83: 83 | AC83: 1.22 | AE83: WE Epiphany | AF83: 23.1.2 | AG83: 1.22.1 | AH83: At | AI83: 92 | AJ83: 93.625
A84: 093|F3 | B84: 0, 100, 50 | G84: Show | H84: 093|F3 | AA84: 84 | AC84: 1.2 | AF84: 5.1.1 | AG84: 1.2.1 | AI84: 93 | AJ84: 95
A85: 093|A4 | B85: 0, 142, 238 | G85: Show | H85: 093|A4 | AA85: 85 | AC85: 1.122 | AF85: S3 | AG85: 1.122.1 | AH85: Ai | AI85: 93.625 | AJ85: 97.25
A86: 093|E4 | B86: 0, 100, 50 | G86: Show | H86: 093|E4 | AA86: 86 | AC86: 1.2 | AF86: S3 | AG86: 1.20.1 | AH86: Ai | AI86: 93.75 | AJ86: 95.25
A87: 095|G4 | B87: 253, 133, 0 | G87: Show | H87: 095|G4 | AA87: 87 | AC87: 1.23 | AF87: S3 | AG87: 1.23.1 | AH87: At | AI87: 95.25 | AJ87: 98
A88: 095|F#4 | B88: 0, 98, 130 | G88: Show | H88: 095|F#4 | AA88: 88 | AC88: 1.6 | AF88: S7 | AG88: 1.6.1 | AH88: Ai | AI88: 95.875 | AJ88: 97.25
A89: 096|E5 | B89: 255, 191, 0 | G89: Show | H89: 096|E5 | AA89: 89 | AC89: 1.3 | AF89: S5 | AG89: 1.3.1 | AH89: Ai | AI89: 96 | AJ89: 98
A90: 097|C2 | B90: 0, 100, 50 | G90: Show | H90: 097|C2 | AA90: 90 | AC90: 1.2 | AF90: S3 | AG90: 1.20.1 | AH90: Ai | AI90: 97.75 | AJ90: 99.75
A91: 099|F#3 | B91: 0, 98, 130 | G91: Show | H91: 099|F#3 | AA91: 91 | AC91: 1.6 | AF91: S7 | AG91: 1.6.1 | AH91: C | AI91: 99.75 | AJ91: 100.25
A92: 100|F#3(1) | B92: 0, 98, 130 | G92: Show | H92: 100|F#3(1) | AA92: 92 | AC92: 1.6 | AF92: S7 | AG92: 1.6.1 | AH92: Ai | AI92: 100.25 | AJ92: 100.75
A93: 100|F#3(2) | B93: 255, 197, 21 | G93: Show | H93: 100|F#3(2) | AA93: 93 | AC93: 1.24 | AE93: S Epiphany | AF93: 4.1.1 | AG93: 1.24.1 | AH93: Ait | AI93: 100.75 | AJ93: 101.5
A94: 101|B2 | B94: 0, 98, 130 | G94: Show | H94: 101|B2 | AA94: 94 | AC94: 1.6 | AF94: S7 | AG94: 1.6.1 | AH94: C | AI94: 101.75 | AJ94: 102.25
A95: 101|F#3 | B95: 0, 98, 130 | G95: Show | H95: 101|F#3 | AA95: 95 | AC95: 1.6 | AF95: S7 | AG95: 1.6.1 | AH95: C | AI95: 101.75 | AJ95: 102.25
A96: 102|F#2 | B96: 0, 98, 130 | G96: Show | H96: 102|F#2 | AA96: 96 | AC96: 1.6 | AF96: S7 | AG96: 1.6.1 | AI96: 102.25 | AJ96: 102.75
A97: 102|F#3(1) | B97: 0, 98, 130 | G97: Show | H97: 102|F#3(1) | AA97: 97 | AC97: 1.6 | AE97: WI Epiphany | AF97: S7 | AG97: 1.6.1 | AH97: Ai | AI97: 102.25 | AJ97: 102.75
A98: 102|D2 | B98: 0, 98, 130 | G98: Show | H98: 102|D2 | AA98: 98 | AC98: 1.6 | AF98: S7 | AG98: 1.6.1 | AI98: 102.75 | AJ98: 103.5
A99: 102|F#3(2) | B99: 171, 227, 0 | G99: Show | H99: 102|F#3(2) | AA99: 99 | AC99: 1.25 | AE99: WE Epiphany | AF99: 4.2.1 | AG99: 1.25.1 | AH99: Ait | AI99: 102.75 | AJ99: 103.5
A100: 103|C3 | B100: 0, 100, 50 | G100: Show | H100: 103|C3 | AA100: 100 | AC100: 1.2 | AF100: S3 | AG100: 1.20.1 | AH100: C | AI100: 103.75 | AJ100: 105.75
A101: 104|C5 | B101: 227, 0, 136 | G101: Show | H101: 104|C5 | AA101: 101 | AC101: 1.26 | AF101: 4.2.1 | AG101: 1.26.1 | AH101: At | AI101: 104.5 | AJ101: 105
A102: 105|B4 | B102: 227, 0, 136 | G102: Show | H102: 105|B4 | AA102: 102 | AC102: 1.26 | AF102: 4.2.1 | AG102: 1.26.1 | AH102: C | AI102: 105.5 | AJ102: 106
A103: 105|C4 | B103: 0, 100, 50 | G103: Show | H103: 105|C4 | AA103: 103 | AC103: 1.2 | AF103: S3 | AG103: 1.20.1 | AH103: C | AI103: 105.75 | AJ103: 106.75
A104: 106|Bb4 | B104: 227, 0, 136 | G104: Show | H104: 106|Bb4 | AA104: 104 | AC104: 1.26 | AF104: 4.2.1 | AG104: 1.26.1 | AH104: C | AI104: 106.5 | AJ104: 107
A105: 106|C5 | B105: 0, 100, 50 | G105: Show | H105: 106|C5 | AA105: 105 | AC105: 1.2 | AF105: S3 | AG105: 1.20.1 | AH105: Ai | AI105: 106.75 | AJ105: 107.9375
A106: 107|A4 | B106: 227, 0, 136 | G106: Show | H106: 107|A4 | AA106: 106 | AC106: 1.26 | AF106: 4.2.1 | AG106: 1.26.1 | AH106: C | AI106: 107.25 | AJ106: 107.75
A107: 107|Ab4 | B107: 227, 0, 136 | G107: Show | H107: 107|Ab4 | AA107: 107 | AC107: 1.26 | AF107: 4.2.1 | AG107: 1.26.1 | AH107: C | AI107: 107.75 | AJ107: 108.25
A108: 107|D5(1) | B108: 0, 98, 130 | G108: Show | H108: 107|D5(1) | AA108: 108 | AC108: 1.6 | AF108: S7 | AG108: 1.6.1 | AH108: C | AI108: 107.75 | AJ108: 108.25
A109: 107|D5(2) | B109: 107, 0, 134 | G109: Show | H109: 107|D5(2) | AA109: 109 | AC109: 1.96 | AF109: S3 | AG109: 1.96.1 | AH109: Ait | AI109: 107.9375 | AJ109: 110
A110: 108|G4 | B110: 227, 0, 136 | G110: Show | H110: 108|G4 | AA110: 110 | AC110: 1.26 | AE110: WI Epiphany | AF110: 4.2.1 | AG110: 1.26.1 | AI110: 108.25 | AJ110: 108.75
A111: 108|Ab4 | B111: 227, 0, 136 | G111: Show | H111: 108|Ab4 | AA111: 111 | AC111: 1.26 | AF111: 4.2.1 | AG111: 1.26.1 | AH111: C | AI111: 108.75 | AJ111: 109.25
A112: 108|D#5 | B112: 0, 98, 130 | G112: Show | H112: 108|D#5 | AA112: 112 | AC112: 1.6 | AF112: S7 | AG112: 1.6.1 | AI112: 108.75 | AJ112: 109.25
A113: 109|G4 | B113: 227, 0, 136 | G113: Show | H113: 109|G4 | AA113: 113 | AC113: 1.26 | AF113: 4.2.1 | AG113: 1.26.1 | AI113: 109.25 | AJ113: 109.75
A114: 109|Ab4 | B114: 227, 0, 136 | G114: Show | H114: 109|Ab4 | AA114: 114 | AC114: 1.26 | AF114: 4.2.1 | AG114: 1.26.1 | AH114: Ai | AI114: 109.75 | AJ114: 110.5
A115: 109|D5 | B115: 0, 98, 130 | G115: Show | H115: 109|D5 | AA115: 115 | AC115: 1.6 | AF115: S7 | AG115: 1.6.1 | AH115: C | AI115: 109.75 | AJ115: 110.25
A116: 110|E#5 | B116: 0, 98, 130 | G116: Show | H116: 110|E#5 | AA116: 116 | AC116: 1.6 | AF116: S7 | AG116: 1.6.1 | AH116: C | AI116: 110.25 | AJ116: 110.75
A117: 110|D#5 | B117: 0, 98, 130 | G117: Show | H117: 110|D#5 | AA117: 117 | AC117: 1.6 | AE117: WI Epiphany | AF117: S7 | AG117: 1.6.1 | AI117: 110.75 | AJ117: 111.25
A118: 111|E#5 | B118: 0, 98, 130 | G118: Show | H118: 111|E#5 | AA118: 118 | AC118: 1.6 | AF118: S7 | AG118: 1.6.1 | AH118: C | AI118: 111.25 | AJ118: 111.75
A119: 111|Fx5 | B119: 0, 98, 130 | G119: Show | H119: 111|Fx5 | AA119: 119 | AC119: 1.6 | AF119: S7 | AG119: 1.6.1 | AH119: C | AI119: 111.75 | AJ119: 112.25
A120: 112|Ab4(1) | B120: 104, 0, 219 | G120: Show | H120: 112|Ab4(1) | AA120: 120 | AC120: 1.27 | AF120: 4.2.1 | AG120: 1.27.1 | AH120: Ait | AI120: 112 | AJ120: 112.9375
A121: 112|Fx5(1) | B121: 0, 98, 130 | G121: Show | H121: 112|Fx5(1) | AA121: 121 | AC121: 1.6 | AF121: S7 | AG121: 1.6.1 | AH121: C | AI121: 112 | AJ121: 112.5
A122: 112|Fx5(2) | B122: 0, 98, 130 | G122: Show | H122: 112|Fx5(2) | AA122: 122 | AC122: 1.6 | AF122: S7 | AG122: 1.6.1 | AH122: C | AI122: 112.25 | AJ122: 112.75
A123: 112|Fx5(3) | B123: 0, 98, 130 | G123: Show | H123: 112|Fx5(3) | AA123: 123 | AC123: 1.6 | AF123: S7 | AG123: 1.6.1 | AH123: Ai | AI123: 112.5 | AJ123: 113
A124: 112|G#5 | B124: 0, 123, 164 | G124: Show | H124: 112|G#5 | AA124: 124 | AC124: 1.97 | AE124: S Epiphany | AF124: 4.1.2 | AG124: 1.97.1 | AH124: Ait | AI124: 112.75 | AJ124: 113.9375
A125: 112|Ab4(2) | B125: 0, 19, 153 | G125: Show | H125: 112|Ab4(2) | AA125: 125 | AC125: 5.1 | AE125: WE Epiphany | AF125: 4.3.1 | AG125: 5.1.1 | AH125: Ait | AI125: 112.9375 | AJ125: 113.875
A126: 113|G#5 | B126: 9, 156, 255 | G126: Show | H126: 113|G#5 | AA126: 126 | AC126: 1.28 | AE126: WE Epiphany | AF126: 4.2.2 | AG126: 1.28.1 | AH126: At | AI126: 113.75 | AJ126: 114.5
A127: 114|E4 | B127: 0, 100, 50 | G127: Show | H127: 114|E4 | AA127: 127 | AC127: 1.2 | AE127: WI Epiphany | AF127: S3 | AG127: 1.20.1 | AH127: C | AI127: 114 | AJ127: 115.75
A128: 115|C4 | B128: 0, 98, 130 | G128: Show | H128: 115|C4 | AA128: 128 | AC128: 1.6 | AF128: S7 | AG128: 1.6.1 | AH128: C | AI128: 115.75 | AJ128: 116.1875
A129: 116|B4 | B129: 0, 100, 50 | G129: Show | H129: 116|B4 | AA129: 129 | AC129: 1.2 | AF129: S3 | AG129: 1.20.1 | AH129: Ai | AI129: 116 | AJ129: 117.75
A130: 117|D#5 | B130: 9, 156, 255 | G130: Show | H130: 117|D#5 | AA130: 130 | AC130: 1.28 | AF130: 4.2.2 | AG130: 1.28.1 | AH130: C | AI130: 117.75 | AJ130: 118.5
A131: 118|E4 | B131: 0, 111, 147 | G131: Show | H131: 118|E4 | AA131: 131 | AC131: 1.16 | AF131: S9 | AG131: 1.16.1 | AH131: Ai | AI131: 118 | AJ131: 119.75
A132: 118|G3 | B132: 0, 157, 79 | G132: Show | H132: 118|G3 | AA132: 132 | AC132: 1.29 | AE132: S Epiphany | AF132: 3.1.1 | AG132: 1.29.1 | AH132: At | AI132: 118 | AJ132: 119.75
A133: 119|E4 | B133: 0, 17, 134 | G133: Show | H133: 119|E4 | AA133: 133 | AC133: 4.1 | AF133: S9 | AG133: 4.1.1 | AH133: C | AI133: 119.75 | AJ133: 121.75
A134: 121|D4 | B134: 0, 100, 50 | G134: Show | H134: 121|D4 | AA134: 134 | AC134: 1.2 | AF134: S3 | AG134: 1.20.1 | AH134: C | AI134: 121.75 | AJ134: 123.75
A135: 121|E5 | B135: 9, 156, 255 | G135: Show | H135: 121|E5 | AA135: 135 | AC135: 1.28 | AF135: 4.2.2 | AG135: 1.28.1 | AH135: C | AI135: 121.75 | AJ135: 122.75
A136: 122|E5 | B136: 9, 156, 255 | G136: Show | H136: 122|E5 | AA136: 136 | AC136: 1.28 | AF136: 4.2.2 | AG136: 1.28.1 | AI136: 122.75 | AJ136: 123.75
A137: 123|F6 | B137: 255, 191, 0 | G137: Show | H137: 123|F6 | AA137: 137 | AC137: 1.3 | AE137: Source | AF137: S14 | AG137: 1.30.1 | AH137: Ait | AI137: 123.75 | AJ137: 124.75
A138: 123|G#3 | B138: 9, 156, 255 | G138: Show | H138: 123|G#3 | AA138: 138 | AC138: 1.28 | AF138: 4.2.2 | AG138: 1.28.1 | AH138: C | AI138: 123.75 | AJ138: 124.5
A139: 124|A4 | B139: 0, 111, 147 | G139: Show | H139: 124|A4 | AA139: 139 | AC139: 1.16 | AF139: S9 | AG139: 1.16.1 | AH139: Ai | AI139: 124 | AJ139: 125.75
A140: 124|D4 | B140: 0, 12, 96 | G140: Show | H140: 124|D4 | AA140: 140 | AC140: 1.1 | AF140: S1 | AG140: 1.1.1 | AI140: 124 | AJ140: 125
A141: 124|A5 | B141: 0, 221, 28 | G141: Show | H141: 124|A5 | AA141: 141 | AC141: 1.31 | AE141: S Epiphany | AF141: 6.1.1 | AG141: 1.31.1 | AH141: At | AI141: 124.75 | AJ141: 125.75
A142: 125|E5 | B142: 0, 100, 50 | G142: Show | H142: 125|E5 | AA142: 142 | AC142: 1.2 | AF142: S3 | AG142: 1.20.1 | AI142: 125 | AJ142: 125.75
A143: 125|G#4 | B143: 9, 156, 255 | G143: Show | H143: 125|G#4 | AA143: 143 | AC143: 1.28 | AE143: WI Epiphany | AF143: 4.2.2 | AG143: 1.28.1 | AH143: C | AI143: 125.75 | AJ143: 126.5
A144: 126|D6 | B144: 0, 100, 50 | G144: Show | H144: 126|D6 | AA144: 144 | AC144: 1.2 | AF144: S3 | AG144: 1.20.1 | AI144: 126 | AJ144: 127.75
A145: 127|C#5 | B145: 9, 156, 255 | G145: Show | H145: 127|C#5 | AA145: 145 | AC145: 1.28 | AF145: 4.2.2 | AG145: 1.28.1 | AH145: C | AI145: 127.75 | AJ145: 128.25
A146: 128|Bb5 | B146: 0, 100, 50 | G146: Show | H146: 128|Bb5 | AA146: 146 | AC146: 1.2 | AF146: 5.1.1 | AG146: 1.2.1 | AH146: Ai | AI146: 128 | AJ146: 128.75
A147: 128|A5 | B147: 0, 100, 50 | G147: Show | H147: 128|A5 | AA147: 147 | AC147: 1.2 | AF147: S3 | AG147: 1.20.1 | AH147: Ai | AI147: 128.75 | AJ147: 129.75
A148: 129|A#4 | B148: 9, 156, 255 | G148: Show | H148: 129|A#4 | AA148: 148 | AC148: 1.28 | AF148: 4.2.2 | AG148: 1.28.1 | AI148: 129.75 | AJ148: 130.1875
A149: 129|F#4 | B149: 0, 100, 50 | G149: Show | H149: 129|F#4 | AA149: 149 | AC149: 1.2 | AF149: S3 | AG149: 1.20.1 | AI149: 129.75 | AJ149: 131.25
A150: 129|G#3 | B150: 0, 98, 130 | G150: Show | H150: 129|G#3 | AA150: 150 | AC150: 1.6 | AF150: S7 | AG150: 1.6.1 | AI150: 129.75 | AJ150: 130.25
A151: 130|G#5 | B151: 0, 100, 50 | G151: Show | H151: 130|G#5 | AA151: 151 | AC151: 1.2 | AF151: S3 | AG151: 1.20.1 | AH151: C | AI151: 130 | AJ151: 130.4375
A152: 130|G#3(1) | B152: 0, 98, 130 | G152: Show | H152: 130|G#3(1) | AA152: 152 | AC152: 1.6 | AF152: S7 | AG152: 1.6.1 | AI152: 130.25 | AJ152: 130.75
A153: 130|F#5(1) | B153: 0, 100, 50 | G153: Show | H153: 130|F#5(1) | AA153: 153 | AC153: 1.2 | AE153: WI Epiphany | AF153: S3 | AG153: 1.20.1 | AH153: Ait | AI153: 130.4375 | AJ153: 130.9375
A154: 130|G#3(2) | B154: 0, 98, 130 | G154: Show | H154: 130|G#3(2) | AA154: 154 | AC154: 1.6 | AF154: S7 | AG154: 1.6.1 | AI154: 130.75 | AJ154: 131.125
A155: 130|F#5(2) | B155: 234, 0, 0 | G155: Show | H155: 130|F#5(2) | AA155: 155 | AC155: 6.1 | AE155: S Epiphany | AF155: 14.1.1 | AG155: 6.1.1 | AH155: Ait | AI155: 130.9375 | AJ155: 132
A156: 131|E3 | B156: 255, 139, 11 | G156: Show | H156: 131|E3 | AA156: 156 | AC156: 7.1 | AF156: 14.1.1 | AG156: 7.1.1 | AH156: At | AI156: 131 | AJ156: 132
A157: 131|G#5 | B157: 9, 156, 255 | G157: Show | H157: 131|G#5 | AA157: 157 | AC157: 1.28 | AF157: 4.2.2 | AG157: 1.28.1 | AI157: 131.75 | AJ157: 132.5
A158: 132|E4 | B158: 0, 100, 50 | G158: Show | H158: 132|E4 | AA158: 158 | AC158: 1.2 | AF158: S3 | AG158: 1.20.1 | AI158: 132 | AJ158: 133.75
A159: 133|G#5 | B159: 9, 156, 255 | G159: Show | H159: 133|G#5 | AA159: 159 | AC159: 1.28 | AF159: 4.2.2 | AG159: 1.28.1 | AI159: 133.75 | AJ159: 134.1875
A160: 134|A4 | B160: 255, 200, 32 | G160: Show | H160: 134|A4 | AA160: 160 | AC160: 1.32 | AE160: WE Epiphany | AF160: 5.2.2 | AG160: 1.32.1 | AH160: At | AI160: 134 | AJ160: 135.5
A161: 135|A5 | B161: 0, 100, 50 | G161: Show | H161: 135|A5 | AA161: 161 | AC161: 1.2 | AF161: S3 | AG161: 1.20.1 | AI161: 135 | AJ161: 136.75
A162: 136|A4 | B162: 0, 138, 69 | G162: Show | H162: 136|A4 | AA162: 162 | AC162: 1.19 | AF162: 5.2.1 | AG162: 1.19.1 | AH162: C | AI162: 136 | AJ162: 137.75
A163: 136|G5 | B163: 181, 240, 0 | G163: Show | H163: 136|G5 | AA163: 163 | AC163: 1.33 | AF163: 14.1.1 | AG163: 1.33.1 | AH163: Ait | AI163: 136.75 | AJ163: 138.1875
A164: 137|C5 | B164: 240, 0, 145 | G164: Show | H164: 137|C5 | AA164: 164 | AC164: 1.34 | AF164: 14.1.1 | AG164: 1.34.1 | AH164: At | AI164: 137.75 | AJ164: 139.25
A165: 139|A2 | B165: 0, 100, 50 | G165: Show | H165: 139|A2 | AA165: 165 | AC165: 1.2 | AF165: S3 | AG165: 1.20.1 | AH165: C | AI165: 139.75 | AJ165: 142.25
A166: 139|D#5 | B166: 9, 156, 255 | G166: Show | H166: 139|D#5 | AA166: 166 | AC166: 1.28 | AF166: 4.2.2 | AG166: 1.28.1 | AH166: C | AI166: 139.75 | AJ166: 140.25
A167: 140|D#5(1) | B167: 9, 156, 255 | G167: Show | H167: 140|D#5(1) | AA167: 167 | AC167: 1.28 | AF167: 4.2.2 | AG167: 1.28.1 | AI167: 140.25 | AJ167: 140.75
A168: 140|D#5(2) | B168: 9, 156, 255 | G168: Show | H168: 140|D#5(2) | AA168: 168 | AC168: 1.28 | AF168: 4.2.2 | AG168: 1.28.1 | AI168: 140.75 | AJ168: 141.5
A169: 141|E4 | B169: 0, 100, 50 | G169: Show | H169: 141|E4 | AA169: 169 | AC169: 1.2 | AE169: WI Epiphany | AF169: 5.1.1 | AG169: 1.2.1 | AH169: C | AI169: 141 | AJ169: 143
A170: 142|A2 | B170: 0, 100, 50 | G170: Show | H170: 142|A2 | AA170: 170 | AC170: 1.2 | AF170: S3 | AG170: 1.20.1 | AI170: 142.25 | AJ170: 144.1875
A171: 143|G#4 | B171: 0, 12, 96 | G171: Show | H171: 143|G#4 | AA171: 171 | AC171: 1.1 | AF171: S13 | AG171: 1.10.1 | AH171: Ai | AI171: 143 | AJ171: 145
A172: 144|B3 | B172: 0, 100, 50 | G172: Show | H172: 144|B3 | AA172: 172 | AC172: 1.2 | AF172: S3 | AG172: 1.20.1 | AI172: 144.75 | AJ172: 146.1875
A173: 145|E4 | B173: 0, 100, 50 | G173: Show | H173: 145|E4 | AA173: 173 | AC173: 1.2 | AF173: 5.1.1 | AG173: 1.2.1 | AH173: Ai | AI173: 145 | AJ173: 147
A174: 147|E4 | B174: 122, 0, 153 | G174: Show | H174: 147|E4 | AA174: 174 | AC174: 1.35 | AE174: WE Epiphany | AF174: 19.1.1 | AG174: 1.35.1 | AH174: At | AI174: 147 | AJ174: 149
A175: 149|A5 | B175: 255, 194, 11 | G175: Show | H175: 149|A5 | AA175: 175 | AC175: 1.8 | AF175: S10 | AG175: 1.8.1 | AH175: Ai | AI175: 149 | AJ175: 150.75
A176: 149|D3 | B176: 0, 100, 50 | G176: Show | H176: 149|D3 | AA176: 176 | AC176: 1.2 | AF176: 5.1.1 | AG176: 1.2.1 | AI176: 149 | AJ176: 151
A177: 150|F5 | B177: 91, 0, 115 | G177: Show | H177: 150|F5 | AA177: 177 | AC177: 1.14 | AF177: S11 | AG177: 1.14.1 | AI177: 150.75 | AJ177: 153
A178: 151|D4 | B178: 0, 100, 50 | G178: Show | H178: 151|D4 | AA178: 178 | AC178: 1.2 | AF178: 5.1.1 | AG178: 1.2.1 | AI178: 151 | AJ178: 153
A179: 153|G5 | B179: 213, 0, 128 | G179: Show | H179: 153|G5 | AA179: 179 | AC179: 1.9 | AF179: S12 | AG179: 1.9.1 | AI179: 153 | AJ179: 154.75
A180: 154|E6 | B180: 112, 0, 234 | G180: Show | H180: 154|E6 | AA180: 180 | AC180: 8.1 | AF180: S13 | AG180: 8.1.1 | AH180: At | AI180: 154.75 | AJ180: 157.5
A181: 157|C3 | B181: 0, 100, 50 | G181: Show | H181: 157|C3 | AA181: 181 | AC181: 1.2 | AF181: S3 | AG181: 1.20.1 | AI181: 157 | AJ181: 158
A182: 157|C6 | B182: 0, 100, 50 | G182: Show | H182: 157|C6 | AA182: 182 | AC182: 1.2 | AF182: 5.1.1 | AG182: 1.2.1 | AI182: 157 | AJ182: 158.5
A183: 157|E4 | B183: 0, 100, 50 | G183: Show | H183: 157|E4 | AA183: 183 | AC183: 1.2 | AF183: S3 | AG183: 1.20.1 | AI183: 157 | AJ183: 158.5
A184: 158|Bb4 | B184: 0, 100, 50 | G184: Show | H184: 158|Bb4 | AA184: 184 | AC184: 1.2 | AF184: 5.1.1 | AG184: 1.2.1 | AI184: 158 | AJ184: 160
A185: 158|D3 | B185: 0, 100, 50 | G185: Show | H185: 158|D3 | AA185: 185 | AC185: 1.2 | AF185: S3 | AG185: 1.20.1 | AI185: 158 | AJ185: 159
A186: 159|E3 | B186: 0, 100, 50 | G186: Show | H186: 159|E3 | AA186: 186 | AC186: 1.2 | AF186: S3 | AG186: 1.20.1 | AI186: 159 | AJ186: 160.5
A187: 160|A2 | B187: 0, 100, 50 | G187: Show | H187: 160|A2 | AA187: 187 | AC187: 1.2 | AF187: 5.1.1 | AG187: 1.2.1 | AI187: 160 | AJ187: 161.5
A188: 160|E5 | B188: 255, 194, 11 | G188: Show | H188: 160|E5 | AA188: 188 | AC188: 1.8 | AF188: S10 | AG188: 1.8.1 | AI188: 160 | AJ188: 161.75
A189: 161|Bb3 | B189: 0, 100, 50 | G189: Show | H189: 161|Bb3 | AA189: 189 | AC189: 1.2 | AF189: 5.1.1 | AG189: 1.2.1 | AI189: 161 | AJ189: 162.6875
A190: 161|A4 | B190: 0, 137, 183 | G190: Show | H190: 161|A4 | AA190: 190 | AC190: 1.36 | AF190: S11 | AG190: 1.36.1 | AH190: At | AI190: 161.75 | AJ190: 164
A191: 164|A3 | B191: 0, 100, 50 | G191: Show | H191: 164|A3 | AA191: 191 | AC191: 1.2 | AF191: 5.1.1 | AG191: 1.2.1 | AI191: 164 | AJ191: 165.5
A192: 164|E5 | B192: 0, 21, 172 | G192: Show | H192: 164|E5 | AA192: 192 | AC192: 1.37 | AF192: S12 | AG192: 1.37.1 | AH192: At | AI192: 164 | AJ192: 166
A193: 165|Bb2 | B193: 0, 100, 50 | G193: Show | H193: 165|Bb2 | AA193: 193 | AC193: 1.2 | AF193: 5.1.1 | AG193: 1.2.1 | AI193: 165 | AJ193: 166.5
A194: 166|B3 | B194: 0, 100, 50 | G194: Show | H194: 166|B3 | AA194: 194 | AC194: 1.2 | AF194: 5.1.1 | AG194: 1.2.1 | AI194: 166 | AJ194: 167.25
A195: 166|D5 | B195: 0, 12, 96 | G195: Show | H195: 166|D5 | AA195: 195 | AC195: 1.1 | AF195: S13 | AG195: 1.10.1 | AI195: 166 | AJ195: 168
A196: 167|C3 | B196: 91, 0, 115 | G196: Show | H196: 167|C3 | AA196: 196 | AC196: 1.14 | AF196: S11 | AG196: 1.14.2 | AI196: 167 | AJ196: 169
A197: 168|A3 | B197: 0, 100, 50 | G197: Show | H197: 168|A3 | AA197: 197 | AC197: 1.2 | AF197: 5.1.1 | AG197: 1.2.1 | AI197: 168 | AJ197: 170
A198: 168|E5 | B198: 21, 162, 255 | G198: Show | H198: 168|E5 | AA198: 198 | AC198: 1.38 | AE198: S Epiphany | AF198: 1.1.1 | AG198: 1.38.1 | AH198: Ait | AI198: 168 | AJ198: 171.25
A199: 169|Bb2 | B199: 0, 100, 50 | G199: Show | H199: 169|Bb2 | AA199: 199 | AC199: 1.2 | AF199: 5.1.1 | AG199: 1.2.1 | AI199: 169 | AJ199: 170.5
A200: 170|A3 | B200: 0, 100, 50 | G200: Show | H200: 170|A3 | AA200: 200 | AC200: 1.2 | AF200: 5.1.1 | AG200: 1.2.1 | AI200: 170 | AJ200: 171.75
... 929 more rows

Sheet Vertices PivotTable
A3: Row Labels | B3: Count of Family
A4: 1.1.1 | B4: 4
A5: 10.1.1 | B5: 3
A6: 10.2.1 | B6: 5
A7: 11.1.1 | B7: 1
A8: 11.2.1 | B8: 4
A9: 12.1.1 | B9: 1
A10: 13.1.1 | B10: 1
A11: 13.1.2 | B11: 1
A12: 13.2.1 | B12: 2
A13: 14.1.1 | B13: 9
A14: 15.1.1 | B14: 1
A15: 16.1.1 | B15: 18
A16: 16.1.2 | B16: 6
A17: 16.2.1 | B17: 1
A18: 16.2.2 | B18: 6
A19: 16.3.1 | B19: 3
A20: 16.4.1 | B20: 6
A21: 16.4.2 | B21: 2
A22: 16.5.1 | B22: 1
A23: 17.1.1 | B23: 1
A24: 17.2.1 | B24: 1
A25: 18.1.1 | B25: 2
A26: 18.2.1 | B26: 8
A27: 19.1.1 | B27: 4
A28: 2.1.1 | B28: 2
A29: 20.1.1 | B29: 2
A30: 21.1.1 | B30: 36
A31: 21.2.1 | B31: 2
A32: 22.1.1 | B32: 1
A33: 23.1.1 | B33: 7
A34: 23.1.2 | B34: 2
A35: 24.1.1 | B35: 5
A36: 25.1.1 | B36: 8
A37: 26.1.1 | B37: 1
A38: 26.2.1 | B38: 1
A39: 27.1.1 | B39: 1
A40: 27.2.1 | B40: 1
A41: 28.1.1 | B41: 1
A42: 29.1.1 | B42: 21
A43: 29.2.1 | B43: 1
A44: 29.2.2 | B44: 1
A45: 29.3.1 | B45: 21
A46: 3.1.1 | B46: 2
A47: 30.1.1 | B47: 2
A48: 31.1.1 | B48: 4
A49: 31.2.1 | B49: 2
A50: 31.3.1 | B50: 8
A51: 31.4.1 | B51: 3
A52: 31.5.1 | B52: 1
A53: 31.6.1 | B53: 1
A54: 31.6.2 | B54: 4
A55: 31.7.1 | B55: 9
A56: 32.1.1 | B56: 1
A57: 4.1.1 | B57: 1
A58: 4.1.2 | B58: 5
A59: 4.1.3 | B59: 1
A60: 4.1.4 | B60: 2
A61: 4.2.1 | B61: 15
A62: 4.2.2 | B62: 43
A63: 4.3.1 | B63: 1
A64: 4.4.1 | B64: 18
A65: 4.5.1 | B65: 4
A66: 5.1.1 | B66: 169
A67: 5.2.1 | B67: 34
A68: 5.2.2 | B68: 2
A69: 5.2.3 | B69: 1
A70: 5.3.1 | B70: 1
A71: 5.4.1 | B71: 1
A72: 5.5.1 | B72: 1
A73: 6.1.1 | B73: 2
A74: 7.1.1 | B74: 24
A75: 7.1.2 | B75: 1
A76: 7.2.1 | B76: 1
A77: 8.1.1 | B77: 7
A78: 9.1.1 | B78: 20
A79: 9.2.1 | B79: 2
A80: 9.3.1 | B80: 4
A81: S1 | B81: 40
A82: S10 | B82: 9
A83: S11 | B83: 29
A84: S12 | B84: 6
A85: S13 | B85: 9
A86: S14 | B86: 2
A87: S15 | B87: 2
A88: S16 | B88: 2
A89: S17 | B89: 4
A90: S18 | B90: 4
A91: S19 | B91: 4
A92: S2 | B92: 32
A93: S3 | B93: 180
A94: S4 | B94: 15
A95: S5 | B95: 11
A96: S6 | B96: 20
A97: S7 | B97: 90
A98: S8 | B98: 12
A99: S9 | B99: 54
A100: Grand Total | B100: 1127

Sheet Edges
C1: Visual Properties | H1: Labels | K1: Graph Metrics | L1: Do Not Edit
A2: Vertex 1 | B2: Vertex 2 | C2: Color | D2: Width | E2: Style | F2: Opacity | G2: Visibility | H2: Label | I2: Label Text Color | J2: Label Font Size | K2: Reciprocated? | L2: ID | M2: Dynamic Filter | N2: D* | O2: D | P2: S | Q2: T | R2: N+ | S2: N | T2: Thematic Repetition | U2: Progression | V2: Role | W2: CDRE
A3: 003|C5 | B3: 004|B5 | C3: 128, 255, 0 | L3: 3 | P3: 1
A4: 004|B5 | B4: 005|Eb6 | C4: 128, 255, 0 | L4: 4 | P4: 1
A5: 005|Eb6 | B5: 005|Ab6 | C5: 128, 255, 0 | L5: 5 | P5: 1
A6: 005|Ab6 | B6: 007|F6 | C6: 128, 255, 0 | D6: 2 | L6: 6 | N6: 1 | O6: 1 | P6: 1 | R6: 1 | S6: 1 | U6: Y | V6: Developing
A7: 007|F6 | B7: 009|A4 | C7: 128, 255, 0 | L7: 7 | P7: 1
A8: 009|C#5 | B8: 013|C3 | C8: 128, 255, 0 | L8: 8 | P8: 1
A9: 005|Eb6 | B9: 009|A4 | H9: CDR | L9: 9 | N9: 1 | O9: 1 | Q9: 1 | R9: 1 | T9: 005|Eb6-005|Ab6/009|A4-009|D5 | W9: CDR
A10: 009|A4 | B10: 009|D5 | C10: 128, 255, 0 | L10: 10 | P10: 1
A11: 009|A2 | B11: 010|A2 | C11: 128, 255, 0 | H11: E | L11: 11 | N11: 1 | O11: 1 | P11: 1 | Q11: 1 | R11: 1 | U11: Y | W11: E
A12: 005|Ab6 | B12: 009|D5 | D12: 2 | L12: 12 | N12: 1 | O12: 1 | R12: 1 | S12: 1 | T12: 005|Eb6-005|Ab6/009|A4-009|D5 | V12: Developing
A13: 009|D5 | B13: 011|D#4 | C13: 128, 255, 0 | L13: 13 | P13: 1
A14: 010|A2 | B14: 011|A2 | C14: 128, 255, 0 | D14: 2 | L14: 14 | N14: 1 | O14: 1 | P14: 1 | R14: 1 | S14: 1 | U14: Y | V14: x-Developing
A15: 009|A4 | B15: 011|D#4 | H15: R | L15: 15 | N15: 1 | O15: 1 | Q15: 1 | W15: R
A16: 011|D#4 | B16: 011|B4 | C16: 128, 255, 0 | L16: 16 | P16: 1
A17: 007|F6 | B17: 011|B4 | D17: 2 | L17: 17 | N17: 1 | O17: 1 | R17: 1 | S17: 1 | V17: Developing
A18: 011|B4 | B18: 013|C3 | C18: 128, 255, 0 | D18: 2 | L18: 18 | N18: 1 | O18: 1 | P18: 1 | R18: 1 | S18: 1 | U18: Y | V18: Developing
A19: 011|A2 | B19: 016|A1 | C19: 128, 255, 0 | L19: 19 | P19: 1
A20: 013|C3 | B20: 016|A1 | C20: 128, 255, 0 | L20: 20 | P20: 1
A21: 003|C5 | B21: 016|A1 | H21: CDR | L21: 21 | N21: 1 | O21: 1 | Q21: 1 | R21: 1 | W21: CDR
A22: 016|A1 | B22: 017|B2 | C22: 128, 255, 0 | L22: 22 | P22: 1
A23: 005|Eb6 | B23: 017|B2 | L23: 23 | N23: 1 | O23: 1 | R23: 1
A24: 017|B2 | B24: 018|B2(1) | C24: 128, 255, 0 | H24: CDR | L24: 24 | N24: 1 | O24: 1 | P24: 1 | Q24: 1 | R24: 1 | U24: Y | W24: CDR
A25: 018|B2(1) | B25: 018|B2(2) | C25: 128, 255, 0 | H25: CD | L25: 25 | P25: 1 | Q25: 1 | W25: CD
A26: 017|B2 | B26: 018|B2(2) | H26: CD | L26: 26 | N26: 1 | O26: 1 | Q26: 1 | W26: CD
A27: 018|B2(2) | B27: 019|B2 | C27: 128, 255, 0 | H27: CD | L27: 27 | P27: 1 | Q27: 1 | W27: CD
A28: 017|B2 | B28: 019|B2 | H28: CDR | L28: 28 | N28: 1 | O28: 1 | Q28: 1 | W28: CDR
A29: 019|B2 | B29: 021|A2 | C29: 128, 255, 0 | H29: E | L29: 29 | P29: 1 | Q29: 1 | W29: E
A30: 019|D#3 | B30: 022|D#3 | C30: 128, 255, 0 | H30: R | L30: 30 | N30: 1 | O30: 1 | P30: 1 | Q30: 1 | R30: 1 | U30: Y | W30: R
A31: 017|B2 | B31: 021|A2 | H31: E | L31: 31 | N31: 1 | O31: 1 | Q31: 1 | R31: 1 | W31: E
A32: 021|A2 | B32: 024|B2 | C32: 128, 255, 0 | H32: DR | L32: 32 | N32: 1 | O32: 1 | P32: 1 | Q32: 1 | U32: Y | W32: DR
A33: 022|D#3 | B33: 025|G#4 | C33: 128, 255, 0 | L33: 33 | N33: 1 | O33: 1 | P33: 1 | R33: 1 | U33: Y
A34: 024|B2 | B34: 026|C3(1) | C34: 128, 255, 0 | H34: E | L34: 34 | P34: 1 | Q34: 1 | W34: E
A35: 025|G#4 | B35: 026|G#4 | C35: 128, 255, 0 | H35: CD | L35: 35 | N35: 1 | O35: 1 | P35: 1 | Q35: 1 | U35: Y | W35: CD
A36: 017|B2 | B36: 026|C3(1) | H36: DR | L36: 36 | N36: 1 | O36: 1 | Q36: 1 | W36: DR
A37: 026|C3(1) | B37: 026|C3(2) | C37: 128, 255, 0 | H37: CD | L37: 37 | P37: 1 | Q37: 1 | W37: CD
A38: 017|B2 | B38: 026|C3(2) | H38: D | L38: 38 | N38: 1 | O38: 1 | Q38: 1 | W38: D
A39: 026|C3(2) | B39: 027|C3 | C39: 128, 255, 0 | H39: CD | L39: 39 | P39: 1 | Q39: 1 | W39: CD
A40: 026|G#4 | B40: 030|C3 | C40: 128, 255, 0 | L40: 40 | P40: 1
A41: 017|B2 | B41: 027|C3 | H41: DR | L41: 41 | N41: 1 | O41: 1 | Q41: 1 | W41: DR
A42: 027|C3 | B42: 030|C3 | C42: 128, 255, 0 | L42: 42 | P42: 1
A43: 021|A2 | B43: 027|A1 | L43: 43 | N43: 1 | O43: 1
A44: 027|A1 | B44: 031|C3 | C44: 128, 255, 0 | L44: 44 | P44: 1
A45: 027|A1 | B45: 030|C3 | H45: E | L45: 45 | N45: 1 | O45: 1 | Q45: 1 | W45: E
A46: 030|C3 | B46: 031|C3 | C46: 128, 255, 0 | L46: 46 | P46: 1
A47: 031|C3 | B47: 032|A3 | C47: 128, 255, 0 | L47: 47 | P47: 1
A48: 021|A2 | B48: 032|A3 | L48: 48 | N48: 1 | O48: 1 | R48: 1
A49: 032|A3 | B49: 033|B3 | C49: 128, 255, 0 | L49: 49 | P49: 1
A50: 021|A2 | B50: 033|B3 | D50: 2 | L50: 50 | N50: 1 | O50: 1 | R50: 1 | S50: 1 | V50: Developing
A51: 033|B3 | B51: 035|D4 | C51: 128, 255, 0 | D51: 2 | L51: 51 | N51: 1 | O51: 1 | P51: 1 | R51: 1 | S51: 1 | U51: Y | V51: Developing & Inter
A52: 034|B2 | B52: 035|D4 | C52: 128, 255, 0 | D52: 2 | L52: 52 | N52: 1 | O52: 1 | P52: 1 | R52: 1 | S52: 1 | U52: Y | V52: x-Developing & Inter
A53: 035|D4 | B53: 037|E4 | C53: 128, 255, 0 | D53: 2 | L53: 53 | N53: 1 | O53: 1 | P53: 1 | R53: 1 | S53: 1 | U53: Y | V53: Developing
A54: 037|E4 | B54: 041|C3 | C54: 128, 255, 0 | L54: 54 | P54: 1
A55: 017|B2 | B55: 039|A3(1) | L55: 55 | N55: 1 | O55: 1 | R55: 1
A56: 039|A3(1) | B56: 039|A3(2) | C56: 128, 255, 0 | D56: 2 | L56: 56 | N56: 1 | O56: 1 | P56: 1 | R56: 1 | S56: 1 | U56: Y | V56: Developing
A57: 039|A3(2) | B57: 040|Bb3 | C57: 128, 255, 0 | D57: 2 | L57: 57 | N57: 1 | O57: 1 | P57: 1 | R57: 1 | S57: 1 | U57: Y | V57: Developing
A58: 040|Bb3 | B58: 041|C3 | C58: 128, 255, 0 | L58: 58 | N58: 1 | O58: 1 | P58: 1 | R58: 1 | U58: Y
A59: 041|C3 | B59: 042|C5 | C59: 128, 255, 0 | H59: CD | L59: 59 | N59: 1 | O59: 1 | P59: 1 | Q59: 1 | U59: Y | W59: CD
A60: 042|C5 | B60: 042|F#4 | C60: 128, 255, 0 | L60: 60 | P60: 1
A61: 019|D#3 | B61: 042|F#4 | H61: D | L61: 61 | N61: 1 | O61: 1 | Q61: 1 | W61: D
A62: 042|F#4 | B62: 044|C#3 | C62: 128, 255, 0 | L62: 62 | P62: 1
A63: 003|C5 | B63: 042|Db4 | D63: 2 | L63: 63 | N63: 1 | O63: 1 | R63: 1 | S63: 1 | V63: Developing & Inter
A64: 017|B2 | B64: 042|Db4 | D64: 2 | L64: 64 | N64: 1 | O64: 1 | R64: 1 | S64: 1 | V64: Developing & Inter
A65: 042|Db4 | B65: 043|Bb4 | C65: 128, 255, 0 | L65: 65 | N65: 1 | O65: 1 | P65: 1 | R65: 1 | U65: Y
A66: 043|Bb4 | B66: 044|C#3 | C66: 128, 255, 0 | L66: 66 | P66: 1
A67: 041|C3 | B67: 044|C#3 | H67: DR | L67: 67 | N67: 1 | O67: 1 | Q67: 1 | T67: IMM: 041|C3-042|F#4/044|C#3-045|G#4 | W67: DR
A68: 044|C#3 | B68: 045|C5 | C68: 128, 255, 0 | H68: D | L68: 68 | P68: 1 | Q68: 1 | W68: D
A69: 042|C5 | B69: 045|C5 | H69: CD | L69: 69 | N69: 1 | O69: 1 | Q69: 1 | T69: IMM: 041|C3-042|F#4/044|C#3-045|G#4 | W69: CD
A70: 045|C5 | B70: 045|G#4 | C70: 128, 255, 0 | L70: 70 | P70: 1
A71: 042|F#4 | B71: 045|G#4 | L71: 71 | N71: 1 | O71: 1 | T71: IMM: 041|C3-042|F#4/044|C#3-045|G#4
A72: 045|G#4 | B72: 047|F#2 | C72: 128, 255, 0 | L72: 72 | P72: 1
A73: 042|Db4 | B73: 046|D4 | L73: 73 | N73: 1 | O73: 1 | R73: 1 | T73: 042|Db4-043|Bb4/046|D4-046|Eb5
A74: 046|D4 | B74: 046|Eb5 | C74: 128, 255, 0 | L74: 74 | P74: 1
A75: 043|Bb4 | B75: 046|Eb5 | L75: 75 | N75: 1 | O75: 1 | T75: 042|Db4-043|Bb4/046|D4-046|Eb5
A76: 046|Eb5 | B76: 049|G3 | C76: 128, 255, 0 | L76: 76 | P76: 1
A77: 044|C#3 | B77: 047|F#2 | H77: CD | L77: 77 | N77: 1 | O77: 1 | Q77: 1 | W77: CD
A78: 047|F#2 | B78: 049|G3 | C78: 128, 255, 0 | L78: 78 | P78: 1
A79: 049|G3 | B79: 050|Eb3 | C79: 128, 255, 0 | L79: 79 | P79: 1
A80: 050|Eb3 | B80: 053|G3 | C80: 128, 255, 0 | L80: 80 | P80: 1
A81: 053|G3 | B81: 055|F3 | C81: 128, 255, 0 | L81: 81 | P81: 1
A82: 055|F3 | B82: 057|G3 | C82: 128, 255, 0 | L82: 82 | P82: 1
A83: 049|G3 | B83: 057|G3 | H83: CDR | L83: 83 | N83: 1 | O83: 1 | Q83: 1 | T83: IMM: 049|G3-055|F3/057|G3-062|D4 | W83: CDR
A84: 057|G3 | B84: 058|Eb3 | C84: 128, 255, 0 | L84: 84 | P84: 1
A85: 050|Eb3 | B85: 058|Eb3 | D85: 2 | L85: 85 | N85: 1 | O85: 1 | R85: 1 | S85: 1 | T85: IMM: 049|G3-055|F3/057|G3-062|D4 | V85: Developing
A86: 058|Eb3 | B86: 061|F3 | C86: 128, 255, 0 | L86: 86 | P86: 1
A87: 053|G3 | B87: 061|F3 | H87: R | L87: 87 | N87: 1 | O87: 1 | Q87: 1 | T87: IMM: 049|G3-055|F3/057|G3-062|D4 | W87: R
A88: 061|F3 | B88: 062|D4 | C88: 128, 255, 0 | L88: 88 | P88: 1
A89: 055|F3 | B89: 062|D4 | D89: 2 | L89: 89 | N89: 1 | O89: 1 | R89: 1 | S89: 1 | T89: IMM: 049|G3-055|F3/057|G3-062|D4 | V89: Developing
A90: 062|D4 | B90: 065|B4 | C90: 128, 255, 0 | L90: 90 | P90: 1
A91: 019|D#3 | B91: 064|C#4 | L91: 91 | N91: 1 | O91: 1 | R91: 1
A92: 064|C#4 | B92: 069|G2 | C92: 128, 255, 0 | L92: 92 | P92: 1
A93: 009|A2 | B93: 065|G2 | L93: 93 | N93: 1 | O93: 1
A94: 065|G2 | B94: 069|G2 | C94: 128, 255, 0 | L94: 94 | P94: 1
A95: 009|C#5 | B95: 065|B4 | H95: CD | L95: 95 | N95: 1 | O95: 1 | Q95: 1 | W95: CD
A96: 065|B4 | B96: 069|G2 | C96: 128, 255, 0 | L96: 96 | P96: 1
A97: 034|B2 | B97: 069|G2 | D97: 2 | L97: 97 | N97: 1 | O97: 1 | R97: 1 | S97: 1 | V97: x-Developing
A98: 069|G2 | B98: 070|G2 | C98: 128, 255, 0 | D98: 2 | L98: 98 | N98: 1 | O98: 1 | P98: 1 | R98: 1 | S98: 1 | U98: Y | V98: x-Developing
A99: 070|G2 | B99: 075|Bb4 | C99: 128, 255, 0 | L99: 99 | P99: 1
A100: 070|G2 | B100: 072|D4 | H100: E | L100: 100 | N100: 1 | O100: 1 | Q100: 1 | W100: E
A101: 072|D4 | B101: 075|D5 | C101: 128, 255, 0 | L101: 101 | P101: 1
A102: 035|D4 | B102: 075|D5 | D102: 2 | L102: 102 | N102: 1 | O102: 1 | R102: 1 | S102: 1 | V102: Developing
A103: 037|E4 | B103: 075|D5 | D103: 2 | L103: 103 | N103: 1 | O103: 1 | R103: 1 | S103: 1 | V103: Developing
A104: 075|D5 | B104: 082|G4 | C104: 128, 255, 0 | L104: 104 | P104: 1
A105: 035|D4 | B105: 075|Bb4 | H105: E | L105: 105 | N105: 1 | O105: 1 | Q105: 1 | R105: 1 | W105: E
A106: 075|Bb4 | B106: 076|C#4 | C106: 128, 255, 0 | L106: 106 | P106: 1
A107: 062|D4 | B107: 076|C#4 | D107: 2 | L107: 107 | N107: 1 | O107: 1 | R107: 1 | S107: 1 | V107: Developing
A108: 076|C#4 | B108: 082|G4 | C108: 128, 255, 0 | L108: 108 | P108: 1
A109: 049|G3 | B109: 082|G4 | L109: 109 | N109: 1 | O109: 1 | R109: 1 | T109: 049|G3-050|Eb3/082|G4-084|F4
A110: 082|G4 | B110: 084|F4 | C110: 128, 255, 0 | L110: 110 | P110: 1
A111: 043|Bb4 | B111: 082|Eb3 | L111: 111 | N111: 1 | O111: 1 | R111: 1
A112: 082|Eb3 | B112: 083|F2 | C112: 128, 255, 0 | H112: R | L112: 112 | P112: 1 | Q112: 1 | W112: R
A113: 042|Db4 | B113: 083|F2 | H113: D | L113: 113 | N113: 1 | O113: 1 | Q113: 1 | R113: 1 | W113: D
A114: 083|F2 | B114: 084|C#3 | C114: 128, 255, 0 | H114: R | L114: 114 | P114: 1 | Q114: 1 | W114: R
A115: 050|Eb3 | B115: 084|F4 | D115: 2 | L115: 115 | N115: 1 | O115: 1 | R115: 1 | S115: 1 | T115: 049|G3-050|Eb3/082|G4-084|F4 | V115: Developing
A116: 084|F4 | B116: 086|C4 | C116: 128, 255, 0 | L116: 116 | P116: 1
A117: 084|F4 | B117: 086|Ab3 | C117: 128, 255, 0 | L117: 117 | P117: 1
A118: 082|Eb3 | B118: 084|C#3 | H118: R | L118: 118 | N118: 1 | O118: 1 | Q118: 1 | R118: 1 | W118: R
A119: 084|C#3 | B119: 085|A1 | C119: 128, 255, 0 | L119: 119 | P119: 1
A120: 084|F4 | B120: 085|A1 | H120: DR | L120: 120 | N120: 1 | O120: 1 | Q120: 1 | T120: SIM: 084|F4-086|C4/085|A1-088|Bb3 | W120: DR
A121: 085|A1 | B121: 088|Bb3 | C121: 128, 255, 0 | L121: 121 | P121: 1
A122: 085|A1 | B122: 088|Eb4 | C122: 128, 255, 0 | L122: 122 | P122: 1
A123: 032|A3 | B123: 086|C4 | L123: 123 | N123: 1 | O123: 1 | R123: 1
A124: 086|C4 | B124: 088|Eb4 | C124: 128, 255, 0 | H124: R | L124: 124 | N124: 1 | O124: 1 | P124: 1 | Q124: 1 | R124: 1 | T124: SIM: 084|F4-086|C4/085|A1-088|Bb3 | U124: Y | W124: R
A125: 084|C#3 | B125: 086|Ab3 | D125: 2 | L125: 125 | N125: 1 | O125: 1 | R125: 1 | S125: 1 | V125: Developing & Inter
A126: 032|A3 | B126: 086|Ab3 | D126: 2 | L126: 126 | N126: 1 | O126: 1 | R126: 1 | S126: 1 | V126: Developing & Inter
A127: 086|Ab3 | B127: 088|Bb3 | C127: 128, 255, 0 | H127: R | L127: 127 | N127: 1 | O127: 1 | P127: 1 | Q127: 1 | R127: 1 | T127: SIM: 084|F4-086|C4/085|A1-088|Bb3 | U127: Y | W127: R
A128: 088|Eb4 | B128: 092|F4(1) | C128: 128, 255, 0 | L128: 128 | P128: 1
A129: 088|Eb4 | B129: 092|F4(2) | C129: 128, 255, 0 | L129: 129 | P129: 1
A130: 088|Bb3 | B130: 090|Db4 | C130: 128, 255, 0 | L130: 130 | P130: 1
A131: 075|Bb4 | B131: 090|Db4 | H131: R | L131: 131 | N131: 1 | O131: 1 | Q131: 1 | R131: 1 | W131: R
A132: 090|Db4 | B132: 092|F4(1) | C132: 128, 255, 0 | H132: R | L132: 132 | N132: 1 | O132: 1 | P132: 1 | Q132: 1 | R132: 1 | T132: SIM: 088|Bb3-090|Db4/090|Ab2-092|F4(1) | U132: Y | W132: R
A133: 090|Db4 | B133: 092|F4(2) | C133: 128, 255, 0 | L133: 133 | P133: 1
A134: 088|Bb3 | B134: 090|Ab2 | D134: 2 | H134: Rx | L134: 134 | N134: 1 | O134: 1 | Q134: 1 | R134: 1 | S134: 1 | T134: SIM: 088|Bb3-090|Db4/090|Ab2-092|F4(1) | V134: Developing & Inter | W134: Rx
A135: 090|Db4 | B135: 090|Ab2 | D135: 2 | L135: 135 | N135: 1 | O135: 1 | R135: 1 | S135: 1 | T135: SIM: 090|Db4-092|F4(1)/090|Ab2-092|F4(2) | V135: Developing & Inter
A136: 090|Ab2 | B136: 092|F4(1) | C136: 128, 255, 0 | L136: 136 | P136: 1
A137: 090|Ab2 | B137: 092|F4(2) | C137: 128, 255, 0 | H137: Rx | L137: 137 | P137: 1 | Q137: 1 | W137: Rx
A138: 092|F4(1) | B138: 092|F4(2) | D138: 2 | L138: 138 | N138: 1 | O138: 1 | R138: 1 | S138: 1 | T138: SIM: 090|Db4-092|F4(1)/090|Ab2-092|F4(2) | V138: Developing & Inter
A139: 088|Bb3 | B139: 092|F4(2) | D139: 2 | H139: Rx | L139: 139 | N139: 1 | O139: 1 | Q139: 1 | R139: 1 | S139: 1 | V139: Developing & Inter | W139: Rx
A140: 092|F4(2) | B140: 093|A4 | C140: 128, 255, 0 | L140: 140 | P140: 1
A141: 092|F4(1) | B141: 093|E4 | C141: 128, 255, 0 | L141: 141 | P141: 1
A142: 082|Eb3 | B142: 093|F3 | H142: CDR | L142: 142 | N142: 1 | O142: 1 | Q142: 1 | W142: CDR
A143: 093|F3 | B143: 095|G4 | C143: 128, 255, 0 | L143: 143 | P143: 1
A144: 033|B3 | B144: 093|A4 | H144: D | L144: 144 | N144: 1 | O144: 1 | Q144: 1 | R144: 1 | W144: D
A145: 093|A4 | B145: 097|C2 | C145: 128, 255, 0 | L145: 145 | P145: 1
A146: 032|A3 | B146: 093|E4 | H146: DR | L146: 146 | N146: 1 | O146: 1 | Q146: 1 | R146: 1 | W146: DR
A147: 093|E4 | B147: 095|G4 | C147: 128, 255, 0 | L147: 147 | P147: 1
A148: 093|A4 | B148: 095|G4 | D148: 2 | L148: 148 | N148: 1 | O148: 1 | R148: 1 | S148: 1 | V148: Developing
A149: 095|G4 | B149: 099|F#3 | C149: 128, 255, 0 | L149: 149 | P149: 1
A150: 064|C#4 | B150: 095|F#4 | H150: CDR | L150: 150 | N150: 1 | O150: 1 | Q150: 1 | R150: 1 | W150: CDR
A151: 095|F#4 | B151: 097|C2 | C151: 128, 255, 0 | L151: 151 | P151: 1
A152: 009|C#5 | B152: 096|E5 | H152: CD | L152: 152 | N152: 1 | O152: 1 | Q152: 1 | R152: 1 | W152: CD
A153: 096|E5 | B153: 099|F#3 | C153: 128, 255, 0 | L153: 153 | P153: 1
A154: 021|A2 | B154: 097|C2 | H154: E | L154: 154 | N154: 1 | O154: 1 | Q154: 1 | R154: 1 | W154: E
A155: 097|C2 | B155: 099|F#3 | C155: 128, 255, 0 | L155: 155 | P155: 1
A156: 095|F#4 | B156: 099|F#3 | H156: D | L156: 156 | N156: 1 | O156: 1 | Q156: 1 | R156: 1 | W156: D
A157: 099|F#3 | B157: 100|F#3(1) | C157: 128, 255, 0 | L157: 157 | N157: 1 | O157: 1 | P157: 1 | R157: 1 | U157: Y
A158: 100|F#3(1) | B158: 100|F#3(2) | C158: 128, 255, 0 | D158: 2 | L158: 158 | N158: 1 | O158: 1 | P158: 1 | R158: 1 | S158: 1 | U158: Y | V158: Developing & Inter
A159: 093|E4 | B159: 100|F#3(2) | D159: 2 | L159: 159 | N159: 1 | O159: 1 | R159: 1 | S159: 1 | V159: Developing & Inter
A160: 100|F#3(2) | B160: 101|F#3 | C160: 128, 255, 0 | L160: 160 | P160: 1
A161: 099|F#3 | B161: 101|F#3 | H161: R | L161: 161 | N161: 1 | O161: 1 | Q161: 1 | R161: 1 | T161: IMM: 099|F#3-100|F#3(2)/101|F#3-102|F#3(2) | W161: R
A162: 101|F#3 | B162: 102|F#3(1) | C162: 128, 255, 0 | H162: D | L162: 162 | N162: 1 | O162: 1 | P162: 1 | Q162: 1 | R162: 1 | U162: Y | W162: D
A163: 025|G#4 | B163: 101|B2 | L163: 163 | N163: 1 | O163: 1 | R163: 1
A164: 101|B2 | B164: 102|F#2 | C164: 128, 255, 0 | L164: 164 | N164: 1 | O164: 1 | P164: 1 | U164: Y
A165: 100|F#3(1) | B165: 102|F#3(1) | H165: DR | L165: 165 | N165: 1 | O165: 1 | Q165: 1 | R165: 1 | T165: IMM: 099|F#3-100|F#3(2)/101|F#3-102|F#3(2) | W165: DR
A166: 102|F#3(1) | B166: 102|F#3(2) | C166: 128, 255, 0 | D166: 2 | L166: 166 | N166: 1 | O166: 1 | P166: 1 | R166: 1 | S166: 1 | U166: Y | V166: Developing & Inter
A167: 102|F#2 | B167: 102|D2 | C167: 128, 255, 0 | L167: 167 | N167: 1 | O167: 1 | P167: 1 | U167: Y
A168: 100|F#3(2) | B168: 102|F#3(2) | D168: 2 | H168: Rx | L168: 168 | N168: 1 | O168: 1 | Q168: 1 | R168: 1 | S168: 1 | T168: IMM: 099|F#3-100|F#3(2)/101|F#3-102|F#3(2) | V168: Developing & Inter | W168: Rx
A169: 102|F#3(2) | B169: 103|C3 | C169: 128, 255, 0 | L169: 169 | P169: 1
A170: 102|D2 | B170: 103|C3 | C170: 128, 255, 0 | L170: 170 | P170: 1
A171: 097|C2 | B171: 103|C3 | H171: E | L171: 171 | N171: 1 | O171: 1 | Q171: 1 | R171: 1 | W171: E
A172: 103|C3 | B172: 105|C4 | C172: 128, 255, 0 | H172: E | L172: 172 | N172: 1 | O172: 1 | P172: 1 | Q172: 1 | R172: 1 | U172: Y | W172: E
A173: 102|F#3(2) | B173: 104|C5 | D173: 2 | L173: 173 | N173: 1 | O173: 1 | R173: 1 | S173: 1 | V173: Developing
A174: 104|C5 | B174: 105|B4 | C174: 128, 255, 0 | H174: DR | L174: 174 | N174: 1 | O174: 1 | P174: 1 | Q174: 1 | R174: 1 | U174: Y | W174: DR
A175: 105|B4 | B175: 106|Bb4 | C175: 128, 255, 0 | H175: DR | L175: 175 | N175: 1 | O175: 1 | P175: 1 | Q175: 1 | R175: 1 | U175: Y | W175: DR
A176: 105|C4 | B176: 106|C5 | C176: 128, 255, 0 | H176: E | L176: 176 | N176: 1 | O176: 1 | P176: 1 | Q176: 1 | R176: 1 | U176: Y | W176: E
A177: 106|Bb4 | B177: 107|A4 | C177: 128, 255, 0 | H177: D | L177: 177 | N177: 1 | O177: 1 | P177: 1 | Q177: 1 | R177: 1 | U177: Y | W177: D
A178: 106|C5 | B178: 107|D5(2) | C178: 128, 255, 0 | D178: 2 | L178: 178 | N178: 1 | O178: 1 | P178: 1 | R178: 1 | S178: 1 | U178: Y | V178: Developing
A179: 107|A4 | B179: 107|Ab4 | C179: 128, 255, 0 | L179: 179 | N179: 1 | O179: 1 | P179: 1 | R179: 1 | U179: Y
A180: 025|G#4 | B180: 107|D5(1) | L180: 180 | N180: 1 | O180: 1 | R180: 1
A181: 107|D5(1) | B181: 108|D#5 | C181: 128, 255, 0 | H181: DR | L181: 181 | N181: 1 | O181: 1 | P181: 1 | Q181: 1 | U181: Y | W181: DR
A182: 107|Ab4 | B182: 108|G4 | C182: 128, 255, 0 | H182: CD | L182: 182 | N182: 1 | O182: 1 | P182: 1 | Q182: 1 | U182: Y | W182: CD
A183: 107|D5(2) | B183: 110|E#5 | C183: 128, 255, 0 | L183: 183 | P183: 1
A184: 107|A4 | B184: 108|G4 | H184: R | L184: 184 | N184: 1 | O184: 1 | Q184: 1 | T184: IMM: 107|A4-107|Ab4/108|G4-108|Ab4 | W184: R
A185: 108|G4 | B185: 108|Ab4 | C185: 128, 255, 0 | H185: CD | L185: 185 | P185: 1 | Q185: 1 | W185: CD
A186: 108|D#5 | B186: 109|D5 | C186: 128, 255, 0 | H186: DR | L186: 186 | P186: 1 | Q186: 1 | W186: DR
A187: 107|Ab4 | B187: 108|Ab4 | H187: CDR | L187: 187 | N187: 1 | O187: 1 | Q187: 1 | R187: 1 | T187: IMM: 107|A4-107|Ab4/108|G4-108|Ab4 | W187: CDR
A188: 108|Ab4 | B188: 109|G4 | C188: 128, 255, 0 | H188: CD | L188: 188 | P188: 1 | Q188: 1 | W188: CD
A189: 108|G4 | B189: 109|G4 | H189: CDR | L189: 189 | N189: 1 | O189: 1 | Q189: 1 | T189: IMM: 108|G4-108|Ab4/109|G4-109|Ab4 | W189: CDR
A190: 109|G4 | B190: 109|Ab4 | C190: 128, 255, 0 | H190: CD | L190: 190 | P190: 1 | Q190: 1 | W190: CD
A191: 107|D5(1) | B191: 109|D5 | H191: DR | L191: 191 | N191: 1 | O191: 1 | Q191: 1 | R191: 1 | W191: DR
A192: 109|D5 | B192: 110|E#5 | C192: 128, 255, 0 | L192: 192 | N192: 1 | O192: 1 | P192: 1 | R192: 1 | U192: Y
A193: 108|Ab4 | B193: 109|Ab4 | H193: CDR | L193: 193 | N193: 1 | O193: 1 | Q193: 1 | R193: 1 | T193: IMM: 108|G4-108|Ab4/109|G4-109|Ab4 | W193: CDR
A194: 109|Ab4 | B194: 110|D#5 | C194: 128, 255, 0 | L194: 194 | P194: 1
A195: 110|E#5 | B195: 110|D#5 | C195: 128, 255, 0 | L195: 195 | P195: 1
A196: 109|D5 | B196: 110|D#5 | H196: DR | L196: 196 | N196: 1 | O196: 1 | Q196: 1 | T196: IMM: 109|D5-110|E#5/110|D#5-111|E#5 | W196: DR
A197: 108|D#5 | B197: 110|D#5 | H197: CDR | L197: 197 | N197: 1 | O197: 1 | Q197: 1 | W197: CDR
A198: 110|D#5 | B198: 111|E#5 | C198: 128, 255, 0 | L198: 198 | P198: 1
A199: 110|E#5 | B199: 111|E#5 | H199: CDR | L199: 199 | N199: 1 | O199: 1 | Q199: 1 | R199: 1 | T199: IMM: 109|D5-110|E#5/110|D#5-111|E#5 | W199: CDR
A200: 111|E#5 | B200: 111|Fx5 | C200: 128, 255, 0 | L200: 200 | N200: 1 | O200: 1 | P200: 1 | R200: 1 | U200: Y
... 4300 more rows

Sheet Do Not Delete (hidden)
A1: This worksheet is no longer used but is retained to allow older versions of NodeXL to open workbooks created with NodeXL version 1.0.1.96 or later.
A3: Do not delete this worksheet.

Sheet Family Distribution
P1: b.16 | AW1: b.49 | BO1: b.67 | DJ1: b.114 | EI1: b.139 | GI1: b.191 | GW1: b.205 | HU1: b.229
A2: Exposition | B2: I-complex | Q2: Dissolution | AX2: Chorale | BP2: Mobilization | DK2: P | EJ2: TR | GJ2: S1 | GX2: S2
A3: S1 | D3: n.3 | E3: 4 | Q3: 16 | DU3: 124
A4: S2 | E4: n.4
A5: S3 | F5: n.5 | G5: 6 | J5: 9 | K5: 10 | L5: 11 | R5: 17 | S5: 18 | T5: 19 | V5: 21 | W5: 22 | Y5: 24 | Z5: 25 | AA5: 26 | AB5: 27 | AC5: 28 | AD5: 29 | AE5: 30 | AF5: 31 | AG5: 32 | AH5: n.33 | AI5: 34 | AJ5: 35 | AN5: n.39 | AO5: n.40 | AP5: 41 | AQ5: 42 | AS5: 44 | AT5: 45 | AV5: 47 | CI5: 86 | CJ5: 87 | CK5: 88 | CL5: 89 | CM5: 90 | CP5: 93 | CQ5: 94 | CR5: n.95 | CS5: 96 | CT5: 97 | CU5: 98 | CV5: 99 | CZ5: 103 | DA5: 104 | DB5: 105 | DC5: 106 | DD5: n.107 | DE5: 108 | DF5: 109 | DK5: 114 | DL5: 115 | DM5: 116 | DN5: 117 | DR5: 121 | DS5: 122 | DT5: 123 | DV5: 125 | DW5: 126 | DX5: 127 | DY5: 128 | DZ5: 129 | EA5: n.130 | EB5: 131 | EC5: 132 | ED5: 133 | EF5: 135 | EG5: 136 | EJ5: 139 | EK5: 140 | EL5: 141 | EM5: 142 | EN5: 143 | EO5: 144 | EP5: 145 | EQ5: 146 | FB5: 157 | FC5: 158 | FD5: 159 | FE5: 160 | FQ5: 172 | FR5: 173 | FS5: 174 | FT5: 175 | FU5: 176 | GJ5: 191 | GK5: 192 | GL5: 193 | GM5: 194 | GN5: 195 | GO5: 196 | HJ5: 217 | HK5: 218 | HL5: n.219 | HM5: 220
A6: S4 | F6: n.5 | G6: 6 | H6: n.7 | I6: 8 | J6: n.9 | K6: 10 | L6: n.11 | M6: 12 | N6: n.13 | O6: 14 | P6: 15 | Q6: 16
A7: S5 | J7: n.9 | K7: 10 | L7: 11 | M7: 12 | BN7: 65 | BO7: 66 | BP7: 67 | CS7: 96 | CT7: 97
A8: S6 | J8: n.9 | K8: 10 | L8: n.11 | M8: 12 | N8: 13 | O8: 14 | BN8: 65 | BO8: 66
A9: S7 | T9: n.19 | U9: 20 | V9: 21 | W9: 22 | X9: 23 | Y9: 24 | Z9: 25 | AA9: 26 | AB9: 27 | AC9: 28 | AD9: 29 | AQ9: 42 | AR9: 43 | AT9: 45 | AU9: 46 | AV9: 47 | BM9: 64 | BN9: 65 | BO9: 66 | BP9: 67 | CR9: 95 | CS9: 96 | CT9: 97 | CV9: 99 | CW9: 100 | CX9: 101 | CY9: 102 | CZ9: 103 | DD9: 107 | DE9: 108 | DF9: 109 | DG9: 110 | DH9: 111 | DI9: 112 | DL9: 115 | DM9: 116 | DZ9: 129 | EA9: 130 | EB9: 131
A10: S8 | AF10: n.31 | AG10: 32 | GK10: 192 | GL10: 193 | HJ10: 217 | HK10: 218 | HL10: 219
A11: S9 | AI11: n.34 | AJ11: 35 | BR11: n.69 | BS11: n.70 | BT11: 71 | BU11: 72 | BV11: 73 | BW11: 74 | BX11: 75 | DO11: 118 | DP11: 119 | DQ11: 120 | DR11: 121 | DU11: 124 | DV11: 125 | FY11: 180 | FZ11: 181 | GA11: n.182 | GB11: 183 | GC11: 184 | GD11: 185 | GE11: 186 | GF11: 187 | GG11: 188 | GH11: 189 | GI11: 190 | HQ11: 224 | HR11: 225 | HS11: 226 | HT11: 227 | HU11: 228
A12: S10 | AX12: n.49 | AY12: 50 | BF12: 57 | BG12: 58 | CE12: 82 | CF12: 83 | ET12: 149 | EU12: 150 | FE12: 160 | FF12: 161
A13: S11 | AY13: n.50 | AZ13: 51 | BA13: 52 | BG13: n.58 | BH13: 59 | BI13: 60 | CG13: n.84 | CH13: 85 | CI13: 86 | EU13: 150 | EV13: 151 | EW13: 152 | FF13: n.161 | FG13: 162 | FH13: 163 | FL13: 167 | FM13: 168
A14: S12 | BB14: n.53 | BC14: 54 | BJ14: 61 | BK14: 62 | EX14: 153 | EY14: 154 | FI14: n.164 | FJ14: 165
A15: S13 | BD15: n.55 | BE15: 56 | BK15: n.62 | BL15: 63 | BM15: 64 | BY15: n.76 | BZ15: 77 | CA15: 78 | EN15: 143 | EO15: 144 | EY15: n.154 | EZ15: 155 | FA15: 156 | FB15: 157 | FK15: 166 | FL15: 167
A16: S14 | DT16: n.123 | DU16: 124
A17: S15 | GX17: n.205 | GY17: 206 | GZ17: 207 | HA17: 208 | HF17: n.213
A18: S16
A19: S17
A20: S18
A21: S19
A22: 1.1.1 | FM22: n.168 | FN22: 169 | FO22: n.170 | FP22: 171 | FQ22: 172
A23: 2.1.1 | HI23: n.216
A24: 3.1.1 | DO24: n.118 | DP24: 119
A25: 4.1.1 | CW25: n.100 | CX25: 101
A26: 4.1.2 | DI26: n.112 | DJ26: 113 | FX26: n.179 | FY26: 180 | HQ26: n.224 | HR26: n.225 | HS26: 226
A27: 4.1.3
A28: 4.1.4
A29: 4.2.1 | CY29: n.102 | CZ29: 103 | DA29: n.104 | DB29: 105 | DC29: 106 | DD29: 107 | DE29: 108 | DF29: 109 | DG29: 110 | DI29: n.112
A30: 4.2.2 | DJ30: n.113 | DK30: 114 | DN30: 117 | DO30: 118 | DR30: 121 | DS30: 122 | DT30: 123 | DU30: 124 | DV30: 125 | DW30: 126 | DX30: 127 | DY30: 128 | DZ30: 129 | EA30: 130 | EB30: 131 | EC30: 132 | ED30: 133 | EE30: 134 | EJ30: 139 | EK30: 140 | EL30: 141 | FU30: 176 | FV30: n.177 | FW30: 178
A31: 4.3.1 | DI31: n.112 | DJ31: 113
A32: 4.4.1
A33: 4.5.1
A34: 5.1.1 | AQ34: n.42 | AR34: 43 | AU34: 46 | AV34: 47 | CE34: 82 | CF34: 83 | CG34: 84 | CH34: 85 | CP34: 93 | CQ34: 94 | DY34: 128 | EL34: 141 | EM34: 142 | EP34: 145 | EQ34: 146 | ET34: 149 | EU34: 150 | EV34: 151 | EW34: 152 | FB34: 157 | FC34: 158 | FD34: 159 | FE34: 160 | FF34: 161 | FG34: 162 | FI34: 164 | FJ34: 165 | FK34: 166 | FL34: 167 | FM34: 168 | FN34: 169 | FO34: 170 | FP34: 171 | FQ34: 172 | FR34: 173 | GC34: 184 | GD34: 185 | GE34: 186 | GF34: 187 | GG34: 188 | GX34: 205 | GY34: 206 | GZ34: 207 | HA34: 208 | HB34: n.209 | HC34: 210 | HD34: 211 | HF34: 213 | HG34: 214 | HH34: 215 | HM34: 220 | HN34: 221 | HO34: 222 | HP34: 223
A35: 5.2.1 | CI35: n.86 | CJ35: 87 | CK35: 88 | CL35: 89 | CM35: 90 | EG35: 136 | EH35: 137 | FQ35: n.172 | FR35: 173 | FS35: 174 | FT35: 175 | FU35: 176
A36: 5.2.2 | EE36: n.134 | EF36: 135
A37: 5.2.3
A38: 5.3.1
A39: 5.4.1
A40: 5.5.1
A41: 6.1.1 | DU41: n.124 | DV41: 125
A42: 7.1.1 | AJ42: n.35 | AK42: 36 | AL42: n.37 | AM42: 38 | AN42: 39 | AO42: 40 | BX42: 75 | BY42: 76 | BZ42: 77 | CA42: 78 | CM42: 90 | CN42: 91 | CO42: 92 | CP42: 93 | GO42: 196 | GP42: 197 | GQ42: 198 | GR42: 199 | GS42: 200
A43: 7.1.2
A44: 7.2.1
A45: 8.1.1 | GM45: n.194 | GN45: 195 | GO45: 196 | GZ45: n.207 | HA45: 208 | HD45: n.211 | HE45: 212 | HG45: n.214 | HH45: 215
A46: 9.1.1 | GS46: n.200 | GT46: 201 | GU46: n.202 | GV46: 203 | HL46: n.219 | HM46: 220 | HN46: 221 | HS46: n.226 | HT46: 227 | HU46: 228
A47: 9.2.1
A48: 9.3.1
A49: 10.1.1
A50: 10.2.1
A51: 11.1.1
A52: 11.2.1
A53: 12.1.1
A54: 13.1.1 | HU54: n.228
A55: 13.1.2
A56: 13.2.1
A57: 14.1.1 | EA57: n.130 | EB57: n.131 | EG57: n.136 | EH57: n.137 | EI57: 138 | EJ57: 139
A58: 15.1.1
A59: 16.1.1
A60: 16.1.2
A61: 16.2.1
A62: 16.2.2
A63: 16.3.1
A64: 16.4.1
A65: 16.4.2
A66: 16.5.1
A67: 17.1.1
A68: 17.2.1
A69: 18.1.1
A70: 18.2.1 | HA70: n.208 | HB70: 209 | HC70: 210 | HD70: 211 | HE70: 212
A71: 19.1.1 | ER71: n.147 | ES71: 148 | FS71: 174 | FT71: 175 | FU71: 176
A72: 20.1.1
A73: 21.1.1 | GU73: n.202 | GV73: 203 | GW73: n.204 | GX73: 205 | HN73: 221 | HO73: 222 | HP73: 223 | HQ73: n.224 | HR73: 225 | HS73: 226
A74: 21.2.1
A75: 22.1.1
A76: 23.1.1 | CM76: n.90 | CN76: 91
A77: 23.1.2 | CO77: n.92 | CP77: 93
A78: 24.1.1
A79: 25.1.1
A80: 26.1.1
A81: 26.2.1
A82: 27.1.1
A83: 27.2.1
A84: 28.1.1
A85: 29.1.1
A86: 29.2.1
A87: 29.2.2
A88: 29.3.1
A89: 30.1.1
A90: 31.1.1
A91: 31.2.1
A92: 31.3.1
A93: 31.4.1
A94: 31.5.1
A95: 31.6.1
A96: 31.6.2
A97: 31.7.1
A98: 32.1.1
I99: b.237 | BH99: b.288 | DD99: b.336 | EF99: b.364 | FM99: b.397 | HV99: b.458 | IQ99: b.479 | KF99: b.520
A100: Development | B100: I-complex | J100: Dissolution/S1 | BI100: S2 | DE100: Hammer-blow | EG100: Utopian Vision I | FN100: March | HW100: Utopian Vision II | IR100: Hammer-blow
A101: S1 | B101: 229 | C101: 230 | D101: 231 | E101: 232 | F101: 233 | G101: 234 | H101: 235 | BI101: 288 | BJ101: 289 | BM101: 292 | BN101: 293 | BQ101: 296 | BS101: 298 | HX101: 459 | HY101: 460 | HZ101: 461 | IA101: 462
A102: S2 | E102: 232 | G102: 234 | H102: 235 | HY102: 460 | IA102: 462 | IB102: 463 | IC102: 464 | ID102: 465 | IE102: 466 | IF102: 467
A103: S3 | F103: 233 | G103: 234 | H103: 235 | I103: 236 | J103: 237 | K103: 238 | L103: 239 | M103: 240 | N103: 241 | O103: 242 | W103: 250 | X103: 251 | AE103: 258 | AF103: 259 | AG103: 260 | AH103: 261 | AI103: 262 | AJ103: 263 | AK103: 264 | AL103: 265 | AM103: 266 | AN103: 267 | AO103: 268 | AR103: 271 | AS103: 272 | AY103: 278 | AZ103: 279 | BD103: 283 | BE103: 284 | BF103: 285 | BG103: 286 | BH103: 287 | DC103: 334 | DD103: 335 | DE103: 336 | DM103: 344 | DN103: 345 | DO103: 346 | EG103: 364 | EH103: 365 | EI103: 366 | FL103: 395 | FM103: 396 | FO103: n.398 | FP103: 399 | FQ103: 400 | FR103: 401 | FW103: 406 | FX103: 407 | GC103: 412 | GF103: 415 | GG103: 416 | GH103: 417 | GI103: 418 | GJ103: n.419 | GK103: 420 | GM103: 422 | GN103: 423 | GO103: 424 | GP103: 425 | GQ103: 426 | GR103: 427 | GS103: 428 | GT103: 429 | GU103: 430 | GV103: 431 | GZ103: 435 | HA103: 436 | HB103: 437 | HC103: 438 | HD103: 439 | HE103: 440 | HF103: 441 | HG103: 442 | HH103: 443 | HI103: 444 | HJ103: 445 | HK103: 446 | HL103: 447 | HM103: 448 | IH103: n.469 | II103: 470 | IJ103: n.471 | IK103: 472 | IL103: 473 | IO103: 476 | IP103: 477 | IQ103: 478 | IR103: 479 | IS103: 480
A104: S4
A105: S5 | FL105: n.395 | FM105: 396 | FR105: 401 | FS105: 402
A106: S6
A107: S7 | L107: 239 | M107: 240 | AG107: 260 | AH107: 261 | AI107: 262 | AJ107: 263 | AK107: 264 | AL107: 265 | AM107: 266 | AN107: 267 | AO107: 268 | AP107: 269 | AQ107: 270 | AR107: 271 | AT107: 273 | AU107: 274 | AV107: 275 | AW107: 276 | AX107: 277 | BD107: 283 | BE107: 284 | BF107: 285 | BG107: 286 | BH107: 287 | BP107: 295 | BV107: n.301 | BW107: 302 | BX107: 303 | BZ107: 305 | CA107: 306 | CC107: 308 | CD107: 309 | FK107: 394 | FL107: 395 | FM107: 396 | FR107: 401 | FS107: 402 | GF107: 415 | GG107: 416 | GH107: 417 | GI107: 418 | GN107: 423 | GO107: 424 | GP107: 425 | GQ107: 426 | GR107: 427 | GS107: 428 | GT107: 429 | GZ107: 435 | HA107: 436 | HB107: 437 | HC107: 438 | HF107: 441 | HG107: 442 | HI107: 444 | HN107: 449 | HO107: 450 | HP107: 451 | HQ107: 452 | HR107: 453 | HS107: 454 | HT107: 455 | HU107: 456 | JT107: 507 | JU107: 508 | JV107: 509 | JW107: 510
A108: S8 | X108: 251 | Y108: 252 | AS108: 272 | AT108: 273 | AZ108: 279 | BA108: 280 | DZ108: 357 | EA108: 358 | EB108: 359 | EC108: 360 | HQ108: n.452 | HR108: 453
A109: S9 | B109: 229 | BW109: 302 | BX109: 303 | BY109: 304 | CA109: 306 | CB109: 307 | CC109: 308 | CD109: 309 | CE109: 310 | CH109: n.313 | CI109: 314 | CW109: 328 | CX109: 329 | CY109: 330 | CZ109: 331 | DA109: 332 | DB109: 333 | EI109: 366 | EJ109: 367 | EZ109: 383 | FA109: 384
A110: S10 | DE110: n.336 | DF110: 337 | DG110: 338 | DH110: 339 | IR110: 479 | IS110: 480 | IT110: 481 | IU110: 482
A111: S11 | CO111: n.320 | CP111: 321 | CQ111: 322 | CR111: 323 | CS111: 324 | CT111: 325 | CU111: 326 | CV111: 327 | DI111: 340 | DJ111: 341 | DK111: 342 | DL111: 343 | DS111: 350 | DT111: 351 | IV111: 483 | IW111: 484 | IX111: 485 | IY111: 486 | JD111: 491 | JE111: 492 | JF111: 493 | JG111: 494 | JK111: 498 | JL111: 499 | JM111: 500 | JN111: 501 | JO111: 502 | JP111: 503 | JQ111: 504 | JR111: 505
A112: S12
A113: S13
A114: S14
A115: S15
A116: S16 | Y116: n.252 | Z116: 253 | AA116: 254 | BA116: n.280 | BB116: 281 | BC116: 282 | BD116: 283
A117: S17 | AT117: n.273 | AU117: 274 | AV117: n.275 | AW117: 276 | AX117: 277 | BD117: n.283 | BE117: 284 | BF117: n.285 | BG117: 286 | BH117: 287
A118: S18 | FQ118: n.400 | FR118: 401 | FV118: n.405 | FW118: 406
A119: S19 | GL119: n.421 | GM119: n.422
A120: 1.1.1
A121: 2.1.1 | BT121: 299 | BU121: 300
A122: 3.1.1
A123: 4.1.1
A124: 4.1.2
A125: 4.1.3 | GV125: n.431 | GW125: 432
A126: 4.1.4 | HT126: n.455 | HU126: n.456 | HV126: 457
A127: 4.2.1 | GP127: 425 | GR127: 427
A128: 4.2.2 | GM128: 422 | GN128: 423
A129: 4.3.1
A130: 4.4.1 | FB130: n.385 | FC130: 386 | FD130: 387 | FE130: 388 | FF130: 389 | FG130: 390 | FH130: 391 | FI130: 392 | FJ130: n.393 | FK130: 394 | FR130: 401 | FS130: 402 | FX130: 407 | FY130: 408 | HN130: 449 | HP130: 451 | HQ130: 452 | HR130: 453 | HS130: 454 | HT130: 455 | HV130: 457
A131: 4.5.1
A132: 5.1.1 | BI132: 288 | BJ132: 289 | BK132: 290 | BL132: 291 | BM132: 292 | BN132: 293 | BO132: 294 | BP132: 295 | BQ132: 296 | BR132: 297 | BS132: n.298 | BY132: n.304 | BZ132: 305 | CW132: n.328 | CX132: 329 | CY132: 330 | CZ132: 331 | DE132: 336 | DF132: 337 | DG132: 338 | DH132: 339 | DI132: 340 | DJ132: 341 | DK132: 342 | DL132: 343 | DM132: 344 | DN132: 345 | DO132: 346 | DP132: 347 | DQ132: 348 | DR132: 349 | DS132: 350 | DT132: 351 | DU132: 352 | EM132: 370 | EN132: 371 | EO132: 372 | EP132: 373 | HF132: 441 | HG132: 442 | HH132: 443 | HI132: n.444 | HJ132: 445 | HK132: 446 | HL132: 447 | HM132: 448 | HN132: 449 | HO132: 450 | HP132: 451 | HQ132: 452 | HR132: 453 | HS132: 454 | HT132: 455 | HU132: 456 | HV132: 457 | IO132: 476 | IP132: 477 | IQ132: 478 | IR132: 479 | IS132: 480 | IT132: 481 | IU132: 482 | IV132: 483 | IW132: 484 | IX132: 485 | IY132: 486 | IZ132: n.487 | JA132: 488 | JB132: 489 | JC132: n.490 | JD132: 491 | JE132: 492 | JH132: n.495 | JI132: 496 | JJ132: 497 | JK132: 498 | JL132: 499 | JM132: 500 | JN132: n.501 | JO132: 502 | JP132: 503 | JQ132: 504 | JR132: 505 | JS132: 506 | JT132: 507 | JU132: 508 | JV132: 509 | JW132: 510 | JX132: 511 | JY132: 512 | JZ132: 513 | KA132: 514 | KB132: 515 | KC132: 516 | KD132: 517 | KE132: 518
A133: 5.2.1 | EO133: 372 | EP133: 373 | EQ133: n.374 | ER133: 375 | ES133: 376 | ET133: 377 | EU133: 378 | EV133: 379 | EW133: 380 | EX133: 381 | GJ133: 419 | GK133: 420 | GL133: 421 | GM133: 422 | GS133: 428 | GT133: 429 | HO133: 450 | HP133: 451 | HS133: 454 | HT133: 455 | HU133: n.456 | HV133: 457 | IH133: 469 | II133: 470 | IJ133: 471 | IK133: 472 | IL133: 473
A134: 5.2.2
A135: 5.2.3 | KA135: n.514 | KB135: 515 | KC135: 516
A136: 5.3.1 | GT136: n.429 | GU136: 430
A137: 5.4.1 | GU137: n.430 | GV137: 431 | GW137: 432 | GX137: 433
A138: 5.5.1
A139: 6.1.1
A140: 7.1.1 | IL140: 473 | IM140: 474 | IN140: 475 | IO140: 476
A141: 7.1.2 | HZ141: n.461 | IA141: 462 | IB141: 463
A142: 7.2.1
A143: 8.1.1 | BO143: n.294 | BP143: 295 | CZ143: n.331 | DA143: 332
A144: 9.1.1
A145: 9.2.1
A146: 9.3.1
A147: 10.1.1
A148: 10.2.1
A149: 11.1.1 | CN149: n.319 | CO149: 320
A150: 11.2.1 | DQ150: n.348 | DR150: 349 | JB150: 489 | JC150: 490 | JF150: n.493 | JG150: 494 | JI150: n.496
A151: 12.1.1 | BH151: n.287 | BI151: 288
A152: 13.1.1 | B152: 229 | C152: 230
A153: 13.1.2
A154: 13.2.1
A155: 14.1.1
A156: 15.1.1
A157: 16.1.1 | DU157: n.352 | DV157: 353 | DW157: 354 | EC157: 360 | ED157: 361 | EE157: n.362 | EF157: 363 | EG157: 364 | EH157: 365 | EI157: 366
A158: 16.1.2 | JQ158: n.504 | JR158: 505 | JS158: 506 | JT158: 507 | JU158: 508 | JV158: 509 | KB158: n.515 | KC158: n.516 | KD158: 517 | KE158: 518
A159: 16.2.1 | EK159: n.368 | EL159: 369
A160: 16.2.2 | DW160: n.354 | DX160: 355 | DY160: 356 | DZ160: 357 | EA160: 358 | EB160: 359 | IF160: 467 | IG160: 468
A161: 16.3.1
A162: 16.4.1 | EI162: n.366 | EJ162: 367 | EK162: 368 | EL162: 369 | EM162: 370 | EN162: 371 | EP162: n.373 | EQ162: 374 | ER162: 375 | EV162: 379 | EW162: 380 | EX162: 381 | IB162: n.463 | IC162: 464 | ID162: 465
A163: 16.4.2 | DZ163: n.357 | EB163: 359
A164: 16.5.1
A165: 17.1.1
A166: 17.2.1
A167: 18.1.1 | EP167: n.373 | EQ167: 374 | ES167: n.376 | ET167: 377
A168: 18.2.1
A169: 19.1.1
A170: 20.1.1 | BI170: n.288 | BJ170: 289 | BK170: n.290 | BL170: 291
A171: 21.1.1 | Q171: 244 | R171: 245 | U171: 248 | V171: 249 | Z171: n.253 | AA171: n.254 | AB171: 255 | AC171: 256 | AD171: 257 | AE171: 258 | BL171: 291 | BP171: 295 | BR171: 297
A172: 21.2.1
A173: 22.1.1
A174: 23.1.1 | IL174: 473 | IM174: 474
A175: 23.1.2 | IO175: 476
A176: 24.1.1 | GW176: n.432 | GX176: 433 | GY176: n.434 | GZ176: 435
A177: 25.1.1 | BL177: n.291 | BM177: 292 | BN177: 293 | BO177: 294 | BP177: 295 | BQ177: n.296 | BR177: 297 | BS177: 298 | BT177: n.299 | BU177: 300 | BV177: n.301 | BW177: 302 | BX177: 303 | BY177: 304 | CA177: n.306 | CB177: 307 | CV177: n.327 | CW177: 328
A178: 26.1.1
A179: 26.2.1
A180: 27.1.1
A181: 27.2.1
A182: 28.1.1 | EL182: n.369 | EM182: 370 | EN182: 371
A183: 29.1.1 | CA183: n.306 | CB183: 307 | CC183: 308 | CD183: n.309 | CE183: n.310 | CF183: n.311 | CG183: n.312 | CH183: n.313 | CI183: 314 | CJ183: n.315 | CK183: 316 | CL183: 317 | CM183: 318 | CR183: 323 | CS183: 324 | CW183: 328 | CX183: 329 | CY183: 330 | CZ183: 331 | DA183: n.332 | DB183: 333
A184: 29.2.1 | IB184: n.463 | IC184: 464 | ID184: 465 | IE184: 466
A185: 29.2.2 | IB185: n.463 | IC185: 464 | ID185: 465
A186: 29.3.1 | CN186: n.319 | CO186: 320 | CP186: 321 | CQ186: 322 | CR186: 323 | CS186: 324 | EP186: 373 | EQ186: 374 | HW186: 458 | HX186: 459 | JF186: 493 | JG186: 494 | JJ186: 497 | JK186: 498 | JL186: 499 | JN186: 501 | JQ186: 504 | JR186: 505 | JS186: 506 | JX186: 511 | JY186: 512 | JZ186: 513 | KA186: 514 | KD186: 517
A187: 30.1.1 | CD187: n.309 | CE187: 310 | CF187: n.311 | CG187: 312
A188: 31.1.1 | EO188: n.372 | EP188: 373 | EQ188: 374 | EU188: 378 | EV188: 379 | EW188: 380 | EX188: 381
A189: 31.2.1 | EX189: n.381 | EY189: n.382 | EZ189: 383
A190: 31.3.1 | FM190: n.396 | FN190: n.397 | FO190: 398 | FS190: n.402 | FT190: 403 | FW190: n.406 | FX190: 407 | GC190: 412 | GE190: 414
A191: 31.4.1 | EX191: n.381 | EY191: 382 | EZ191: n.383 | FA191: n.384 | FB191: 385
A192: 31.5.1 | FT192: n.403 | FU192: 404
A193: 31.6.1 | FU193: n.404
A194: 31.6.2 | GJ194: n.419 | GK194: n.420 | GL194: 421 | GX194: n.433 | GY194: n.434
A195: 31.7.1 | FX195: n.407 | FY195: n.408 | FZ195: n.409 | GB195: n.411 | GC195: n.412 | GD195: 413 | GE195: 414
A196: 32.1.1 | FU196: n.404 | FV196: 405
R197: b.537 | BD197: b.575 | CO197: b.612 | DS197: b.642 | EU197: b.670 | HA197: b.728 | IT197: b.773
A198: Recapitulation | B198: I-complex | S198: Dissolution | BE198: S1 | CP198: Retrans | DT198: P | EV198: TR/S1 | HB198: Utopian Vision III
A199: S1 | F199: 524 | G199: 525 | S199: 537 | AV199: 566 | AW199: 567 | HB199: 728 | HC199: 729 | HD199: 730 | HE199: 731 | HF199: 732 | HG199: 733 | HJ199: 736 | HK199: 737 | HL199: 738 | HM199: 739 | HN199: 740 | HO199: 741 | HR199: 744 | HS199: 745 | HT199: 746 | HU199: 747 | HV199: 748 | HY199: 751 | HZ199: 752 | IB199: 754 | IC199: 755 | IE199: 757 | IF199: 758 | IH199: 760 | II199: 761
A200: S2 | G200: 525 | AW200: 567 | HC200: 729 | HD200: 730 | HE200: n.731 | HF200: 732 | HG200: n.733 | HH200: 734 | HI200: 735 | HJ200: 736 | HK200: 737 | HL200: 738 | HM200: 739 | HS200: 745 | HT200: 746 | HU200: 747 | HV200: 748 | HW200: 749 | HX200: 750 | HY200: 751 | IC200: 755 | II200: 761
... 192 more rows

Sheet TR Distribution
P1: b.16 | AW1: b.49 | BO1: b.67 | DJ1: b.114 | EI1: b.139 | GI1: b.191 | GW1: b.205 | HU1: b.229
A2: Exposition | B2: I-complex | Q2: Dissolution | AX2: Chorale | BP2: Mobilization | DK2: P | EJ2: TR | GJ2: S1 | GX2: S2
A3: 1.1.1 | D3: n.3 | E3: 4 | Q3: 16 | DU3: 124
A4: 1.11.1 | E4: n.4
A5: 1.11.2
A6: 1.11a.1
A7: 1.20.1 | F7: n.5 | G7: 6 | J7: 9 | K7: 10 | L7: 11 | R7: 17 | S7: 18 | T7: 19 | V7: 21 | W7: 22 | Y7: 24 | Z7: 25 | AA7: 26 | AB7: 27 | AC7: 28 | AD7: 29 | AE7: 30 | AF7: 31 | AG7: 32 | AH7: 33 | AN7: 39 | AO7: n.40 | AP7: 41 | AQ7: 42 | AS7: 44 | AT7: 45 | AV7: 47 | CI7: 86 | CJ7: 87 | CK7: 88 | CL7: 89 | CM7: 90 | CP7: 93 | CQ7: 94 | CR7: 95 | CT7: 97 | CU7: 98 | CV7: 99 | CZ7: 103 | DA7: 104 | DB7: 105 | DC7: 106 | DD7: 107 | DK7: 114 | DL7: 115 | DM7: 116 | DN7: 117 | DR7: 121 | DS7: 122 | DT7: 123 | DV7: 125 | DW7: 126 | DX7: 127 | DY7: 128 | DZ7: 129 | EA7: n.130 | EB7: 131 | EC7: 132 | ED7: 133 | EF7: 135 | EG7: 136 | EJ7: 139 | EK7: 140 | EL7: 141 | EM7: 142 | EN7: 143 | EO7: 144 | EP7: 145 | EQ7: 146 | FB7: 157 | FC7: 158 | FD7: 159 | FE7: 160 | FQ7: 172 | FR7: 173 | FS7: 174 | FT7: 175 | FU7: 176 | GJ7: 191 | GK7: 192 | GL7: 193 | GM7: 194 | HJ7: 217 | HK7: 218 | HL7: 219
A8: 1.20.2
A9: 1.23.1 | CR9: n.95 | CS9: 96 | CT9: 97
A10: 1.23.2
A11: 1.96.1 | DD11: n.107 | DE11: 108 | DF11: 109
A12: 1.110.1 | HL12: n.219 | HM12: 220
A13: 1.122.1 | AH13: n.33 | AI13: 34 | AJ13: 35 | CP13: 93 | CQ13: 94 | CR13: 95 | CS13: 96 | CT13: 97 | GM13: 194 | GN13: 195 | GO13: 196
A14: 1.184.1
A15: 1.185.1
A16: 1.20a.1 | AN16: n.39 | AO16: 40
A17: 1.20b.1
A18: 32.1.1
A19: 1.7.1 | N19: n.13 | O19: 14 | P19: 15 | Q19: 16
A20: 1.12.1 | L20: n.11 | M20: 12 | N20: 13
A21: 1.17.1 | F21: n.5 | G21: 6 | H21: 7
A22: 1.42.1 | J22: n.9 | K22: 10 | L22: 11
A23: 1.128.1 | H23: n.7 | I23: 8
A24: 1.3.1 | J24: n.9 | K24: 10 | L24: 11 | M24: 12 | BN24: 65 | BO24: 66 | BP24: 67 | CS24: 96 | CT24: 97
A25: 1.181.1
A26: 53.1.1
A27: 1.180.1 | J27: n.9 | K27: 10 | L27: 11 | BN27: 65 | BO27: 66
A28: 2.1.1 | L28: n.11 | M28: 12 | N28: 13 | O28: 14
A29: 54.1.1
A30: 1.6.1 | T30: n.19 | U30: 20 | V30: 21 | W30: 22 | X30: 23 | Y30: 24 | Z30: 25 | AA30: 26 | AB30: 27 | AC30: 28 | AD30: 29 | AQ30: 42 | AR30: 43 | AT30: 45 | AU30: 46 | AV30: 47 | BM30: 64 | BN30: 65 | BO30: 66 | BP30: 67 | CR30: 95 | CS30: 96 | CT30: 97 | CV30: 99 | CW30: 100 | CX30: 101 | CY30: 102 | CZ30: 103 | DD30: 107 | DE30: 108 | DF30: 109 | DG30: 110 | DH30: 111 | DI30: 112 | DL30: 115 | DM30: 116 | DZ30: 129 | EA30: 130 | EB30: 131
A31: 1.6.2
A32: 22.1.1
A33: 48.1.1
A34: 49.1.1
A35: 1.141.1 | AF35: n.31 | AG35: 32 | GK35: 192 | GL35: 193 | HJ35: 217 | HK35: 218 | HL35: 219
A36: 37.1.1
A37: 1.16.1 | BR37: n.69 | BS37: 70 | DO37: 118 | DP37: 119 | DU37: 124 | DV37: 125 | FY37: 180 | FZ37: 181 | GA37: 182 | GB37: 183 | GC37: 184 | HQ37: 224 | HR37: 225 | HS37: 226 | HT37: 227
A38: 1.16.2 | GA38: n.182 | GB38: 183 | GC38: 184 | GD38: 185 | GE38: 186 | GF38: 187 | GG38: 188 | GH38: 189 | GI38: 190
A39: 1.16.3 | HQ39: n.224 | HR39: 225 | HS39: 226 | HT39: 227 | HU39: 228
A40: 1.71.1
A41: 1.16a(x12).1 | FY41: n.180 | FZ41: 181 | GA41: 182 | GB41: 183
A42: 3.1.1 | AI42: n.34 | AJ42: 35
A43: 4.1.1 | BS43: n.70 | BT43: 71 | BU43: 72 | BV43: 73 | BW43: 74 | BX43: 75 | DP43: 119 | DQ43: 120 | DR43: 121
A44: 50.1.1
A45: 1.8.1 | AX45: n.49 | AY45: 50 | BF45: 57 | BG45: 58 | CE45: 82 | CF45: 83 | ET45: 149 | EU45: 150 | FE45: 160 | FF45: 161
A46: 1.163.1
A47: 25.1.1
A48: 1.13.1 | AY48: n.50 | AZ48: 51 | BA48: 52
A49: 1.14.1 | BG49: n.58 | BH49: 59 | BI49: 60 | EU49: 150 | EV49: 151 | EW49: 152
A50: 1.14.2 | CG50: n.84 | CH50: 85 | CI50: 86 | FL50: 167 | FM50: 168
A51: 1.36.1 | FF51: n.161 | FG51: 162 | FH51: 163
A52: 1.76.1
A53: 1.9.1 | BB53: n.53 | BC53: 54 | BJ53: 61 | BK53: 62 | EX53: 153 | EY53: 154
A54: 1.37.1 | FI54: n.164 | FJ54: 165
A55: 1.10.1 | BD55: n.55 | BE55: 56 | EN55: 143 | EO55: 144 | FK55: 166 | FL55: 167
A56: 1.15.1 | BK56: n.62 | BL56: 63 | BM56: 64
A57: 1.18.1 | BY57: n.76 | BZ57: 77 | CA57: 78
A58: 1.159.1
A59: 8.1.1 | EY59: n.154 | EZ59: 155 | FA59: 156 | FB59: 157
A60: 1.30.1 | DT60: n.123 | DU60: 124
A61: 1.45.1 | GX61: n.205 | GY61: 206 | GZ61: 207 | HA61: 208
A62: 1.49.1 | HF62: n.213
A63: 1.55.1
A64: 1.57.1
A65: 1.56.1
A66: 1.58.1
A67: 1.179.1
A68: 18.1.1
A69: 28.1.1
A70: 28.1.2
A71: 28.1a(x29).1
A72: 34.1.1
A73: 34.1.2
A74: 34.1a(x35).1
A75: 34.1a(x35).2
A76: 1.38.1 | FM76: n.168 | FN76: 169 | FO76: 170 | FP76: 171
A77: 1.166.1
A78: 1.167.1
A79: 9.1.1 | FO79: n.170 | FP79: 171 | FQ79: 172
A80: 1.51.1 | HI80: n.216
A81: 1.29.1 | DO81: n.118 | DP81: 119
A82: 1.24.1 | CW82: n.100 | CX82: 101
A83: 1.53.1 | HQ83: n.224
A84: 1.97.1 | DI84: n.112 | DJ84: 113
A85: 1.98.1 | FX85: n.179 | FY85: 180
A86: 15.1.1 | HR86: n.225 | HS86: 226
A87: 1.111.1
A88: 1.116.1
A89: 1.117.1
A90: 1.25.1 | CY90: n.102 | CZ90: 103
A91: 1.26.1 | DA91: n.104 | DB91: 105 | DC91: 106 | DD91: 107 | DE91: 108 | DF91: 109 | DG91: 110
A92: 1.27.1 | DI92: n.112
A93: 1.28.1 | DJ93: n.113 | DK93: 114 | DN93: 117 | DO93: 118 | DR93: 121 | DS93: 122 | DT93: 123 | DU93: 124 | DV93: 125 | DW93: 126 | DX93: 127 | DY93: 128 | DZ93: 129 | EA93: 130 | EB93: 131 | EC93: 132 | ED93: 133 | EE93: 134 | EJ93: 139 | EK93: 140 | EL93: 141 | FU93: 176 | FV93: 177
A94: 1.28.2
A95: 10.1.1 | FV95: n.177
A96: 10.1.2
A97: 11.1.1 | FV97: n.177 | FW97: 178
A98: 11.1.2
A99: 5.1.1 | DI99: n.112 | DJ99: 113
A100: 1.95.1
A101: 27.1.1
A102: 1.155.1
A103: 1.165.1
A104: 1.2.1 | AQ104: n.42 | AR104: 43 | AU104: 46 | AV104: 47 | CE104: 82 | CF104: 83 | CG104: 84 | CH104: 85 | CP104: 93 | CQ104: 94 | DY104: 128 | EL104: 141 | EM104: 142 | EP104: 145 | EQ104: 146 | ET104: 149 | EU104: 150 | EV104: 151 | EW104: 152 | FB104: 157 | FC104: 158 | FD104: 159 | FE104: 160 | FF104: 161 | FG104: 162 | FI104: 164 | FJ104: 165 | FK104: 166 | FL104: 167 | FM104: 168 | FN104: 169 | FO104: 170 | FP104: 171 | FQ104: 172 | FR104: 173 | GC104: 184 | GD104: 185 | GE104: 186 | GF104: 187 | GG104: 188 | GX104: 205 | GY104: 206 | GZ104: 207 | HA104: 208 | HB104: 209 | HF104: 213 | HG104: 214 | HH104: 215 | HM104: 220 | HN104: 221 | HO104: 222 | HP104: 223
A105: 1.48.1 | HB105: n.209 | HC105: 210 | HD105: 211
A106: 1.61.1
A107: 1.63.1
A108: 1.78.1
A109: 1.115.1
A110: 1.115.2
A111: 1.124.1
A112: 1.125.1
A113: 1.148.1
A114: 1.168.1
A115: 38.1.1
A116: 1.19.1 | CI116: n.86 | CJ116: 87 | CK116: 88 | CL116: 89 | CM116: 90 | EG116: 136 | EH116: 137
A117: 1.19.2
A118: 1.39.1 | FQ118: n.172 | FR118: 173 | FS118: 174 | FT118: 175 | FU118: 176
A119: 1.88.1
A120: 1.88.2
A121: 1.174.1
A122: 1.175.1
A123: 1.32.1 | EE123: n.134 | EF123: 135
A124: 1.127.1
A125: 1.108.1
A126: 1.109.1
A127: 1.186.1
A128: 1.31.1 | DU128: n.124 | DV128: 125
A129: 1.4.1 | AJ129: n.35 | AK129: 36 | AL129: 37 | BX129: 75 | BY129: 76 | CM129: 90 | CN129: 91 | CO129: 92 | CP129: 93 | GO129: 196 | GP129: 197 | GQ129: 198
A130: 1.5.1 | AL130: n.37 | AM130: 38 | AN130: 39 | AO130: 40 | GQ130: 198 | GR130: 199 | GS130: 200
A131: 1.130.1
A132: 1.139.1
A133: 1.151.1 | BX133: n.75 | BY133: 76 | BZ133: 77 | CA133: 78
A134: 1.151.2
A135: 41.1.1
A136: 1.118.1
A137: 1.161.1
A138: 1.46.1 | GZ138: n.207 | HA138: 208
A139: 1.50.1 | HG139: n.214 | HH139: 215
A140: 13.1.1 | GM140: n.194 | GN140: 195 | GO140: 196
A141: 14.1.1 | HD141: n.211 | HE141: 212
A142: 21.1.1
A143: 24.1.1
A144: 1.40.1 | GS144: n.200 | GT144: 201 | GU144: 202
A145: 1.43.1 | GU145: n.202 | GV145: 203
A146: 1.43.2
A147: 1.52.1 | HL147: n.219 | HM147: 220 | HN147: 221
A148: 1.52.2
A149: 1.54.1 | HS149: n.226 | HT149: 227 | HU149: 228
A150: 1.132.1
A151: 1.136.1
A152: 1.137.1
A153: 1.138.1
A154: 1.140.1
A155: 1.162.1
A156: 1.164.1
A157: 1.169.1
A158: 1.171.1
A159: 44.1.1
A160: 1.131.1
A161: 1.154.1
A162: 1.142.1
A163: 1.143.1
A164: 1.144.1
A165: 1.145.1
A166: 1.146.1
A167: 1.147.1
A168: 37.2.1
A169: 1.74.1
A170: 1.79.1
A171: 39.1.1
A172: 40.1.1
A173: 19.1.1
A174: 16.1.1 | HU174: n.228
A175: 1.160.1
A176: 1.170.1
A177: 1.172.1
A178: 1.33.1 | EG178: n.136 | EH178: 137 | EI178: 138
A179: 1.34.1 | EH179: n.137 | EI179: 138 | EJ179: 139
A180: 1.158.1
A181: 6.1.1 | EA181: n.130 | EB181: 131
A182: 7.1.1 | EB182: n.131
A183: 1.129.1
A184: 1.80.1
A185: 26.1.1
A186: 52.1.1
A187: 1.126.1
A188: 1.126.2
A189: 1.126a.1
A190: 1.84.1
A191: 1.81.1
A192: 1.187.1
A193: 1.83.1
A194: 1.121.1
A195: 1.121.2
A196: 1.82.1
A197: 1.188.1
A198: 1.149.1
A199: 1.152.1
A200: 1.87.1
... 932 more rows

Sheet Profiles and Themes
A1: Sources | B1: C.S.F | C1: Profile | E1: Theme 1 | F1: Theme 2
A2: S10,S11 | B2: 1.1.1 | C2: 0,0,0,0,0,0,0,0,0,50,50,0,0,0,0,0,0,0,0 | E2: 005|Eb6-005|Ab6 | F2: 009|A4-009|D5
A3: S13,S15 | B3: 2.1.1 | C3: 0,0,0,0,0,0,0,0,0,0,0,0,50,0,50,0,0,0,0 | E3: IMM: 041|C3-042|F#4 | F3: 044|C#3-045|G#4
A4: S7,S9 | B4: 3.1.1 | C4: 0,0,0,0,0,0,50,0,50,0,0,0,0,0,0,0,0,0,0 | E4: 042|Db4-043|Bb4 | F4: 046|D4-046|Eb5
A5: S3,S7 | B5: 4.1.1 | C5: 0,0,50,0,0,0,50,0,0,0,0,0,0,0,0,0,0,0,0 | E5: IMM: 049|G3-055|F3 | F5: 057|G3-062|D4
B6: 4.1.2 | C6: 0,0,50,0,0,0,50,0,0,0,0,0,0,0,0,0,0,0,0 | E6: 049|G3-050|Eb3 | F6: 082|G4-084|F4
B7: 4.1.3 | C7: 0,0,50,0,0,0,50,0,0,0,0,0,0,0,0,0,0,0,0 | E7: SIM: 084|F4-086|C4 | F7: 085|A1-088|Bb3
B8: 4.1.4 | C8: 0,0,50,0,0,0,50,0,0,0,0,0,0,0,0,0,0,0,0 | E8: SIM: 088|Bb3-090|Db4 | F8: 090|Ab2-092|F4(1)
B9: 4.2.1 | C9: 0,0,25,0,0,0,75,0,0,0,0,0,0,0,0,0,0,0,0 | E9: SIM: 090|Db4-092|F4(1) | F9: 090|Ab2-092|F4(2)
B10: 4.2.2 | C10: 0,0,25,0,0,0,75,0,0,0,0,0,0,0,0,0,0,0,0 | E10: IMM: 099|F#3-100|F#3(2) | F10: 101|F#3-102|F#3(2)
B11: 4.3.1 | C11: 0,0,37.5,0,0,0,62.5,0,0,0,0,0,0,0,0,0,0,0,0 | E11: IMM: 107|A4-107|Ab4 | F11: 108|G4-108|Ab4
B12: 4.4.1 | C12: 0,0,75,0,0,0,25,0,0,0,0,0,0,0,0,0,0,0,0 | E12: IMM: 108|G4-108|Ab4 | F12: 109|G4-109|Ab4
B13: 4.5.1 | C13: 0,0,87.5,0,0,0,12.5,0,0,0,0,0,0,0,0,0,0,0,0 | E13: IMM: 109|D5-110|E#5 | F13: 110|D#5-111|E#5
A14: S1,S3 | B14: 5.1.1 | C14: 50,0,50,0,0,0,0,0,0,0,0,0,0,0,0,0,0,0,0 | E14: SIM: 112|Fx5(1)-112|Fx5(3) | F14: 112|Fx5(2)-112|G#5
B15: 5.2.1 | C15: 25,0,75,0,0,0,0,0,0,0,0,0,0,0,0,0,0,0,0 | E15: SIM: 112|Fx5(2)-112|G#5 | F15: 112|Fx5(3)-112|Ab4(2)
B16: 5.2.2 | C16: 25,0,75,0,0,0,0,0,0,0,0,0,0,0,0,0,0,0,0 | E16: 095|F#4-097|C2 | F16: 115|C4-116|B4
B17: 5.2.3 | C17: 25,0,75,0,0,0,0,0,0,0,0,0,0,0,0,0,0,0,0 | E17: 069|G2-070|G2 | F17: 118|E4-119|E4
B18: 5.3.1 | C18: 12.5,0,87.5,0,0,0,0,0,0,0,0,0,0,0,0,0,0,0,0 | E18: 116|B4-118|E4 | F18: 121|D4-124|A4
B19: 5.4.1 | C19: 6.25,0,93.75,0,0,0,0,0,0,0,0,0,0,0,0,0,0,0,0 | E19: 016|A1-017|B2 | F19: 124|D4-125|E5
B20: 5.5.1 | C20: 75,0,25,0,0,0,0,0,0,0,0,0,0,0,0,0,0,0,0 | E20: 113|G#5-114|E4 | F20: 125|G#4-126|D6
A21: S8,S9 | B21: 6.1.1 | C21: 0,0,0,0,0,0,0,50,50,0,0,0,0,0,0,0,0,0,0 | E21: 112|Ab4(2)-114|E4 | F21: 130|F#5(2)-132|E4
A22: S3,S9 | B22: 7.1.1 | C22: 0,0,50,0,0,0,0,0,50,0,0,0,0,0,0,0,0,0,0 | E22: IMM: 141|E4-143|G#4 | F22: 145|E4-147|E4
B23: 7.1.2 | C23: 0,0,50,0,0,0,0,0,50,0,0,0,0,0,0,0,0,0,0 | E23: 058|Eb3-062|D4 | F23: 150|F5-154|E6
B24: 7.2.1 | C24: 0,0,75,0,0,0,0,0,25,0,0,0,0,0,0,0,0,0,0 | E24: SIM: 157|C3-158|D3 | F24: 157|E4-159|E3
A25: S3,S4 | B25: 8.1.1 | C25: 0,0,50,50,0,0,0,0,0,0,0,0,0,0,0,0,0,0,0 | E25: 050|Eb3-055|F3 | F25: 161|A4-166|D5
A26: S3,S4,S8 | B26: 9.1.1 | C26: 0,0,50,16.67,0,0,0,33.33,0,0,0,0,0,0,0,0,0,0,0 | E26: 084|F4-086|Ab3 | F26: 168|E5-172|E4
B27: 9.2.1 | C27: 0,0,75,8.33,0,0,0,16.67,0,0,0,0,0,0,0,0,0,0,0 | E27: 145|E4-147|E4 | F27: 172|E5-174|F5
B28: 9.3.1 | C28: 0,0,87.5,4.17,0,0,0,8.33,0,0,0,0,0,0,0,0,0,0,0 | E28: 030|C3-037|E4 | F28: 191|A3-198|E5
A29: S3,S8 | B29: 10.1.1 | C29: 0,0,66.67,0,0,0,0,33.33,0,0,0,0,0,0,0,0,0,0,0 | E29: *SIM: 200|A4-207|D6 | F29: 202|A3-211|E6
B30: 10.2.1 | C30: 0,0,33.33,0,0,0,0,66.67,0,0,0,0,0,0,0,0,0,0,0 | E30: SIM: 217|D4-217|E4 | F30: 218|A4-218|B4
A31: S9,S10 | B31: 11.1.1 | C31: 0,0,0,0,0,0,0,0,50,50,0,0,0,0,0,0,0,0,0 | E31: 200|A4-202|A#4 | F31: 219|A#4-221|C#5
B32: 11.2.1 | C32: 0,0,0,0,0,0,0,0,25,75,0,0,0,0,0,0,0,0,0 | E32: 046|D4-046|Eb5 | F32: 220|F#3-221|G#4
A33: S7,S17 | B33: 12.1.1 | C33: 0,0,0,0,0,0,50,0,0,0,0,0,0,0,0,0,50,0,0 | E33: *003|C5-005|Eb6 | F33: 229|Bb4-233|Bb5
A34: S1,S3,S4,S8 | B34: 13.1.1 | C34: 50,0,25,8.33,0,0,0,16.67,0,0,0,0,0,0,0,0,0,0,0 | E34: SIM: 231|D5-233|Bb5 | F34: 233|D2-235|Bb2
B35: 13.1.2 | C35: 50,0,25,8.33,0,0,0,16.67,0,0,0,0,0,0,0,0,0,0,0 | E35: SIM: 233|D2-235|Bb2 | F35: 234|Bb3-236|Bb4
B36: 13.2.1 | C36: 25,0,37.5,12.5,0,0,0,25,0,0,0,0,0,0,0,0,0,0,0 | E36: 030|C3-031|C3 | F36: 250|D4-251|E4
A37: S3,S7,S14 | B37: 14.1.1 | C37: 0,0,45.83,0,0,0,20.83,0,0,0,0,0,0,33.33,0,0,0,0,0 | E37: 019|D#3-022|D#3 | F37: 260|G#3-263|G#3
A38: S3,S9,S16 | B38: 15.1.1 | C38: 0,0,25,0,0,0,0,0,25,0,0,0,0,0,0,50,0,0,0 | E38: 191|A3-192|A3 | F38: 271|Db4-272|Db4
A39: S1,S3,S11 | B39: 16.1.1 | C39: 25,0,25,0,0,0,0,0,0,0,50,0,0,0,0,0,0,0,0 | E39: 271|Db4-272|Db4 | F39: 278|F4-279|F4
B40: 16.1.2 | C40: 25,0,25,0,0,0,0,0,0,0,50,0,0,0,0,0,0,0,0 | E40: SIM: 288|B4-290|A5 | F40: 290|G4-294|A5
B41: 16.2.1 | C41: 37.5,0,37.5,0,0,0,0,0,0,0,25,0,0,0,0,0,0,0,0 | E41: 209|E5-211|E6 | F41: 292|B4-294|B5
B42: 16.2.2 | C42: 37.5,0,37.5,0,0,0,0,0,0,0,25,0,0,0,0,0,0,0,0 | E42: 213|B4-216|G6 | F42: 296|B4(1)-299|G6
B43: 16.3.1 | C43: 12.5,0,62.5,0,0,0,0,0,0,0,25,0,0,0,0,0,0,0,0 | E43: 227|C#5-228|C#5 | F43: 302|D5-303|C#5
B44: 16.4.1 | C44: 18.75,0,68.75,0,0,0,0,0,0,0,12.5,0,0,0,0,0,0,0,0 | E44: 301|G#4-301|A5 | F44: 305|A2-306|B3
B45: 16.4.2 | C45: 18.75,0,68.75,0,0,0,0,0,0,0,12.5,0,0,0,0,0,0,0,0 | E45: 302|D5-303|C#5 | F45: 306|D6-307|C#6
B46: 16.5.1 | C46: 6.25,0,81.25,0,0,0,0,0,0,0,12.5,0,0,0,0,0,0,0,0 | E46: SIM: 309|F5-312|Bb4 | F46: 311|F#6-313|D6
A47: S3,S4,S8,S9 | B47: 17.1.1 | C47: 0,0,55.21,5.21,0,0,0,27.08,12.5,0,0,0,0,0,0,0,0,0,0 | E47: 313|D6-314|C#6 | F47: 317|D5-318|C#5
B48: 17.2.1 | C48: 0,0,52.6,10.94,0,0,0,30.21,6.25,0,0,0,0,0,0,0,0,0,0 | E48: 292|B4-294|B5 | F48: 328|A4-331|E5
A49: S1,S3,S4 | B49: 18.1.1 | C49: 12.5,0,37.5,50,0,0,0,0,0,0,0,0,0,0,0,0,0,0,0 | E49: 093|E4-095|G4 | F49: 334|F#4-335|G4
B50: 18.2.1 | C50: 25,0,50,25,0,0,0,0,0,0,0,0,0,0,0,0,0,0,0 | E50: 082|G4-084|F4 | F50: 336|D5-340|Eb5
A51: S1,S3,S13 | B51: 19.1.1 | C51: 25,0,25,0,0,0,0,0,0,0,0,0,50,0,0,0,0,0,0 | E51: 336|Bb3-340|Cb4 | F51: 348|D4-349|D#4
A52: S1,S3,S17 | B52: 20.1.1 | C52: 25,0,25,0,0,0,0,0,0,0,0,0,0,0,0,0,50,0,0 | E52: IMM: 336|D5-344|Ab4 | F52: 348|F#5-352|C6
A53: S3,S4,S7,S8 | B53: 21.1.1 | C53: 0,0,37.5,8.33,0,0,37.5,16.67,0,0,0,0,0,0,0,0,0,0,0 | E53: SIM: 352|C6-356|G6 | F53: 353|G4-355|Bb4
B54: 21.2.1 | C54: 0,0,52.08,4.17,0,0,18.75,25,0,0,0,0,0,0,0,0,0,0,0 | E54: 217|D4-217|E4 | F54: 357|G4-357|A4
A55: S1,S3,S8 | B55: 22.1.1 | C55: 25,0,58.33,0,0,0,0,16.67,0,0,0,0,0,0,0,0,0,0,0 | E55: IMM: 357|G4-357|A4 | F55: 359|D5-359|E5
A56: S1,S3,S9 | B56: 23.1.1 | C56: 12.5,0,62.5,0,0,0,0,0,25,0,0,0,0,0,0,0,0,0,0 | E56: 372|E#4-373|D#4 | F56: 378|A4-379|G#4(1)
B57: 23.1.2 | C57: 12.5,0,62.5,0,0,0,0,0,25,0,0,0,0,0,0,0,0,0,0 | E57: SIM: 382|A4-383|Ab5 | F57: 381|F6-384|C6
A58: S1,S3,S7 | B58: 24.1.1 | C58: 6.25,0,68.75,0,0,0,25,0,0,0,0,0,0,0,0,0,0,0,0 | E58: 397|G2-400|F#3 | F58: 402|G3-405|Ab4
A59: S1,S3,S4,S17 | B59: 25.1.1 | C59: 8.33,0,50,8.33,0,0,0,0,0,0,0,0,0,0,0,0,33.33,0,0 | E59: 400|B2-401|G4 | F59: 406|D3-407|Bb3
A60: S3,S4,S7,S8,S9 | B60: 26.1.1 | C60: 0,0,53.12,4.51,0,0,12.5,25.69,4.17,0,0,0,0,0,0,0,0,0,0 | E60: SIM: 406|Bb2-407|Bb3 | F60: 407|Bb2-407|G3
B61: 26.2.1 | C61: 0,0,52.86,7.73,0,0,6.25,27.95,5.21,0,0,0,0,0,0,0,0,0,0 | E61: SIM: 411|C4-412|Eb4 | F61: 412|Cb4-413|C4
A62: S1,S3,S4,S7,S8,S9 | B62: 27.1.1 | C62: 4.17,0,50,8.33,0,0,12.5,16.67,8.33,0,0,0,0,0,0,0,0,0,0 | E62: 114|E4-116|B4 | F62: 415|E5-416|A4
B63: 27.2.1 | C63: 27.08,0,50,4.17,0,0,6.25,8.33,4.17,0,0,0,0,0,0,0,0,0,0 | E63: SIM: 415|E5-416|A4 | F63: 417|B4-418|E4
A64: S1,S3,S4,S11,S17 | B64: 28.1.1 | C64: 13.54,0,59.38,4.17,0,0,0,0,0,0,6.25,0,0,0,0,0,16.67,0,0 | E64: 415|E5-415|F5 | F64: 423|E5-423|F#5
A65: S1,S2,S3,S4,S17 | B65: 29.1.1 | C65: 27.08,25,37.5,2.08,0,0,0,0,0,0,0,0,0,0,0,0,8.33,0,0 | E65: SIM: 423|E5-423|F#5 | F65: 424|E4-424|G4
B66: 29.2.1 | C66: 42.36,41.67,12.5,0.69,0,0,0,0,0,0,0,0,0,0,0,0,2.78,0,0 | E66: 416|A4-417|D5 | F66: 425|A3-426|D4
B67: 29.2.2 | C67: 42.36,41.67,12.5,0.69,0,0,0,0,0,0,0,0,0,0,0,0,2.78,0,0 | E67: 415|E5-416|A4 | F67: 428|F4-429|F4
B68: 29.3.1 | C68: 63.54,12.5,18.75,1.04,0,0,0,0,0,0,0,0,0,0,0,0,4.17,0,0 | E68: 415|E5-416|A4 | F68: 435|A4-436|E4
A69: S1,S2,S3,S4,S9,S17 | B69: 30.1.1 | C69: 13.54,12.5,18.75,1.04,0,0,0,0,50,0,0,0,0,0,0,0,4.17,0,0 | E69: SIM: 435|A4-436|E4 | F69: 437|F4-438|G3
A70: S1,S2,S3,S4,S7,S17 | B70: 31.1.1 | C70: 13.54,12.5,18.75,1.04,0,0,50,0,0,0,0,0,0,0,0,0,4.17,0,0 | E70: 415|E5-415|F5 | F70: 441|B4-441|C5
B71: 31.2.1 | C71: 6.77,6.25,34.38,0.52,0,0,50,0,0,0,0,0,0,0,0,0,2.08,0,0 | E71: SIM: 441|G4-442|F3 | F71: 443|A4-444|D3
B72: 31.3.1 | C72: 2.26,2.08,44.79,0.17,0,0,50,0,0,0,0,0,0,0,0,0,0.69,0,0 | E72: 441|B4-441|C5 | F72: 444|F#4-444|E5
B73: 31.4.1 | C73: 15.89,3.12,54.69,0.26,0,0,25,0,0,0,0,0,0,0,0,0,1.04,0,0 | E73: SIM: 441|G4-444|D3 | F73: 445|D5-448|A#3
B74: 31.5.1 | C74: 1.13,1.04,72.4,0.09,0,0,25,0,0,0,0,0,0,0,0,0,0.35,0,0 | E74: IMM: 449|Bb5-449|Cb6 | F74: 451|Bb5-451|Cb6
B75: 31.6.1 | C75: 0.56,0.52,86.2,0.04,0,0,12.5,0,0,0,0,0,0,0,0,0,0.17,0,0 | E75: 450|F2-451|Bb3 | F75: 452|G#2-453|A3
B76: 31.6.2 | C76: 0.56,0.52,86.2,0.04,0,0,12.5,0,0,0,0,0,0,0,0,0,0.17,0,0 | E76: 451|Bb5-451|Cb6 | F76: 453|C#6-454|D6
B77: 31.7.1 | C77: 1.13,1.04,59.9,0.09,0,0,37.5,0,0,0,0,0,0,0,0,0,0.35,0,0 | E77: 449|D4-450|Eb5 | F77: 453|C4-454|Db5
A78: S1,S2,S3,S4,S7,S17,S18 | B78: 32.1.1 | C78: 0.28,0.26,43.1,0.02,0,0,6.25,0,0,0,0,0,0,0,0,0,0.09,50,0 | E78: IMM: 452|G#2-453|A3 | F78: 454|E#2-455|F3
E79: IMM: 453|C4-454|Db5 | F79: 455|E4-456|F5
E80: IMM: 453|C#6-454|D6 | F80: 455|F5-455|Gb5
E81: 231|D5-232|E6 | F81: 459|E3-460|F#4
E82: 459|E3-460|F#4 | F82: 461|C#5-462|D6
E83: 086|C4-092|F4(1) | F83: 469|E4-475|G4
E84: 092|F4(2)-093|A4 | F84: 476|B4(1)-476|B4(2)
E85: 336|Bb3-340|Cb4 | F85: 479|Bb3-481|G2
E86: 336|D5-340|Eb5 | F86: 479|D5-483|Eb5
E87: 336|Bb3-340|Cb4 | F87: 481|G2-483|Cb4
E88: IMM: 481|G2-483|Cb4 | F88: 487|G4-489|Db4
E89: 479|Bb3-481|G2 | F89: 487|G5-488|D4
E90: 348|F#5-350|G5 | F90: 489|F5-491|Gb5
E91: SIM: 497|G3(2)-497|Eb4 | F91: 498|Bb3-498|E4
E92: SIM: 497|G3(1)-499|F4(1) | F92: 498|C5(2)-500|F#3
E93: SIM: 498|Bb3-498|E4 | F93: 499|F3-499|F4(2)
E94: SIM: 499|F3-499|F4(2) | F94: 500|Ab3-500|F#4
E95: 003|C5-030|C3 | F95: 524|C5-550|Eb3
E96: 030|C3-032|A3 | F96: 554|Ab2-556|F3
E97: 035|D4-037|E4 | F97: 561|Eb6-565|C6
E98: 250|D4-252|E5 | F98: 561|F4-563|G5
E99: 231|D5-233|Bb5 | F99: 566|F6-568|Db5
E100: 193|F#4-202|A#4 | F100: 573|G5-583|A4
E101: 202|A3-204|E4 | F101: 583|F4-585|A4
E102: SIM: 585|A4-588|B3 | F102: 585|Bb3-589|C#2
E103: IMM: 586|B3-587|G4 | F103: 588|B3-589|Ab4
E104: IMM: 588|B3-589|Ab4 | F104: 590|C4-591|Bb4
E105: IMM: 590|C4-591|Bb4 | F105: 592|Db4-593|Eb5
E106: 575|G4-577|Bb4 | F106: 601|G4-605|Bb4
E107: 217|D4-217|E4 | F107: 610|D5-610|C5
E108: 573|G5-575|G4 | F108: 610|D5-610|C5
E109: 288|B4-290|A5 | F109: 613|B4-616|D#5
E110: 219|A#4-221|C#5 | F110: 618|C#6-619|G#5
E111: 610|D5-610|C5 | F111: 618|C#6-619|G#5
E112: 302|D5-303|C#5 | F112: 622|Eb6-624|D6
E113: 618|C#6-619|G#5 | F113: 626|C6-628|D6
E114: IMM: 630|C#4-630|B3 | F114: 632|E5-632|D#5
E115: 118|E4-119|E4 | F115: 635|A3-636|C4
E116: 114|E4-136|G5 | F116: 642|E3-664|G5
E117: 136|A4-137|C5 | F117: 664|A4-665|C5
E118: 139|D#5-140|D#5(2) | F118: 669|G#5-670|G#5(2)
E119: 141|E4-143|G#4 | F119: 670|A2-672|D3
E120: 194|B4-198|E5 | F120: 671|F#4-675|B4
E121: SIM: 671|F#4-673|A4 | F121: 674|C4-677|B3
E122: 149|A5-153|G5 | F122: 678|A4-682|G5
E123: 669|G#5-670|G#5(2) | F123: 687|G#5-688|G#5(2)
E124: 160|E5-166|D5 | F124: 688|E5-694|D5
E125: 164|A3-166|B3 | F125: 692|C4-694|B3
E126: 168|A3-177|A5 | F126: 696|A3-705|G#5
E127: 169|Bb2-170|A3 | F127: 697|Bb2-698|A3
E128: 170|F#5-174|F5 | F128: 698|F#4-702|F5
E129: 693|Bb2-694|B3 | F129: 709|Bb2-710|Bb3
E130: SIM: 709|D5-710|Eb4 | F130: 710|G5-711|G#4
E131: SIM: 709|Bb2-710|Bb3 | F131: 711|B2-712|C4
E132: 461|C#5-462|B5 | F132: 728|C#3-729|B3
E133: SIM: 728|C#3-729|B3 | F133: 730|E3-732|E4
E134: SIM: 730|E3-731|F#4 | F134: 732|F#3-733|G#4
E135: SIM: 736|D5-737|C4 | F135: 738|E5-739|D#4
E136: 736|D5-737|C4 | F136: 744|A4-745|G3
E137: SIM: 744|A4-745|G3 | F137: 745|Bb5-746|A4
E138: IMM: 744|A2-745|G3 | F138: 746|C3-747|Bb3
E139: SIM: 745|Bb5-746|A4 | F139: 747|D6-748|C5
E140: 747|D6-748|C5 | F140: 754|C#6-755|B4
E141: SIM: 754|E5-755|E6 | F141: 756|E5-757|E6
E142: 231|D5-232|E6 | F142: 760|C6-761|A6
E143: 302|D5-303|C#5 | F143: 760|F5-761|E5
E144: 003|C5-016|A1 | F144: 777|A4-790|A1
E145: SIM: 777|A4-779|C6 | F145: 778|Eb5-780|C4
E146: SIM: 793|D3-795|C4 | F146: 795|E3-797|C4
E147: 791|Bb2-791|Bb3 | F147: 802|Bb2-802|Bb3
E148: 016|A1-018|B2(1) | F148: 816|A1-818|B2
E149: 783|A2-784|A2 | F149: 820|A2(1)-820|A2(2)

Sheet Groups
B1: Visual Properties | F1: Labels | G1: Layout | I1: Do Not Edit | K1: Graph Metrics
A2: Group | B2: Vertex Color | C2: Vertex Shape | D2: Visibility | E2: Collapsed? | F2: Label | G2: Collapsed X | H2: Collapsed Y | I2: ID | J2: Collapsed Properties | K2: Vertices | L2: Unique Edges | M2: Edges With Duplicates | N2: Total Edges | O2: Self-Loops | P2: Reciprocated Vertex Pair Ratio | Q2: Reciprocated Edge Ratio | R2: Connected Components | S2: Single-Vertex Connected Components | T2: Maximum Vertices in a Connected Component | U2: Maximum Edges in a Connected Component | V2: Maximum Geodesic Distance (Diameter) | W2: Average Geodesic Distance | X2: Graph Density

Sheet Group Vertices
A1: Group | B1: Vertex | C1: Vertex ID

Sheet Overall Metrics
A1: Graph Metric | B1: Value | D1: Degree Bin | E1: Degree Frequency | F1: In-Degree Bin | G1: In-Degree Frequency | H1: Out-Degree Bin | I1: Out-Degree Frequency | J1: Betweenness Centrality Bin | K1: Betweenness Centrality Frequency | L1: Closeness Centrality Bin | M1: Closeness Centrality Frequency | N1: Eigenvector Centrality Bin | O1: Eigenvector Centrality Frequency | P1: PageRank Bin | Q1: PageRank Frequency | R1: Clustering Coefficient Bin | S1: Clustering Coefficient Frequency | T1: Dynamic Filter Bin | U1: Dynamic Filter Frequency | W1: Histogram Property | X1: Value
A2: Graph Type | B2: Directed | D2: =MIN(Vertices[Degree]) -> 0 | E2: =COUNTIF(Vertices[Degree], ">= " & D2) - COUNTIF(Vertices[Degree], ">=" & D3) -> 0 | F2: =MIN(Vertices[In-Degree]) -> 0 | G2: =COUNTIF(Vertices[In-Degree], ">= " & F2) - COUNTIF(Vertices[In-Degree], ">=" & F3) -> 0 | H2: =MIN(Vertices[Out-Degree]) -> 0 | I2: =COUNTIF(Vertices[Out-Degree], ">= " & H2) - COUNTIF(Vertices[Out-Degree], ">=" & H3) -> 0 | J2: =MIN(Vertices[Betweenness Centrality]) -> 0 | K2: =COUNTIF(Vertices[Betweenness Centrality], ">= " & J2) - COUNTIF(Vertices[Betweenness Centrality], ">=" & J3) -> 0 | L2: =MIN(Vertices[Closeness Centrality]) -> 0 | M2: =COUNTIF(Vertices[Closeness Centrality], ">= " & L2) - COUNTIF(Vertices[Closeness Centrality], ">=" & L3) -> 0 | N2: =MIN(Vertices[Eigenvector Centrality]) -> 0 | O2: =COUNTIF(Vertices[Eigenvector Centrality], ">= " & N2) - COUNTIF(Vertices[Eigenvector Centrality], ">=" & N3) -> 0 | P2: =MIN(Vertices[PageRank]) -> 0 | Q2: =COUNTIF(Vertices[PageRank], ">= " & P2) - COUNTIF(Vertices[PageRank], ">=" & P3) -> 0 | R2: =MIN(Vertices[Clustering Coefficient]) -> 0 | S2: =COUNTIF(Vertices[Clustering Coefficient], ">= " & R2) - COUNTIF(Vertices[Clustering Coefficient], ">=" & R3) -> 0 | T2: =MIN(INDIRECT(DynamicFilterSourceColumnRange)) -> 4.25 | U2: =COUNTIF(INDIRECT(DynamicFilterSourceColumnRange), ">= " & T2) - COUNTIF(INDIRECT(DynamicFilterSourceColumnRange), ">=" & T3) -> 21 | W2: Bin Divisor | X2: =ROWS(HistogramBins[Degree Bin]) - 1 -> 43
D3: =D2+($D$45-$D$2)/BinDivisor -> 0 | E3: =COUNTIF(Vertices[Degree], ">= " & D3) - COUNTIF(Vertices[Degree], ">=" & D4) -> 0 | F3: =F2+($F$45-$F$2)/BinDivisor -> 0 | G3: =COUNTIF(Vertices[In-Degree], ">= " & F3) - COUNTIF(Vertices[In-Degree], ">=" & F4) -> 0 | H3: =H2+($H$45-$H$2)/BinDivisor -> 0 | I3: =COUNTIF(Vertices[Out-Degree], ">= " & H3) - COUNTIF(Vertices[Out-Degree], ">=" & H4) -> 0 | J3: =J2+($J$45-$J$2)/BinDivisor -> 0 | K3: =COUNTIF(Vertices[Betweenness Centrality], ">= " & J3) - COUNTIF(Vertices[Betweenness Centrality], ">=" & J4) -> 0 | L3: =L2+($L$45-$L$2)/BinDivisor -> 0 | M3: =COUNTIF(Vertices[Closeness Centrality], ">= " & L3) - COUNTIF(Vertices[Closeness Centrality], ">=" & L4) -> 0 | N3: =N2+($N$45-$N$2)/BinDivisor -> 0 | O3: =COUNTIF(Vertices[Eigenvector Centrality], ">= " & N3) - COUNTIF(Vertices[Eigenvector Centrality], ">=" & N4) -> 0 | P3: =P2+($P$45-$P$2)/BinDivisor -> 0 | Q3: =COUNTIF(Vertices[PageRank], ">= " & P3) - COUNTIF(Vertices[PageRank], ">=" & P4) -> 0 | R3: =R2+($R$45-$R$2)/BinDivisor -> 0 | S3: =COUNTIF(Vertices[Clustering Coefficient], ">= " & R3) - COUNTIF(Vertices[Clustering Coefficient], ">=" & R4) -> 0 | T3: =T2+($T$45-$T$2)/BinDivisor -> 23.27034884 | U3: 19 | W3: No Metric Message | X3: Not Available
A4: Vertices | B4: 127 | D4: 0 | E4: =COUNTIF(Vertices[Degree], ">= " & D4) - COUNTIF(Vertices[Degree], ">=" & D5) -> 0 | F4: 0 | G4: =COUNTIF(Vertices[In-Degree], ">= " & F4) - COUNTIF(Vertices[In-Degree], ">=" & F5) -> 0 | H4: 0 | I4: =COUNTIF(Vertices[Out-Degree], ">= " & H4) - COUNTIF(Vertices[Out-Degree], ">=" & H5) -> 0 | J4: 0 | K4: =COUNTIF(Vertices[Betweenness Centrality], ">= " & J4) - COUNTIF(Vertices[Betweenness Centrality], ">=" & J5) -> 0 | L4: 0 | M4: =COUNTIF(Vertices[Closeness Centrality], ">= " & L4) - COUNTIF(Vertices[Closeness Centrality], ">=" & L5) -> 0 | N4: 0 | O4: =COUNTIF(Vertices[Eigenvector Centrality], ">= " & N4) - COUNTIF(Vertices[Eigenvector Centrality], ">=" & N5) -> 0 | P4: 0 | Q4: =COUNTIF(Vertices[PageRank], ">= " & P4) - COUNTIF(Vertices[PageRank], ">=" & P5) -> 0 | R4: 0 | S4: =COUNTIF(Vertices[Clustering Coefficient], ">= " & R4) - COUNTIF(Vertices[Clustering Coefficient], ">=" & R5) -> 0 | T4: 42.29069767 | U4: 16 | W4: Dynamic Filter Source Column Range | X4: Vertices[Offset]
D5: 0 | E5: =COUNTIF(Vertices[Degree], ">= " & D5) - COUNTIF(Vertices[Degree], ">=" & D6) -> 0 | F5: 0 | G5: =COUNTIF(Vertices[In-Degree], ">= " & F5) - COUNTIF(Vertices[In-Degree], ">=" & F6) -> 0 | H5: 0 | I5: =COUNTIF(Vertices[Out-Degree], ">= " & H5) - COUNTIF(Vertices[Out-Degree], ">=" & H6) -> 0 | J5: 0 | K5: =COUNTIF(Vertices[Betweenness Centrality], ">= " & J5) - COUNTIF(Vertices[Betweenness Centrality], ">=" & J6) -> 0 | L5: 0 | M5: =COUNTIF(Vertices[Closeness Centrality], ">= " & L5) - COUNTIF(Vertices[Closeness Centrality], ">=" & L6) -> 0 | N5: 0 | O5: =COUNTIF(Vertices[Eigenvector Centrality], ">= " & N5) - COUNTIF(Vertices[Eigenvector Centrality], ">=" & N6) -> 0 | P5: 0 | Q5: =COUNTIF(Vertices[PageRank], ">= " & P5) - COUNTIF(Vertices[PageRank], ">=" & P6) -> 0 | R5: 0 | S5: =COUNTIF(Vertices[Clustering Coefficient], ">= " & R5) - COUNTIF(Vertices[Clustering Coefficient], ">=" & R6) -> 0 | T5: 61.31104651 | U5: 11
A6: Unique Edges | B6: 599 | D6: 0 | E6: =COUNTIF(Vertices[Degree], ">= " & D6) - COUNTIF(Vertices[Degree], ">=" & D7) -> 0 | F6: 0 | G6: =COUNTIF(Vertices[In-Degree], ">= " & F6) - COUNTIF(Vertices[In-Degree], ">=" & F7) -> 0 | H6: 0 | I6: =COUNTIF(Vertices[Out-Degree], ">= " & H6) - COUNTIF(Vertices[Out-Degree], ">=" & H7) -> 0 | J6: 0 | K6: =COUNTIF(Vertices[Betweenness Centrality], ">= " & J6) - COUNTIF(Vertices[Betweenness Centrality], ">=" & J7) -> 0 | L6: 0 | M6: =COUNTIF(Vertices[Closeness Centrality], ">= " & L6) - COUNTIF(Vertices[Closeness Centrality], ">=" & L7) -> 0 | N6: 0 | O6: =COUNTIF(Vertices[Eigenvector Centrality], ">= " & N6) - COUNTIF(Vertices[Eigenvector Centrality], ">=" & N7) -> 0 | P6: 0 | Q6: =COUNTIF(Vertices[PageRank], ">= " & P6) - COUNTIF(Vertices[PageRank], ">=" & P7) -> 0 | R6: 0 | S6: =COUNTIF(Vertices[Clustering Coefficient], ">= " & R6) - COUNTIF(Vertices[Clustering Coefficient], ">=" & R7) -> 0 | T6: 80.33139535 | U6: 20
A7: Edges With Duplicates | B7: 0 | D7: 0 | E7: =COUNTIF(Vertices[Degree], ">= " & D7) - COUNTIF(Vertices[Degree], ">=" & D8) -> 0 | F7: 0 | G7: =COUNTIF(Vertices[In-Degree], ">= " & F7) - COUNTIF(Vertices[In-Degree], ">=" & F8) -> 0 | H7: 0 | I7: =COUNTIF(Vertices[Out-Degree], ">= " & H7) - COUNTIF(Vertices[Out-Degree], ">=" & H8) -> 0 | J7: 0 | K7: =COUNTIF(Vertices[Betweenness Centrality], ">= " & J7) - COUNTIF(Vertices[Betweenness Centrality], ">=" & J8) -> 0 | L7: 0 | M7: =COUNTIF(Vertices[Closeness Centrality], ">= " & L7) - COUNTIF(Vertices[Closeness Centrality], ">=" & L8) -> 0 | N7: 0 | O7: =COUNTIF(Vertices[Eigenvector Centrality], ">= " & N7) - COUNTIF(Vertices[Eigenvector Centrality], ">=" & N8) -> 0 | P7: 0 | Q7: =COUNTIF(Vertices[PageRank], ">= " & P7) - COUNTIF(Vertices[PageRank], ">=" & P8) -> 0 | R7: 0 | S7: =COUNTIF(Vertices[Clustering Coefficient], ">= " & R7) - COUNTIF(Vertices[Clustering Coefficient], ">=" & R8) -> 0 | T7: 99.35174419 | U7: 40
A8: Total Edges | B8: 599 | D8: 0 | E8: =COUNTIF(Vertices[Degree], ">= " & D8) - COUNTIF(Vertices[Degree], ">=" & D9) -> 0 | F8: 0 | G8: =COUNTIF(Vertices[In-Degree], ">= " & F8) - COUNTIF(Vertices[In-Degree], ">=" & F9) -> 0 | H8: 0 | I8: =COUNTIF(Vertices[Out-Degree], ">= " & H8) - COUNTIF(Vertices[Out-Degree], ">=" & H9) -> 0 | J8: 0 | K8: =COUNTIF(Vertices[Betweenness Centrality], ">= " & J8) - COUNTIF(Vertices[Betweenness Centrality], ">=" & J9) -> 0 | L8: 0 | M8: =COUNTIF(Vertices[Closeness Centrality], ">= " & L8) - COUNTIF(Vertices[Closeness Centrality], ">=" & L9) -> 0 | N8: 0 | O8: =COUNTIF(Vertices[Eigenvector Centrality], ">= " & N8) - COUNTIF(Vertices[Eigenvector Centrality], ">=" & N9) -> 0 | P8: 0 | Q8: =COUNTIF(Vertices[PageRank], ">= " & P8) - COUNTIF(Vertices[PageRank], ">=" & P9) -> 0 | R8: 0 | S8: =COUNTIF(Vertices[Clustering Coefficient], ">= " & R8) - COUNTIF(Vertices[Clustering Coefficient], ">=" & R9) -> 0 | T8: 118.372093 | U8: 32
D9: 0 | E9: =COUNTIF(Vertices[Degree], ">= " & D9) - COUNTIF(Vertices[Degree], ">=" & D10) -> 0 | F9: 0 | G9: =COUNTIF(Vertices[In-Degree], ">= " & F9) - COUNTIF(Vertices[In-Degree], ">=" & F10) -> 0 | H9: 0 | I9: =COUNTIF(Vertices[Out-Degree], ">= " & H9) - COUNTIF(Vertices[Out-Degree], ">=" & H10) -> 0 | J9: 0 | K9: =COUNTIF(Vertices[Betweenness Centrality], ">= " & J9) - COUNTIF(Vertices[Betweenness Centrality], ">=" & J10) -> 0 | L9: 0 | M9: =COUNTIF(Vertices[Closeness Centrality], ">= " & L9) - COUNTIF(Vertices[Closeness Centrality], ">=" & L10) -> 0 | N9: 0 | O9: =COUNTIF(Vertices[Eigenvector Centrality], ">= " & N9) - COUNTIF(Vertices[Eigenvector Centrality], ">=" & N10) -> 0 | P9: 0 | Q9: =COUNTIF(Vertices[PageRank], ">= " & P9) - COUNTIF(Vertices[PageRank], ">=" & P10) -> 0 | R9: 0 | S9: =COUNTIF(Vertices[Clustering Coefficient], ">= " & R9) - COUNTIF(Vertices[Clustering Coefficient], ">=" & R10) -> 0 | T9: 137.3924419 | U9: 18
A10: Self-Loops | B10: 0 | D10: 0 | E10: =COUNTIF(Vertices[Degree], ">= " & D10) - COUNTIF(Vertices[Degree], ">=" & D11) -> 0 | F10: 0 | G10: =COUNTIF(Vertices[In-Degree], ">= " & F10) - COUNTIF(Vertices[In-Degree], ">=" & F11) -> 0 | H10: 0 | I10: =COUNTIF(Vertices[Out-Degree], ">= " & H10) - COUNTIF(Vertices[Out-Degree], ">=" & H11) -> 0 | J10: 0 | K10: =COUNTIF(Vertices[Betweenness Centrality], ">= " & J10) - COUNTIF(Vertices[Betweenness Centrality], ">=" & J11) -> 0 | L10: 0 | M10: =COUNTIF(Vertices[Closeness Centrality], ">= " & L10) - COUNTIF(Vertices[Closeness Centrality], ">=" & L11) -> 0 | N10: 0 | O10: =COUNTIF(Vertices[Eigenvector Centrality], ">= " & N10) - COUNTIF(Vertices[Eigenvector Centrality], ">=" & N11) -> 0 | P10: 0 | Q10: =COUNTIF(Vertices[PageRank], ">= " & P10) - COUNTIF(Vertices[PageRank], ">=" & P11) -> 0 | R10: 0 | S10: =COUNTIF(Vertices[Clustering Coefficient], ">= " & R10) - COUNTIF(Vertices[Clustering Coefficient], ">=" & R11) -> 0 | T10: 156.4127907 | U10: 27
D11: 0 | E11: =COUNTIF(Vertices[Degree], ">= " & D11) - COUNTIF(Vertices[Degree], ">=" & D12) -> 0 | F11: 0 | G11: =COUNTIF(Vertices[In-Degree], ">= " & F11) - COUNTIF(Vertices[In-Degree], ">=" & F12) -> 0 | H11: 0 | I11: =COUNTIF(Vertices[Out-Degree], ">= " & H11) - COUNTIF(Vertices[Out-Degree], ">=" & H12) -> 0 | J11: 0 | K11: =COUNTIF(Vertices[Betweenness Centrality], ">= " & J11) - COUNTIF(Vertices[Betweenness Centrality], ">=" & J12) -> 0 | L11: 0 | M11: =COUNTIF(Vertices[Closeness Centrality], ">= " & L11) - COUNTIF(Vertices[Closeness Centrality], ">=" & L12) -> 0 | N11: 0 | O11: =COUNTIF(Vertices[Eigenvector Centrality], ">= " & N11) - COUNTIF(Vertices[Eigenvector Centrality], ">=" & N12) -> 0 | P11: 0 | Q11: =COUNTIF(Vertices[PageRank], ">= " & P11) - COUNTIF(Vertices[PageRank], ">=" & P12) -> 0 | R11: 0 | S11: =COUNTIF(Vertices[Clustering Coefficient], ">= " & R11) - COUNTIF(Vertices[Clustering Coefficient], ">=" & R12) -> 0 | T11: 175.4331395 | U11: 25
A12: Reciprocated Vertex Pair Ratio | B12: 0 | D12: 0 | E12: =COUNTIF(Vertices[Degree], ">= " & D12) - COUNTIF(Vertices[Degree], ">=" & D13) -> 0 | F12: 0 | G12: =COUNTIF(Vertices[In-Degree], ">= " & F12) - COUNTIF(Vertices[In-Degree], ">=" & F13) -> 0 | H12: 0 | I12: =COUNTIF(Vertices[Out-Degree], ">= " & H12) - COUNTIF(Vertices[Out-Degree], ">=" & H13) -> 0 | J12: 0 | K12: =COUNTIF(Vertices[Betweenness Centrality], ">= " & J12) - COUNTIF(Vertices[Betweenness Centrality], ">=" & J13) -> 0 | L12: 0 | M12: =COUNTIF(Vertices[Closeness Centrality], ">= " & L12) - COUNTIF(Vertices[Closeness Centrality], ">=" & L13) -> 0 | N12: 0 | O12: =COUNTIF(Vertices[Eigenvector Centrality], ">= " & N12) - COUNTIF(Vertices[Eigenvector Centrality], ">=" & N13) -> 0 | P12: 0 | Q12: =COUNTIF(Vertices[PageRank], ">= " & P12) - COUNTIF(Vertices[PageRank], ">=" & P13) -> 0 | R12: 0 | S12: =COUNTIF(Vertices[Clustering Coefficient], ">= " & R12) - COUNTIF(Vertices[Clustering Coefficient], ">=" & R13) -> 0 | T12: 194.4534884 | U12: 17
A13: Reciprocated Edge Ratio | B13: 0 | D13: 0 | E13: =COUNTIF(Vertices[Degree], ">= " & D13) - COUNTIF(Vertices[Degree], ">=" & D14) -> 0 | F13: 0 | G13: =COUNTIF(Vertices[In-Degree], ">= " & F13) - COUNTIF(Vertices[In-Degree], ">=" & F14) -> 0 | H13: 0 | I13: =COUNTIF(Vertices[Out-Degree], ">= " & H13) - COUNTIF(Vertices[Out-Degree], ">=" & H14) -> 0 | J13: 0 | K13: =COUNTIF(Vertices[Betweenness Centrality], ">= " & J13) - COUNTIF(Vertices[Betweenness Centrality], ">=" & J14) -> 0 | L13: 0 | M13: =COUNTIF(Vertices[Closeness Centrality], ">= " & L13) - COUNTIF(Vertices[Closeness Centrality], ">=" & L14) -> 0 | N13: 0 | O13: =COUNTIF(Vertices[Eigenvector Centrality], ">= " & N13) - COUNTIF(Vertices[Eigenvector Centrality], ">=" & N14) -> 0 | P13: 0 | Q13: =COUNTIF(Vertices[PageRank], ">= " & P13) - COUNTIF(Vertices[PageRank], ">=" & P14) -> 0 | R13: 0 | S13: =COUNTIF(Vertices[Clustering Coefficient], ">= " & R13) - COUNTIF(Vertices[Clustering Coefficient], ">=" & R14) -> 0 | T13: 213.4738372 | U13: 32
D14: 0 | E14: =COUNTIF(Vertices[Degree], ">= " & D14) - COUNTIF(Vertices[Degree], ">=" & D15) -> 0 | F14: 0 | G14: =COUNTIF(Vertices[In-Degree], ">= " & F14) - COUNTIF(Vertices[In-Degree], ">=" & F15) -> 0 | H14: 0 | I14: =COUNTIF(Vertices[Out-Degree], ">= " & H14) - COUNTIF(Vertices[Out-Degree], ">=" & H15) -> 0 | J14: 0 | K14: =COUNTIF(Vertices[Betweenness Centrality], ">= " & J14) - COUNTIF(Vertices[Betweenness Centrality], ">=" & J15) -> 0 | L14: 0 | M14: =COUNTIF(Vertices[Closeness Centrality], ">= " & L14) - COUNTIF(Vertices[Closeness Centrality], ">=" & L15) -> 0 | N14: 0 | O14: =COUNTIF(Vertices[Eigenvector Centrality], ">= " & N14) - COUNTIF(Vertices[Eigenvector Centrality], ">=" & N15) -> 0 | P14: 0 | Q14: =COUNTIF(Vertices[PageRank], ">= " & P14) - COUNTIF(Vertices[PageRank], ">=" & P15) -> 0 | R14: 0 | S14: =COUNTIF(Vertices[Clustering Coefficient], ">= " & R14) - COUNTIF(Vertices[Clustering Coefficient], ">=" & R15) -> 0 | T14: 232.494186 | U14: 16
A15: Connected Components | B15: 8 | D15: 0 | E15: =COUNTIF(Vertices[Degree], ">= " & D15) - COUNTIF(Vertices[Degree], ">=" & D16) -> 0 | F15: 0 | G15: =COUNTIF(Vertices[In-Degree], ">= " & F15) - COUNTIF(Vertices[In-Degree], ">=" & F16) -> 0 | H15: 0 | I15: =COUNTIF(Vertices[Out-Degree], ">= " & H15) - COUNTIF(Vertices[Out-Degree], ">=" & H16) -> 0 | J15: 0 | K15: =COUNTIF(Vertices[Betweenness Centrality], ">= " & J15) - COUNTIF(Vertices[Betweenness Centrality], ">=" & J16) -> 0 | L15: 0 | M15: =COUNTIF(Vertices[Closeness Centrality], ">= " & L15) - COUNTIF(Vertices[Closeness Centrality], ">=" & L16) -> 0 | N15: 0 | O15: =COUNTIF(Vertices[Eigenvector Centrality], ">= " & N15) - COUNTIF(Vertices[Eigenvector Centrality], ">=" & N16) -> 0 | P15: 0 | Q15: =COUNTIF(Vertices[PageRank], ">= " & P15) - COUNTIF(Vertices[PageRank], ">=" & P16) -> 0 | R15: 0 | S15: =COUNTIF(Vertices[Clustering Coefficient], ">= " & R15) - COUNTIF(Vertices[Clustering Coefficient], ">=" & R16) -> 0 | T15: 251.5145349 | U15: 13
A16: Single-Vertex Connected Components | B16: 2 | D16: 0 | E16: =COUNTIF(Vertices[Degree], ">= " & D16) - COUNTIF(Vertices[Degree], ">=" & D17) -> 0 | F16: 0 | G16: =COUNTIF(Vertices[In-Degree], ">= " & F16) - COUNTIF(Vertices[In-Degree], ">=" & F17) -> 0 | H16: 0 | I16: =COUNTIF(Vertices[Out-Degree], ">= " & H16) - COUNTIF(Vertices[Out-Degree], ">=" & H17) -> 0 | J16: 0 | K16: =COUNTIF(Vertices[Betweenness Centrality], ">= " & J16) - COUNTIF(Vertices[Betweenness Centrality], ">=" & J17) -> 0 | L16: 0 | M16: =COUNTIF(Vertices[Closeness Centrality], ">= " & L16) - COUNTIF(Vertices[Closeness Centrality], ">=" & L17) -> 0 | N16: 0 | O16: =COUNTIF(Vertices[Eigenvector Centrality], ">= " & N16) - COUNTIF(Vertices[Eigenvector Centrality], ">=" & N17) -> 0 | P16: 0 | Q16: =COUNTIF(Vertices[PageRank], ">= " & P16) - COUNTIF(Vertices[PageRank], ">=" & P17) -> 0 | R16: 0 | S16: =COUNTIF(Vertices[Clustering Coefficient], ">= " & R16) - COUNTIF(Vertices[Clustering Coefficient], ">=" & R17) -> 0 | T16: 270.5348837 | U16: 18
A17: Maximum Vertices in a Connected Component | B17: 68 | D17: 0 | E17: =COUNTIF(Vertices[Degree], ">= " & D17) - COUNTIF(Vertices[Degree], ">=" & D18) -> 0 | F17: 0 | G17: =COUNTIF(Vertices[In-Degree], ">= " & F17) - COUNTIF(Vertices[In-Degree], ">=" & F18) -> 0 | H17: 0 | I17: =COUNTIF(Vertices[Out-Degree], ">= " & H17) - COUNTIF(Vertices[Out-Degree], ">=" & H18) -> 0 | J17: 0 | K17: =COUNTIF(Vertices[Betweenness Centrality], ">= " & J17) - COUNTIF(Vertices[Betweenness Centrality], ">=" & J18) -> 0 | L17: 0 | M17: =COUNTIF(Vertices[Closeness Centrality], ">= " & L17) - COUNTIF(Vertices[Closeness Centrality], ">=" & L18) -> 0 | N17: 0 | O17: =COUNTIF(Vertices[Eigenvector Centrality], ">= " & N17) - COUNTIF(Vertices[Eigenvector Centrality], ">=" & N18) -> 0 | P17: 0 | Q17: =COUNTIF(Vertices[PageRank], ">= " & P17) - COUNTIF(Vertices[PageRank], ">=" & P18) -> 0 | R17: 0 | S17: =COUNTIF(Vertices[Clustering Coefficient], ">= " & R17) - COUNTIF(Vertices[Clustering Coefficient], ">=" & R18) -> 0 | T17: 289.5552326 | U17: 35
A18: Maximum Edges in a Connected Component | B18: 310 | D18: 0 | E18: =COUNTIF(Vertices[Degree], ">= " & D18) - COUNTIF(Vertices[Degree], ">=" & D19) -> 0 | F18: 0 | G18: =COUNTIF(Vertices[In-Degree], ">= " & F18) - COUNTIF(Vertices[In-Degree], ">=" & F19) -> 0 | H18: 0 | I18: =COUNTIF(Vertices[Out-Degree], ">= " & H18) - COUNTIF(Vertices[Out-Degree], ">=" & H19) -> 0 | J18: 0 | K18: =COUNTIF(Vertices[Betweenness Centrality], ">= " & J18) - COUNTIF(Vertices[Betweenness Centrality], ">=" & J19) -> 0 | L18: 0 | M18: =COUNTIF(Vertices[Closeness Centrality], ">= " & L18) - COUNTIF(Vertices[Closeness Centrality], ">=" & L19) -> 0 | N18: 0 | O18: =COUNTIF(Vertices[Eigenvector Centrality], ">= " & N18) - COUNTIF(Vertices[Eigenvector Centrality], ">=" & N19) -> 0 | P18: 0 | Q18: =COUNTIF(Vertices[PageRank], ">= " & P18) - COUNTIF(Vertices[PageRank], ">=" & P19) -> 0 | R18: 0 | S18: =COUNTIF(Vertices[Clustering Coefficient], ">= " & R18) - COUNTIF(Vertices[Clustering Coefficient], ">=" & R19) -> 0 | T18: 308.5755814 | U18: 34
D19: 0 | E19: =COUNTIF(Vertices[Degree], ">= " & D19) - COUNTIF(Vertices[Degree], ">=" & D20) -> 0 | F19: 0 | G19: =COUNTIF(Vertices[In-Degree], ">= " & F19) - COUNTIF(Vertices[In-Degree], ">=" & F20) -> 0 | H19: 0 | I19: =COUNTIF(Vertices[Out-Degree], ">= " & H19) - COUNTIF(Vertices[Out-Degree], ">=" & H20) -> 0 | J19: 0 | K19: =COUNTIF(Vertices[Betweenness Centrality], ">= " & J19) - COUNTIF(Vertices[Betweenness Centrality], ">=" & J20) -> 0 | L19: 0 | M19: =COUNTIF(Vertices[Closeness Centrality], ">= " & L19) - COUNTIF(Vertices[Closeness Centrality], ">=" & L20) -> 0 | N19: 0 | O19: =COUNTIF(Vertices[Eigenvector Centrality], ">= " & N19) - COUNTIF(Vertices[Eigenvector Centrality], ">=" & N20) -> 0 | P19: 0 | Q19: =COUNTIF(Vertices[PageRank], ">= " & P19) - COUNTIF(Vertices[PageRank], ">=" & P20) -> 0 | R19: 0 | S19: =COUNTIF(Vertices[Clustering Coefficient], ">= " & R19) - COUNTIF(Vertices[Clustering Coefficient], ">=" & R20) -> 0 | T19: 327.5959302 | U19: 22
A20: Maximum Geodesic Distance (Diameter) | B20: 6 | D20: 0 | E20: =COUNTIF(Vertices[Degree], ">= " & D20) - COUNTIF(Vertices[Degree], ">=" & D21) -> 0 | F20: 0 | G20: =COUNTIF(Vertices[In-Degree], ">= " & F20) - COUNTIF(Vertices[In-Degree], ">=" & F21) -> 0 | H20: 0 | I20: =COUNTIF(Vertices[Out-Degree], ">= " & H20) - COUNTIF(Vertices[Out-Degree], ">=" & H21) -> 0 | J20: 0 | K20: =COUNTIF(Vertices[Betweenness Centrality], ">= " & J20) - COUNTIF(Vertices[Betweenness Centrality], ">=" & J21) -> 0 | L20: 0 | M20: =COUNTIF(Vertices[Closeness Centrality], ">= " & L20) - COUNTIF(Vertices[Closeness Centrality], ">=" & L21) -> 0 | N20: 0 | O20: =COUNTIF(Vertices[Eigenvector Centrality], ">= " & N20) - COUNTIF(Vertices[Eigenvector Centrality], ">=" & N21) -> 0 | P20: 0 | Q20: =COUNTIF(Vertices[PageRank], ">= " & P20) - COUNTIF(Vertices[PageRank], ">=" & P21) -> 0 | R20: 0 | S20: =COUNTIF(Vertices[Clustering Coefficient], ">= " & R20) - COUNTIF(Vertices[Clustering Coefficient], ">=" & R21) -> 0 | T20: 346.6162791 | U20: 18
A21: Average Geodesic Distance | B21: 2.77054 | D21: 0 | E21: =COUNTIF(Vertices[Degree], ">= " & D21) - COUNTIF(Vertices[Degree], ">=" & D22) -> 0 | F21: 0 | G21: =COUNTIF(Vertices[In-Degree], ">= " & F21) - COUNTIF(Vertices[In-Degree], ">=" & F22) -> 0 | H21: 0 | I21: =COUNTIF(Vertices[Out-Degree], ">= " & H21) - COUNTIF(Vertices[Out-Degree], ">=" & H22) -> 0 | J21: 0 | K21: =COUNTIF(Vertices[Betweenness Centrality], ">= " & J21) - COUNTIF(Vertices[Betweenness Centrality], ">=" & J22) -> 0 | L21: 0 | M21: =COUNTIF(Vertices[Closeness Centrality], ">= " & L21) - COUNTIF(Vertices[Closeness Centrality], ">=" & L22) -> 0 | N21: 0 | O21: =COUNTIF(Vertices[Eigenvector Centrality], ">= " & N21) - COUNTIF(Vertices[Eigenvector Centrality], ">=" & N22) -> 0 | P21: 0 | Q21: =COUNTIF(Vertices[PageRank], ">= " & P21) - COUNTIF(Vertices[PageRank], ">=" & P22) -> 0 | R21: 0 | S21: =COUNTIF(Vertices[Clustering Coefficient], ">= " & R21) - COUNTIF(Vertices[Clustering Coefficient], ">=" & R22) -> 0 | T21: 365.6366279 | U21: 29
D22: 0 | E22: =COUNTIF(Vertices[Degree], ">= " & D22) - COUNTIF(Vertices[Degree], ">=" & D23) -> 0 | F22: 0 | G22: =COUNTIF(Vertices[In-Degree], ">= " & F22) - COUNTIF(Vertices[In-Degree], ">=" & F23) -> 0 | H22: 0 | I22: =COUNTIF(Vertices[Out-Degree], ">= " & H22) - COUNTIF(Vertices[Out-Degree], ">=" & H23) -> 0 | J22: 0 | K22: =COUNTIF(Vertices[Betweenness Centrality], ">= " & J22) - COUNTIF(Vertices[Betweenness Centrality], ">=" & J23) -> 0 | L22: 0 | M22: =COUNTIF(Vertices[Closeness Centrality], ">= " & L22) - COUNTIF(Vertices[Closeness Centrality], ">=" & L23) -> 0 | N22: 0 | O22: =COUNTIF(Vertices[Eigenvector Centrality], ">= " & N22) - COUNTIF(Vertices[Eigenvector Centrality], ">=" & N23) -> 0 | P22: 0 | Q22: =COUNTIF(Vertices[PageRank], ">= " & P22) - COUNTIF(Vertices[PageRank], ">=" & P23) -> 0 | R22: 0 | S22: =COUNTIF(Vertices[Clustering Coefficient], ">= " & R22) - COUNTIF(Vertices[Clustering Coefficient], ">=" & R23) -> 0 | T22: 384.6569767 | U22: 33
A23: Graph Density | B23: 0.0374328209 | D23: 0 | E23: =COUNTIF(Vertices[Degree], ">= " & D23) - COUNTIF(Vertices[Degree], ">=" & D24) -> 0 | F23: 0 | G23: =COUNTIF(Vertices[In-Degree], ">= " & F23) - COUNTIF(Vertices[In-Degree], ">=" & F24) -> 0 | H23: 0 | I23: =COUNTIF(Vertices[Out-Degree], ">= " & H23) - COUNTIF(Vertices[Out-Degree], ">=" & H24) -> 0 | J23: 0 | K23: =COUNTIF(Vertices[Betweenness Centrality], ">= " & J23) - COUNTIF(Vertices[Betweenness Centrality], ">=" & J24) -> 0 | L23: 0 | M23: =COUNTIF(Vertices[Closeness Centrality], ">= " & L23) - COUNTIF(Vertices[Closeness Centrality], ">=" & L24) -> 0 | N23: 0 | O23: =COUNTIF(Vertices[Eigenvector Centrality], ">= " & N23) - COUNTIF(Vertices[Eigenvector Centrality], ">=" & N24) -> 0 | P23: 0 | Q23: =COUNTIF(Vertices[PageRank], ">= " & P23) - COUNTIF(Vertices[PageRank], ">=" & P24) -> 0 | R23: 0 | S23: =COUNTIF(Vertices[Clustering Coefficient], ">= " & R23) - COUNTIF(Vertices[Clustering Coefficient], ">=" & R24) -> 0 | T23: 403.6773256 | U23: 40
A24: Modularity | B24: 0.617975 | D24: 0 | E24: =COUNTIF(Vertices[Degree], ">= " & D24) - COUNTIF(Vertices[Degree], ">=" & D25) -> 0 | F24: 0 | G24: =COUNTIF(Vertices[In-Degree], ">= " & F24) - COUNTIF(Vertices[In-Degree], ">=" & F25) -> 0 | H24: 0 | I24: =COUNTIF(Vertices[Out-Degree], ">= " & H24) - COUNTIF(Vertices[Out-Degree], ">=" & H25) -> 0 | J24: 0 | K24: =COUNTIF(Vertices[Betweenness Centrality], ">= " & J24) - COUNTIF(Vertices[Betweenness Centrality], ">=" & J25) -> 0 | L24: 0 | M24: =COUNTIF(Vertices[Closeness Centrality], ">= " & L24) - COUNTIF(Vertices[Closeness Centrality], ">=" & L25) -> 0 | N24: 0 | O24: =COUNTIF(Vertices[Eigenvector Centrality], ">= " & N24) - COUNTIF(Vertices[Eigenvector Centrality], ">=" & N25) -> 0 | P24: 0 | Q24: =COUNTIF(Vertices[PageRank], ">= " & P24) - COUNTIF(Vertices[PageRank], ">=" & P25) -> 0 | R24: 0 | S24: =COUNTIF(Vertices[Clustering Coefficient], ">= " & R24) - COUNTIF(Vertices[Clustering Coefficient], ">=" & R25) -> 0 | T24: 422.6976744 | U24: 39
D25: 0 | E25: =COUNTIF(Vertices[Degree], ">= " & D25) - COUNTIF(Vertices[Degree], ">=" & D26) -> 0 | F25: 0 | G25: =COUNTIF(Vertices[In-Degree], ">= " & F25) - COUNTIF(Vertices[In-Degree], ">=" & F26) -> 0 | H25: 0 | I25: =COUNTIF(Vertices[Out-Degree], ">= " & H25) - COUNTIF(Vertices[Out-Degree], ">=" & H26) -> 0 | J25: 0 | K25: =COUNTIF(Vertices[Betweenness Centrality], ">= " & J25) - COUNTIF(Vertices[Betweenness Centrality], ">=" & J26) -> 0 | L25: 0 | M25: =COUNTIF(Vertices[Closeness Centrality], ">= " & L25) - COUNTIF(Vertices[Closeness Centrality], ">=" & L26) -> 0 | N25: 0 | O25: =COUNTIF(Vertices[Eigenvector Centrality], ">= " & N25) - COUNTIF(Vertices[Eigenvector Centrality], ">=" & N26) -> 0 | P25: 0 | Q25: =COUNTIF(Vertices[PageRank], ">= " & P25) - COUNTIF(Vertices[PageRank], ">=" & P26) -> 0 | R25: 0 | S25: =COUNTIF(Vertices[Clustering Coefficient], ">= " & R25) - COUNTIF(Vertices[Clustering Coefficient], ">=" & R26) -> 0 | T25: 441.7180233 | U25: 46
A26: NodeXL Version | B26: 1.0.1.245 | D26: 0 | E26: =COUNTIF(Vertices[Degree], ">= " & D26) - COUNTIF(Vertices[Degree], ">=" & D27) -> 0 | F26: 0 | G26: =COUNTIF(Vertices[In-Degree], ">= " & F26) - COUNTIF(Vertices[In-Degree], ">=" & F27) -> 0 | H26: 0 | I26: =COUNTIF(Vertices[Out-Degree], ">= " & H26) - COUNTIF(Vertices[Out-Degree], ">=" & H27) -> 0 | J26: 0 | K26: =COUNTIF(Vertices[Betweenness Centrality], ">= " & J26) - COUNTIF(Vertices[Betweenness Centrality], ">=" & J27) -> 0 | L26: 0 | M26: =COUNTIF(Vertices[Closeness Centrality], ">= " & L26) - COUNTIF(Vertices[Closeness Centrality], ">=" & L27) -> 0 | N26: 0 | O26: =COUNTIF(Vertices[Eigenvector Centrality], ">= " & N26) - COUNTIF(Vertices[Eigenvector Centrality], ">=" & N27) -> 0 | P26: 0 | Q26: =COUNTIF(Vertices[PageRank], ">= " & P26) - COUNTIF(Vertices[PageRank], ">=" & P27) -> 0 | R26: 0 | S26: =COUNTIF(Vertices[Clustering Coefficient], ">= " & R26) - COUNTIF(Vertices[Clustering Coefficient], ">=" & R27) -> 0 | T26: 460.7383721 | U26: 23
D27: 0 | E27: =COUNTIF(Vertices[Degree], ">= " & D27) - COUNTIF(Vertices[Degree], ">=" & D28) -> 0 | F27: 0 | G27: =COUNTIF(Vertices[In-Degree], ">= " & F27) - COUNTIF(Vertices[In-Degree], ">=" & F28) -> 0 | H27: 0 | I27: =COUNTIF(Vertices[Out-Degree], ">= " & H27) - COUNTIF(Vertices[Out-Degree], ">=" & H28) -> 0 | J27: 0 | K27: =COUNTIF(Vertices[Betweenness Centrality], ">= " & J27) - COUNTIF(Vertices[Betweenness Centrality], ">=" & J28) -> 0 | L27: 0 | M27: =COUNTIF(Vertices[Closeness Centrality], ">= " & L27) - COUNTIF(Vertices[Closeness Centrality], ">=" & L28) -> 0 | N27: 0 | O27: =COUNTIF(Vertices[Eigenvector Centrality], ">= " & N27) - COUNTIF(Vertices[Eigenvector Centrality], ">=" & N28) -> 0 | P27: 0 | Q27: =COUNTIF(Vertices[PageRank], ">= " & P27) - COUNTIF(Vertices[PageRank], ">=" & P28) -> 0 | R27: 0 | S27: =COUNTIF(Vertices[Clustering Coefficient], ">= " & R27) - COUNTIF(Vertices[Clustering Coefficient], ">=" & R28) -> 0 | T27: 479.7587209 | U27: 27
D28: 0 | E28: =COUNTIF(Vertices[Degree], ">= " & D28) - COUNTIF(Vertices[Degree], ">=" & D29) -> 0 | F28: 0 | G28: =COUNTIF(Vertices[In-Degree], ">= " & F28) - COUNTIF(Vertices[In-Degree], ">=" & F29) -> 0 | H28: 0 | I28: =COUNTIF(Vertices[Out-Degree], ">= " & H28) - COUNTIF(Vertices[Out-Degree], ">=" & H29) -> 0 | J28: 0 | K28: =COUNTIF(Vertices[Betweenness Centrality], ">= " & J28) - COUNTIF(Vertices[Betweenness Centrality], ">=" & J29) -> 0 | L28: 0 | M28: =COUNTIF(Vertices[Closeness Centrality], ">= " & L28) - COUNTIF(Vertices[Closeness Centrality], ">=" & L29) -> 0 | N28: 0 | O28: =COUNTIF(Vertices[Eigenvector Centrality], ">= " & N28) - COUNTIF(Vertices[Eigenvector Centrality], ">=" & N29) -> 0 | P28: 0 | Q28: =COUNTIF(Vertices[PageRank], ">= " & P28) - COUNTIF(Vertices[PageRank], ">=" & P29) -> 0 | R28: 0 | S28: =COUNTIF(Vertices[Clustering Coefficient], ">= " & R28) - COUNTIF(Vertices[Clustering Coefficient], ">=" & R29) -> 0 | T28: 498.7790698 | U28: 51
A29: Readability Metric | B29: Value | D29: 0 | E29: =COUNTIF(Vertices[Degree], ">= " & D29) - COUNTIF(Vertices[Degree], ">=" & D30) -> 0 | F29: 0 | G29: =COUNTIF(Vertices[In-Degree], ">= " & F29) - COUNTIF(Vertices[In-Degree], ">=" & F30) -> 0 | H29: 0 | I29: =COUNTIF(Vertices[Out-Degree], ">= " & H29) - COUNTIF(Vertices[Out-Degree], ">=" & H30) -> 0 | J29: 0 | K29: =COUNTIF(Vertices[Betweenness Centrality], ">= " & J29) - COUNTIF(Vertices[Betweenness Centrality], ">=" & J30) -> 0 | L29: 0 | M29: =COUNTIF(Vertices[Closeness Centrality], ">= " & L29) - COUNTIF(Vertices[Closeness Centrality], ">=" & L30) -> 0 | N29: 0 | O29: =COUNTIF(Vertices[Eigenvector Centrality], ">= " & N29) - COUNTIF(Vertices[Eigenvector Centrality], ">=" & N30) -> 0 | P29: 0 | Q29: =COUNTIF(Vertices[PageRank], ">= " & P29) - COUNTIF(Vertices[PageRank], ">=" & P30) -> 0 | R29: 0 | S29: =COUNTIF(Vertices[Clustering Coefficient], ">= " & R29) - COUNTIF(Vertices[Clustering Coefficient], ">=" & R30) -> 0 | T29: 517.7994186 | U29: 16
D30: 0 | E30: =COUNTIF(Vertices[Degree], ">= " & D30) - COUNTIF(Vertices[Degree], ">=" & D31) -> 0 | F30: 0 | G30: =COUNTIF(Vertices[In-Degree], ">= " & F30) - COUNTIF(Vertices[In-Degree], ">=" & F31) -> 0 | H30: 0 | I30: =COUNTIF(Vertices[Out-Degree], ">= " & H30) - COUNTIF(Vertices[Out-Degree], ">=" & H31) -> 0 | J30: 0 | K30: =COUNTIF(Vertices[Betweenness Centrality], ">= " & J30) - COUNTIF(Vertices[Betweenness Centrality], ">=" & J31) -> 0 | L30: 0 | M30: =COUNTIF(Vertices[Closeness Centrality], ">= " & L30) - COUNTIF(Vertices[Closeness Centrality], ">=" & L31) -> 0 | N30: 0 | O30: =COUNTIF(Vertices[Eigenvector Centrality], ">= " & N30) - COUNTIF(Vertices[Eigenvector Centrality], ">=" & N31) -> 0 | P30: 0 | Q30: =COUNTIF(Vertices[PageRank], ">= " & P30) - COUNTIF(Vertices[PageRank], ">=" & P31) -> 0 | R30: 0 | S30: =COUNTIF(Vertices[Clustering Coefficient], ">= " & R30) - COUNTIF(Vertices[Clustering Coefficient], ">=" & R31) -> 0 | T30: 536.8197674 | U30: 19
D31: 0 | E31: =COUNTIF(Vertices[Degree], ">= " & D31) - COUNTIF(Vertices[Degree], ">=" & D32) -> 0 | F31: 0 | G31: =COUNTIF(Vertices[In-Degree], ">= " & F31) - COUNTIF(Vertices[In-Degree], ">=" & F32) -> 0 | H31: 0 | I31: =COUNTIF(Vertices[Out-Degree], ">= " & H31) - COUNTIF(Vertices[Out-Degree], ">=" & H32) -> 0 | J31: 0 | K31: =COUNTIF(Vertices[Betweenness Centrality], ">= " & J31) - COUNTIF(Vertices[Betweenness Centrality], ">=" & J32) -> 0 | L31: 0 | M31: =COUNTIF(Vertices[Closeness Centrality], ">= " & L31) - COUNTIF(Vertices[Closeness Centrality], ">=" & L32) -> 0 | N31: 0 | O31: =COUNTIF(Vertices[Eigenvector Centrality], ">= " & N31) - COUNTIF(Vertices[Eigenvector Centrality], ">=" & N32) -> 0 | P31: 0 | Q31: =COUNTIF(Vertices[PageRank], ">= " & P31) - COUNTIF(Vertices[PageRank], ">=" & P32) -> 0 | R31: 0 | S31: =COUNTIF(Vertices[Clustering Coefficient], ">= " & R31) - COUNTIF(Vertices[Clustering Coefficient], ">=" & R32) -> 0 | T31: 555.8401163 | U31: 12
D32: 0 | E32: =COUNTIF(Vertices[Degree], ">= " & D32) - COUNTIF(Vertices[Degree], ">=" & D33) -> 0 | F32: 0 | G32: =COUNTIF(Vertices[In-Degree], ">= " & F32) - COUNTIF(Vertices[In-Degree], ">=" & F33) -> 0 | H32: 0 | I32: =COUNTIF(Vertices[Out-Degree], ">= " & H32) - COUNTIF(Vertices[Out-Degree], ">=" & H33) -> 0 | J32: 0 | K32: =COUNTIF(Vertices[Betweenness Centrality], ">= " & J32) - COUNTIF(Vertices[Betweenness Centrality], ">=" & J33) -> 0 | L32: 0 | M32: =COUNTIF(Vertices[Closeness Centrality], ">= " & L32) - COUNTIF(Vertices[Closeness Centrality], ">=" & L33) -> 0 | N32: 0 | O32: =COUNTIF(Vertices[Eigenvector Centrality], ">= " & N32) - COUNTIF(Vertices[Eigenvector Centrality], ">=" & N33) -> 0 | P32: 0 | Q32: =COUNTIF(Vertices[PageRank], ">= " & P32) - COUNTIF(Vertices[PageRank], ">=" & P33) -> 0 | R32: 0 | S32: =COUNTIF(Vertices[Clustering Coefficient], ">= " & R32) - COUNTIF(Vertices[Clustering Coefficient], ">=" & R33) -> 0 | T32: 574.8604651 | U32: 20
D33: 0 | E33: =COUNTIF(Vertices[Degree], ">= " & D33) - COUNTIF(Vertices[Degree], ">=" & D34) -> 0 | F33: 0 | G33: =COUNTIF(Vertices[In-Degree], ">= " & F33) - COUNTIF(Vertices[In-Degree], ">=" & F34) -> 0 | H33: 0 | I33: =COUNTIF(Vertices[Out-Degree], ">= " & H33) - COUNTIF(Vertices[Out-Degree], ">=" & H34) -> 0 | J33: 0 | K33: =COUNTIF(Vertices[Betweenness Centrality], ">= " & J33) - COUNTIF(Vertices[Betweenness Centrality], ">=" & J34) -> 0 | L33: 0 | M33: =COUNTIF(Vertices[Closeness Centrality], ">= " & L33) - COUNTIF(Vertices[Closeness Centrality], ">=" & L34) -> 0 | N33: 0 | O33: =COUNTIF(Vertices[Eigenvector Centrality], ">= " & N33) - COUNTIF(Vertices[Eigenvector Centrality], ">=" & N34) -> 0 | P33: 0 | Q33: =COUNTIF(Vertices[PageRank], ">= " & P33) - COUNTIF(Vertices[PageRank], ">=" & P34) -> 0 | R33: 0 | S33: =COUNTIF(Vertices[Clustering Coefficient], ">= " & R33) - COUNTIF(Vertices[Clustering Coefficient], ">=" & R34) -> 0 | T33: 593.880814 | U33: 15
D34: 0 | E34: =COUNTIF(Vertices[Degree], ">= " & D34) - COUNTIF(Vertices[Degree], ">=" & D35) -> 0 | F34: 0 | G34: =COUNTIF(Vertices[In-Degree], ">= " & F34) - COUNTIF(Vertices[In-Degree], ">=" & F35) -> 0 | H34: 0 | I34: =COUNTIF(Vertices[Out-Degree], ">= " & H34) - COUNTIF(Vertices[Out-Degree], ">=" & H35) -> 0 | J34: 0 | K34: =COUNTIF(Vertices[Betweenness Centrality], ">= " & J34) - COUNTIF(Vertices[Betweenness Centrality], ">=" & J35) -> 0 | L34: 0 | M34: =COUNTIF(Vertices[Closeness Centrality], ">= " & L34) - COUNTIF(Vertices[Closeness Centrality], ">=" & L35) -> 0 | N34: 0 | O34: =COUNTIF(Vertices[Eigenvector Centrality], ">= " & N34) - COUNTIF(Vertices[Eigenvector Centrality], ">=" & N35) -> 0 | P34: 0 | Q34: =COUNTIF(Vertices[PageRank], ">= " & P34) - COUNTIF(Vertices[PageRank], ">=" & P35) -> 0 | R34: 0 | S34: =COUNTIF(Vertices[Clustering Coefficient], ">= " & R34) - COUNTIF(Vertices[Clustering Coefficient], ">=" & R35) -> 0 | T34: 612.9011628 | U34: 23
D35: 0 | E35: =COUNTIF(Vertices[Degree], ">= " & D35) - COUNTIF(Vertices[Degree], ">=" & D36) -> 0 | F35: 0 | G35: =COUNTIF(Vertices[In-Degree], ">= " & F35) - COUNTIF(Vertices[In-Degree], ">=" & F36) -> 0 | H35: 0 | I35: =COUNTIF(Vertices[Out-Degree], ">= " & H35) - COUNTIF(Vertices[Out-Degree], ">=" & H36) -> 0 | J35: 0 | K35: =COUNTIF(Vertices[Betweenness Centrality], ">= " & J35) - COUNTIF(Vertices[Betweenness Centrality], ">=" & J36) -> 0 | L35: 0 | M35: =COUNTIF(Vertices[Closeness Centrality], ">= " & L35) - COUNTIF(Vertices[Closeness Centrality], ">=" & L36) -> 0 | N35: 0 | O35: =COUNTIF(Vertices[Eigenvector Centrality], ">= " & N35) - COUNTIF(Vertices[Eigenvector Centrality], ">=" & N36) -> 0 | P35: 0 | Q35: =COUNTIF(Vertices[PageRank], ">= " & P35) - COUNTIF(Vertices[PageRank], ">=" & P36) -> 0 | R35: 0 | S35: =COUNTIF(Vertices[Clustering Coefficient], ">= " & R35) - COUNTIF(Vertices[Clustering Coefficient], ">=" & R36) -> 0 | T35: 631.9215116 | U35: 33
D36: 0 | E36: =COUNTIF(Vertices[Degree], ">= " & D36) - COUNTIF(Vertices[Degree], ">=" & D37) -> 0 | F36: 0 | G36: =COUNTIF(Vertices[In-Degree], ">= " & F36) - COUNTIF(Vertices[In-Degree], ">=" & F37) -> 0 | H36: 0 | I36: =COUNTIF(Vertices[Out-Degree], ">= " & H36) - COUNTIF(Vertices[Out-Degree], ">=" & H37) -> 0 | J36: 0 | K36: =COUNTIF(Vertices[Betweenness Centrality], ">= " & J36) - COUNTIF(Vertices[Betweenness Centrality], ">=" & J37) -> 0 | L36: 0 | M36: =COUNTIF(Vertices[Closeness Centrality], ">= " & L36) - COUNTIF(Vertices[Closeness Centrality], ">=" & L37) -> 0 | N36: 0 | O36: =COUNTIF(Vertices[Eigenvector Centrality], ">= " & N36) - COUNTIF(Vertices[Eigenvector Centrality], ">=" & N37) -> 0 | P36: 0 | Q36: =COUNTIF(Vertices[PageRank], ">= " & P36) - COUNTIF(Vertices[PageRank], ">=" & P37) -> 0 | R36: 0 | S36: =COUNTIF(Vertices[Clustering Coefficient], ">= " & R36) - COUNTIF(Vertices[Clustering Coefficient], ">=" & R37) -> 0 | T36: 650.9418605 | U36: 29
D37: 0 | E37: =COUNTIF(Vertices[Degree], ">= " & D37) - COUNTIF(Vertices[Degree], ">=" & D38) -> 0 | F37: 0 | G37: =COUNTIF(Vertices[In-Degree], ">= " & F37) - COUNTIF(Vertices[In-Degree], ">=" & F38) -> 0 | H37: 0 | I37: =COUNTIF(Vertices[Out-Degree], ">= " & H37) - COUNTIF(Vertices[Out-Degree], ">=" & H38) -> 0 | J37: 0 | K37: =COUNTIF(Vertices[Betweenness Centrality], ">= " & J37) - COUNTIF(Vertices[Betweenness Centrality], ">=" & J38) -> 0 | L37: 0 | M37: =COUNTIF(Vertices[Closeness Centrality], ">= " & L37) - COUNTIF(Vertices[Closeness Centrality], ">=" & L38) -> 0 | N37: 0 | O37: =COUNTIF(Vertices[Eigenvector Centrality], ">= " & N37) - COUNTIF(Vertices[Eigenvector Centrality], ">=" & N38) -> 0 | P37: 0 | Q37: =COUNTIF(Vertices[PageRank], ">= " & P37) - COUNTIF(Vertices[PageRank], ">=" & P38) -> 0 | R37: 0 | S37: =COUNTIF(Vertices[Clustering Coefficient], ">= " & R37) - COUNTIF(Vertices[Clustering Coefficient], ">=" & R38) -> 0 | T37: 669.9622093 | U37: 34
D38: 0 | E38: =COUNTIF(Vertices[Degree], ">= " & D38) - COUNTIF(Vertices[Degree], ">=" & D39) -> 0 | F38: 0 | G38: =COUNTIF(Vertices[In-Degree], ">= " & F38) - COUNTIF(Vertices[In-Degree], ">=" & F39) -> 0 | H38: 0 | I38: =COUNTIF(Vertices[Out-Degree], ">= " & H38) - COUNTIF(Vertices[Out-Degree], ">=" & H39) -> 0 | J38: 0 | K38: =COUNTIF(Vertices[Betweenness Centrality], ">= " & J38) - COUNTIF(Vertices[Betweenness Centrality], ">=" & J39) -> 0 | L38: 0 | M38: =COUNTIF(Vertices[Closeness Centrality], ">= " & L38) - COUNTIF(Vertices[Closeness Centrality], ">=" & L39) -> 0 | N38: 0 | O38: =COUNTIF(Vertices[Eigenvector Centrality], ">= " & N38) - COUNTIF(Vertices[Eigenvector Centrality], ">=" & N39) -> 0 | P38: 0 | Q38: =COUNTIF(Vertices[PageRank], ">= " & P38) - COUNTIF(Vertices[PageRank], ">=" & P39) -> 0 | R38: 0 | S38: =COUNTIF(Vertices[Clustering Coefficient], ">= " & R38) - COUNTIF(Vertices[Clustering Coefficient], ">=" & R39) -> 0 | T38: 688.9825581 | U38: 38
D39: 0 | E39: =COUNTIF(Vertices[Degree], ">= " & D39) - COUNTIF(Vertices[Degree], ">=" & D40) -> 0 | F39: 0 | G39: =COUNTIF(Vertices[In-Degree], ">= " & F39) - COUNTIF(Vertices[In-Degree], ">=" & F40) -> 0 | H39: 0 | I39: =COUNTIF(Vertices[Out-Degree], ">= " & H39) - COUNTIF(Vertices[Out-Degree], ">=" & H40) -> 0 | J39: 0 | K39: =COUNTIF(Vertices[Betweenness Centrality], ">= " & J39) - COUNTIF(Vertices[Betweenness Centrality], ">=" & J40) -> 0 | L39: 0 | M39: =COUNTIF(Vertices[Closeness Centrality], ">= " & L39) - COUNTIF(Vertices[Closeness Centrality], ">=" & L40) -> 0 | N39: 0 | O39: =COUNTIF(Vertices[Eigenvector Centrality], ">= " & N39) - COUNTIF(Vertices[Eigenvector Centrality], ">=" & N40) -> 0 | P39: 0 | Q39: =COUNTIF(Vertices[PageRank], ">= " & P39) - COUNTIF(Vertices[PageRank], ">=" & P40) -> 0 | R39: 0 | S39: =COUNTIF(Vertices[Clustering Coefficient], ">= " & R39) - COUNTIF(Vertices[Clustering Coefficient], ">=" & R40) -> 0 | T39: 708.002907 | U39: 30
D40: 0 | E40: =COUNTIF(Vertices[Degree], ">= " & D40) - COUNTIF(Vertices[Degree], ">=" & D41) -> 0 | F40: 0 | G40: =COUNTIF(Vertices[In-Degree], ">= " & F40) - COUNTIF(Vertices[In-Degree], ">=" & F41) -> 0 | H40: 0 | I40: =COUNTIF(Vertices[Out-Degree], ">= " & H40) - COUNTIF(Vertices[Out-Degree], ">=" & H41) -> 0 | J40: 0 | K40: =COUNTIF(Vertices[Betweenness Centrality], ">= " & J40) - COUNTIF(Vertices[Betweenness Centrality], ">=" & J41) -> 0 | L40: 0 | M40: =COUNTIF(Vertices[Closeness Centrality], ">= " & L40) - COUNTIF(Vertices[Closeness Centrality], ">=" & L41) -> 0 | N40: 0 | O40: =COUNTIF(Vertices[Eigenvector Centrality], ">= " & N40) - COUNTIF(Vertices[Eigenvector Centrality], ">=" & N41) -> 0 | P40: 0 | Q40: =COUNTIF(Vertices[PageRank], ">= " & P40) - COUNTIF(Vertices[PageRank], ">=" & P41) -> 0 | R40: 0 | S40: =COUNTIF(Vertices[Clustering Coefficient], ">= " & R40) - COUNTIF(Vertices[Clustering Coefficient], ">=" & R41) -> 0 | T40: 727.0232558 | U40: 27
D41: 0 | E41: =COUNTIF(Vertices[Degree], ">= " & D41) - COUNTIF(Vertices[Degree], ">=" & D42) -> 0 | F41: 0 | G41: =COUNTIF(Vertices[In-Degree], ">= " & F41) - COUNTIF(Vertices[In-Degree], ">=" & F42) -> 0 | H41: 0 | I41: =COUNTIF(Vertices[Out-Degree], ">= " & H41) - COUNTIF(Vertices[Out-Degree], ">=" & H42) -> 0 | J41: 0 | K41: =COUNTIF(Vertices[Betweenness Centrality], ">= " & J41) - COUNTIF(Vertices[Betweenness Centrality], ">=" & J42) -> 0 | L41: 0 | M41: =COUNTIF(Vertices[Closeness Centrality], ">= " & L41) - COUNTIF(Vertices[Closeness Centrality], ">=" & L42) -> 0 | N41: 0 | O41: =COUNTIF(Vertices[Eigenvector Centrality], ">= " & N41) - COUNTIF(Vertices[Eigenvector Centrality], ">=" & N42) -> 0 | P41: 0 | Q41: =COUNTIF(Vertices[PageRank], ">= " & P41) - COUNTIF(Vertices[PageRank], ">=" & P42) -> 0 | R41: 0 | S41: =COUNTIF(Vertices[Clustering Coefficient], ">= " & R41) - COUNTIF(Vertices[Clustering Coefficient], ">=" & R42) -> 0 | T41: 746.0436047 | U41: 41
D42: 0 | E42: =COUNTIF(Vertices[Degree], ">= " & D42) - COUNTIF(Vertices[Degree], ">=" & D43) -> 0 | F42: 0 | G42: =COUNTIF(Vertices[In-Degree], ">= " & F42) - COUNTIF(Vertices[In-Degree], ">=" & F43) -> 0 | H42: 0 | I42: =COUNTIF(Vertices[Out-Degree], ">= " & H42) - COUNTIF(Vertices[Out-Degree], ">=" & H43) -> 0 | J42: 0 | K42: =COUNTIF(Vertices[Betweenness Centrality], ">= " & J42) - COUNTIF(Vertices[Betweenness Centrality], ">=" & J43) -> 0 | L42: 0 | M42: =COUNTIF(Vertices[Closeness Centrality], ">= " & L42) - COUNTIF(Vertices[Closeness Centrality], ">=" & L43) -> 0 | N42: 0 | O42: =COUNTIF(Vertices[Eigenvector Centrality], ">= " & N42) - COUNTIF(Vertices[Eigenvector Centrality], ">=" & N43) -> 0 | P42: 0 | Q42: =COUNTIF(Vertices[PageRank], ">= " & P42) - COUNTIF(Vertices[PageRank], ">=" & P43) -> 0 | R42: 0 | S42: =COUNTIF(Vertices[Clustering Coefficient], ">= " & R42) - COUNTIF(Vertices[Clustering Coefficient], ">=" & R43) -> 0 | T42: 765.0639535 | U42: 19
A43: Minimum Degree | B43: =IF(COUNT(Vertices[Degree])>0, D2, NoMetricMessage) -> Not Available | D43: 0 | E43: =COUNTIF(Vertices[Degree], ">= " & D43) - COUNTIF(Vertices[Degree], ">=" & D44) -> 0 | F43: 0 | G43: =COUNTIF(Vertices[In-Degree], ">= " & F43) - COUNTIF(Vertices[In-Degree], ">=" & F44) -> 0 | H43: 0 | I43: =COUNTIF(Vertices[Out-Degree], ">= " & H43) - COUNTIF(Vertices[Out-Degree], ">=" & H44) -> 0 | J43: 0 | K43: =COUNTIF(Vertices[Betweenness Centrality], ">= " & J43) - COUNTIF(Vertices[Betweenness Centrality], ">=" & J44) -> 0 | L43: 0 | M43: =COUNTIF(Vertices[Closeness Centrality], ">= " & L43) - COUNTIF(Vertices[Closeness Centrality], ">=" & L44) -> 0 | N43: 0 | O43: =COUNTIF(Vertices[Eigenvector Centrality], ">= " & N43) - COUNTIF(Vertices[Eigenvector Centrality], ">=" & N44) -> 0 | P43: 0 | Q43: =COUNTIF(Vertices[PageRank], ">= " & P43) - COUNTIF(Vertices[PageRank], ">=" & P44) -> 0 | R43: 0 | S43: =COUNTIF(Vertices[Clustering Coefficient], ">= " & R43) - COUNTIF(Vertices[Clustering Coefficient], ">=" & R44) -> 0 | T43: 784.0843023 | U43: 29
A44: Maximum Degree | B44: =IF(COUNT(Vertices[Degree])>0, D45, NoMetricMessage) -> Not Available | D44: 0 | E44: =COUNTIF(Vertices[Degree], ">= " & D44) - COUNTIF(Vertices[Degree], ">=" & D45) -> 0 | F44: 0 | G44: =COUNTIF(Vertices[In-Degree], ">= " & F44) - COUNTIF(Vertices[In-Degree], ">=" & F45) -> 0 | H44: 0 | I44: =COUNTIF(Vertices[Out-Degree], ">= " & H44) - COUNTIF(Vertices[Out-Degree], ">=" & H45) -> 0 | J44: 0 | K44: =COUNTIF(Vertices[Betweenness Centrality], ">= " & J44) - COUNTIF(Vertices[Betweenness Centrality], ">=" & J45) -> 0 | L44: 0 | M44: =COUNTIF(Vertices[Closeness Centrality], ">= " & L44) - COUNTIF(Vertices[Closeness Centrality], ">=" & L45) -> 0 | N44: 0 | O44: =COUNTIF(Vertices[Eigenvector Centrality], ">= " & N44) - COUNTIF(Vertices[Eigenvector Centrality], ">=" & N45) -> 0 | P44: 0 | Q44: =COUNTIF(Vertices[PageRank], ">= " & P44) - COUNTIF(Vertices[PageRank], ">=" & P45) -> 0 | R44: 0 | S44: =COUNTIF(Vertices[Clustering Coefficient], ">= " & R44) - COUNTIF(Vertices[Clustering Coefficient], ">=" & R45) -> 0 | T44: 803.1046512 | U44: 19
A45: Average Degree | B45: =IFERROR(AVERAGE(Vertices[Degree]),NoMetricMessage) -> Not Available | D45: =MAX(Vertices[Degree]) -> 0 | E45: =COUNTIF(Vertices[Degree], ">= " & D45) - COUNTIF(Vertices[Degree], ">=" & D46) -> 0 | F45: =MAX(Vertices[In-Degree]) -> 0 | G45: =COUNTIF(Vertices[In-Degree], ">= " & F45) - COUNTIF(Vertices[In-Degree], ">=" & F46) -> 0 | H45: =MAX(Vertices[Out-Degree]) -> 0 | I45: =COUNTIF(Vertices[Out-Degree], ">= " & H45) - COUNTIF(Vertices[Out-Degree], ">=" & H46) -> 0 | J45: =MAX(Vertices[Betweenness Centrality]) -> 0 | K45: =COUNTIF(Vertices[Betweenness Centrality], ">= " & J45) - COUNTIF(Vertices[Betweenness Centrality], ">=" & J46) -> 0 | L45: =MAX(Vertices[Closeness Centrality]) -> 0 | M45: =COUNTIF(Vertices[Closeness Centrality], ">= " & L45) - COUNTIF(Vertices[Closeness Centrality], ">=" & L46) -> 0 | N45: =MAX(Vertices[Eigenvector Centrality]) -> 0 | O45: =COUNTIF(Vertices[Eigenvector Centrality], ">= " & N45) - COUNTIF(Vertices[Eigenvector Centrality], ">=" & N46) -> 0 | P45: =MAX(Vertices[PageRank]) -> 0 | Q45: =COUNTIF(Vertices[PageRank], ">= " & P45) - COUNTIF(Vertices[PageRank], ">=" & P46) -> 0 | R45: =MAX(Vertices[Clustering Coefficient]) -> 0 | S45: =COUNTIF(Vertices[Clustering Coefficient], ">= " & R45) - COUNTIF(Vertices[Clustering Coefficient], ">=" & R46) -> 0 | T45: =MAX(INDIRECT(DynamicFilterSourceColumnRange)) -> 822.125 | U45: 1
A46: Median Degree | B46: =IFERROR(MEDIAN(Vertices[Degree]),NoMetricMessage) -> Not Available
A57: Minimum In-Degree | B57: =IF(COUNT(Vertices[In-Degree])>0, F2, NoMetricMessage) -> Not Available
A58: Maximum In-Degree | B58: =IF(COUNT(Vertices[In-Degree])>0, F45, NoMetricMessage) -> Not Available
A59: Average In-Degree | B59: =IFERROR(AVERAGE(Vertices[In-Degree]),NoMetricMessage) -> Not Available
A60: Median In-Degree | B60: =IFERROR(MEDIAN(Vertices[In-Degree]),NoMetricMessage) -> Not Available
A71: Minimum Out-Degree | B71: =IF(COUNT(Vertices[Out-Degree])>0, H2, NoMetricMessage) -> Not Available
A72: Maximum Out-Degree | B72: =IF(COUNT(Vertices[Out-Degree])>0, H45, NoMetricMessage) -> Not Available
A73: Average Out-Degree | B73: =IFERROR(AVERAGE(Vertices[Out-Degree]),NoMetricMessage) -> Not Available
A74: Median Out-Degree | B74: =IFERROR(MEDIAN(Vertices[Out-Degree]),NoMetricMessage) -> Not Available
A85: Minimum Betweenness Centrality | B85: =IF(COUNT(Vertices[Betweenness Centrality])>0, J2, NoMetricMessage) -> Not Available
A86: Maximum Betweenness Centrality | B86: =IF(COUNT(Vertices[Betweenness Centrality])>0, J45, NoMetricMessage) -> Not Available
A87: Average Betweenness Centrality | B87: =IFERROR(AVERAGE(Vertices[Betweenness Centrality]),NoMetricMessage) -> Not Available
A88: Median Betweenness Centrality | B88: =IFERROR(MEDIAN(Vertices[Betweenness Centrality]),NoMetricMessage) -> Not Available
A99: Minimum Closeness Centrality | B99: =IF(COUNT(Vertices[Closeness Centrality])>0, L2, NoMetricMessage) -> Not Available
A100: Maximum Closeness Centrality | B100: =IF(COUNT(Vertices[Closeness Centrality])>0, L45, NoMetricMessage) -> Not Available
A101: Average Closeness Centrality | B101: =IFERROR(AVERAGE(Vertices[Closeness Centrality]),NoMetricMessage) -> Not Available
A102: Median Closeness Centrality | B102: =IFERROR(MEDIAN(Vertices[Closeness Centrality]),NoMetricMessage) -> Not Available
A113: Minimum Eigenvector Centrality | B113: =IF(COUNT(Vertices[Eigenvector Centrality])>0, N2, NoMetricMessage) -> Not Available
A114: Maximum Eigenvector Centrality | B114: =IF(COUNT(Vertices[Eigenvector Centrality])>0, N45, NoMetricMessage) -> Not Available
A115: Average Eigenvector Centrality | B115: =IFERROR(AVERAGE(Vertices[Eigenvector Centrality]),NoMetricMessage) -> Not Available
A116: Median Eigenvector Centrality | B116: =IFERROR(MEDIAN(Vertices[Eigenvector Centrality]),NoMetricMessage) -> Not Available
A127: Minimum PageRank | B127: =IF(COUNT(Vertices[PageRank])>0, P2, NoMetricMessage) -> Not Available
A128: Maximum PageRank | B128: =IF(COUNT(Vertices[PageRank])>0, P45, NoMetricMessage) -> Not Available
A129: Average PageRank | B129: =IFERROR(AVERAGE(Vertices[PageRank]),NoMetricMessage) -> Not Available
A130: Median PageRank | B130: =IFERROR(MEDIAN(Vertices[PageRank]),NoMetricMessage) -> Not Available
A141: Minimum Clustering Coefficient | B141: =IF(COUNT(Vertices[Clustering Coefficient])>0, R2, NoMetricMessage) -> Not Available
A142: Maximum Clustering Coefficient | B142: =IF(COUNT(Vertices[Clustering Coefficient])>0, R45, NoMetricMessage) -> Not Available
A143: Average Clustering Coefficient | B143: =IFERROR(AVERAGE(Vertices[Clustering Coefficient]),NoMetricMessage) -> Not Available
A144: Median Clustering Coefficient | B144: =IFERROR(MEDIAN(Vertices[Clustering Coefficient]),NoMetricMessage) -> Not Available

Sheet Misc (hidden)
A1: Valid Edge Visibilities | B1: Valid Edge Styles | C1: Valid Vertex Visibilities | D1: Valid Vertex Shapes | E1: Valid Group Shapes | F1: Valid Group Visibilities | G1: Valid Booleans Default False | H1: Valid Vertex Label Positions | J1: Per-Workbook Setting | K1: Value | M1: Table Name | N1: Column Name | O1: Selected Minimum | P1: Selected Maximum
A2: Show | B2: Solid | C2: Show if in an Edge | D2: Circle | E2: Circle | F2: Show | G2: No | H2: Nowhere | J2: Template Version | K2: 105 | M2: Vertices | N2: X | O2: 276 | P2: 9421.991211
A3: Skip | B3: Dash | C3: Skip | D3: Disk | E3: Disk | F3: Skip | G3: Yes | H3: Top Left | J3: Graph Directedness | K3: Directed | M3: Vertices | N3: Y | O3: 4378.07959 | P3: 5620.921387
A4: Hide | B4: Dot | C4: Hide | D4: Sphere | E4: Sphere | F4: Hide | G4: 0 | H4: Top Center | J4: Auto Layout on Open | M4: Vertices | N4: Onset | O4: 1 | P4: 150.75
A5: 1 | B5: Dash Dot | C5: Show | D5: Square | E5: Square | F5: 1 | G5: 1 | H5: Top Right | J5: Workbook Settings 1 | K5: <?xml version="1.0" encoding="utf-8"?> <configuration> <configSections> <sectionGroup name="userSettings" type="System.Configuration.UserSettingsGroup, System, Version=2.0.0.0, Culture=neutral, PublicKeyToken=b77a5c561934e089"> <section name="ColumnGroupUserSettings" type="System.Configuration.ClientSettingsSection, System, Version=2.0.0.0, Culture=neutral, PublicKeyToken=b77a5c561934e089" allowExeDefinition="MachineToLocalUser" requirePermission="false" /> <section name="GraphMetricUserSettings" type="System.Configuration.ClientSettingsSection, System, Version=2.0.0.0, Culture=neutral, PublicKeyToken=b77a5c561934e089" allowExeDefinition="MachineToLocalUser" requirePermission="false" /> <section name="MotifUserSettings" type="System.Configuration.ClientSettingsSection, System, Version=2.0.0.0, Culture=neutral, PublicKeyToken=b77a5c561934e089" allowExeDefinition="MachineToLocalUser" requirePermission="false" /> <section name="GraphImageUserSettings2" type="System.Configuration.ClientSettingsSection, System, Version=2.0.0.0, Culture=neutral, PublicKeyToken=b77a5c561934e089" allowExeDefinition="MachineToLocalUser" requirePermission="false" /> <section name="GroupUserSettings" type="System.Configuration.ClientSettingsSection, System, Version=2.0.0.0, Culture=neutral, PublicKeyToken=b77a5c561934e089" allowExeDefinition="MachineToLocalUser" requirePermission="false" /> <section name="AutomateTasksUserSettings" type="System.Configuration.ClientSettingsSection, System, Version=2.0.0.0, Culture=neutral, PublicKeyToken=b77a5c561934e089" allowExeDefinition="MachineToLocalUser" requirePermission="false" /> <section name="DynamicFiltersUserSettings" type="System.Configuration.ClientSettingsSection, System, Version=2.0.0.0, Culture=neutral, PublicKeyToken=b77a5c561934e089" allowExeDefinition="MachineToLocalUser" requirePermission="false" /> <section name="LayoutUserSettings" type="System.Configuration.ClientSettingsSection, System, Version=2.0.0.0, Culture=neutral, PublicKeyToken=b77a5c561934e089" allowExeDefinition="MachineToLocalUser" requirePermission="false" /> <section name="AutoFillUserSettings3" type="System.Configuration.ClientSettingsSection, System, Version=2.0.0.0, Culture=neutral, PublicKeyToken=b77a5c561934e089" allowExeDefinition="MachineToLocalUser" requirePermission="false" /> <section name="GeneralUserSettings4" type="System.Configuration.ClientSettingsSection, System, Version=2.0.0.0, Culture=neutral, PublicKeyToken=b77a5c561934e089" allowExeDefinition="MachineToLocalUser" requirePermission="false" /> <section name="GraphZoomAndScaleUserSettings" type="System.Configuration.ClientSettingsSection, System, Version=2.0.0.0, Culture=neutral, PublicKeyToken=b77a5c561934e089" allowExeDefinition="MachineToLocalUser" requirePermission="false" /> </sectionGroup> </configSections> <userSettings> <ColumnGroupUserSettings> <setting name="ColumnGroupsToShow" serializeAs="String"> <value>EdgeDoNotHide, EdgeVisualAttributes, EdgeLabels, EdgeGraphMetrics, EdgeOtherColumns, VertexDoNotHide, VertexVisualAttributes, VertexGraphMetrics, VertexLabels, VertexOtherColumns, GroupDoNotHide, GroupVisualAttributes, GroupLabels, GroupGraphMetrics, GroupEdgeDoNotHide, GroupEdgeGraphMetrics</value> </setting> </ColumnGroupUserSettings> <GraphMetricUserSettings> <setting name="GraphMetricsToCalculate" serializeAs="String"> <value>BrandesFastCentralities, OverallMetrics</value> </setting> </GraphMetricUserSettings> <MotifUserSettings> <setting name="CliqueMaximumMemberVertices" serializeAs="String"> <value>9999</value> </setting> <setting name="CliqueMinimumMemberVertices" serializeAs="String"> <value>4</value> </setting> <setting name="MotifsToCalculate" serializeAs="String"> <value>DConnector</value> </setting> <setting name="DConnectorMaximumAnchorVertices" serializeAs="String"> <value>9999</value> </setting> <setting name="DConnectorMinimumAnchorVertices" serializeAs="String"> <value>2</value> </setting> </MotifUserSettings> <GraphImageUserSettings2> <setting name="ImageSize" serializeAs="String"> <value>1000, 673</value> </setting> <setting name="IncludeFooter" serializeAs="String"> <value>False</value> </setting> <setting name="IncludeHeader" serializeAs="String"> <value>False</value> </setting> <setting name="UseControlSize" serializeAs="String"> <value>False</value> </setting> <setting name="FooterText" serializeAs="String"> <value>Created with NodeXL (http://nodexl.codeplex.com)</value> </setting> <setting name="HeaderFooterFont" serializeAs="String"> <value>Microsoft Sans Serif, 8.25pt</value> </setting> <setting name="HeaderText" serializeAs="String"> <value /> </setting> </GraphImageUserSettings2> <GroupUserSettings> <setting name="ReadGroups" serializeAs="String"> <value>True</value> </setting> <setting name="ReadVertexShapeFromGroups" serializeAs="String"> <value>False</value> </setting> <setting name="ReadVertexColorFromGroups" serializeAs="String"> <value>False</value> </setting> </GroupUserSettings> <AutomateTasksUserSettings> <setting name="FolderToAutomate" serializeAs="String"> <value /> </setting> <setting name="TasksToRun" serializeAs="String"> <value>AutoFillWorkbook, ReadWorkbook</value> </setting> <setting name="AutomateThisWorkbookOnly" serializeAs="String"> <value>True</value> </setting> </AutomateTasksUserSettings> <DynamicFiltersUserSettings> <setting name="FilterNonNume | M5: Vertices | N5: Offset | O5: 3 | P5: 152.25
A6: 0 | B6: Dash Dot Dot | C6: 1 | D6: Solid Square | E6: Solid Square | F6: 0 | H6: Middle Left | J6: Workbook Settings Cell Count | K6: 3 | M6: Vertices | N6: Type | O6: 1.1 | P6: 8.1 | R6: The empty chart above is used to create histogram images for dynamic filters. It is associated with two columns in the HistogramBins table on the Overall Metrics worksheet, and on the HistogramProperties table on that worksheet. The chart is on this worksheet instead of the more logical Overall Metrics worksheet because the chart must be visible for a histogram image to be created. If the chart where in Overall Metrics in a visible range the user would see it, whereas the user never sees this Misc worksheet because the entire worksheet is hidden.
A7: 2 | B7: 1 | C7: 0 | D7: Diamond | E7: Diamond | F7: 2 | H7: Middle Center | J7: Graph History | K7: LayoutAlgorithm░The graph was laid out using the Sugiyama layout algorithm.▓GraphDirectedness░The graph is directed.▓GroupingDescription░The graph's vertices were grouped by connected component.
B8: 2 | C8: 2 | D8: Solid Diamond | E8: Solid Diamond | H8: Middle Right | J8: Autofill Workbook Results | K8: S▓0▓1▓0▓True▓64, 0, 64▓128, 255, 0▓▓N▓0▓1▓0▓1▓2▓False▓▓0▓0▓0▓0▓0▓False▓Type▓0▓1▓0▓False▓241, 137, 4▓46, 7, 195▓1.1░1.11░1.2░1.17░1.128░1.18░1.3░1.42░1.12░2.1░1.7░1.6░1.141░1.122░3.1░1.4░1.5░1.20a░1.8░1.13░1.9░1.14░1.15░1.16░4.1░1.151░1.19░1.21░1.22░1.23░1.24░1.25░1.26░1.96░1.27░1.97░5.1░1.28░1.29░1.31░6.1░7.1░1.32░1.33░1.34░1.35░8.1░1.36░1.37░1.38░9.1░1.39░10.1░11.1░1.98░1.16a(x12)░13.1░1.43░1.44░1.41░1.45░1.46░1.47░1.48░14.1░1.49░1.51░1.52░1.133░1.53░15.1░1.54░16.1░1.55░17.1░1.173░1.56░1.179░1.57░18.1░1.58░19.1░20.1░18.2░1.59░21.1░1.61░13.2░22.1░1.62░1.63░1.64░23.1░1.65░1.66░1.67░1.68░1.69░1.72░1.71░1.73░1.74░1.75░1.76░1.77░1.78░24.1░25.1░1.79░1.81░1.82░26.1░1.83░1.84░1.85░1.86░1.87░1.121░1.88░1.89░1.91░1.92░1.93░1.94░1.95░27.1░1.181░1.99░28.1░28.1a(x29)░1.101░1.102░1.103░1.104░1.105░30.1░1.106░1.107░31.1░32.1░33.1░1.113░34.1░34.1a(x35)░1.108░1.109░1.111░1.112░1.114░36.1░1.115░37.1░1.116░1.117░1.118░1.119░1.20b░1.123░1.124░38.1░39.1░40.1░1.125░1.126░1.127░1.126a░41.1░1.129░1.131░1.132░42.1░1.134░1.135░43.1░1.136░44.1░1.138░1.137░1.139░1.142░1.143░1.144░1.145░1.146░45.1░1.147░1.148░1.149░1.152░46.1░37.2░1.153░47.1░48.1░49.1░50.1░1.154░1.155░1.156░1.157░51.1░1.158░1.159░1.161░1.163░1.162░1.164░1.165░1.166░1.167░1.35a░1.168░1.169░1.171░1.172░1.11a░1.174░1.175░1.176░1.177░1.178░23.2░1.182░1.183░1.184░1.185░1.186░52.1░1.187░1.188░53.1░54.1▓▓0▓0▓0▓0▓0▓False▓▓0▓0▓0▓0▓0▓False▓▓0▓0▓0▓0▓0▓False▓▓0▓0▓0▓0▓0▓False
B9: 3 | C9: 4 | D9: Triangle | E9: Triangle | H9: Bottom Left | J9: Workbook Settings 2 | K9: ricCells" serializeAs="String"> <value>False</value> </setting> <setting name="FilteredAlpha" serializeAs="String"> <value>0</value> </setting> </DynamicFiltersUserSettings> <LayoutUserSettings> <setting name="Layout" serializeAs="String"> <value>Sugiyama</value> </setting> <setting name="LayoutStyle" serializeAs="String"> <value>UseGroups</value> </setting> <setting name="GroupRectanglePenWidth" serializeAs="String"> <value>1</value> </setting> <setting name="FruchtermanReingoldC" serializeAs="String"> <value>3</value> </setting> <setting name="IntergroupEdgeStyle" serializeAs="String"> <value>Show</value> </setting> <setting name="ImproveLayoutOfGroups" serializeAs="String"> <value>False</value> </setting> <setting name="Margin" serializeAs="String"> <value>8</value> </setting> <setting name="FruchtermanReingoldIterations" serializeAs="String"> <value>10</value> </setting> </LayoutUserSettings> <AutoFillUserSettings3> <setting name="VertexLabelSourceColumnName" serializeAs="String"> <value>Vertex</value> </setting> <setting name="EdgeAlphaSourceColumnName" serializeAs="String"> <value /> </setting> <setting name="GroupLabelSourceColumnName" serializeAs="String"> <value>Group</value> </setting> <setting name="VertexRadiusSourceColumnName" serializeAs="String"> <value /> </setting> <setting name="VertexYSourceColumnName" serializeAs="String"> <value /> </setting> <setting name="VertexXSourceColumnName" serializeAs="String"> <value /> </setting> <setting name="VertexLabelPositionSourceColumnName" serializeAs="String"> <value /> </setting> <setting name="EdgeLabelSourceColumnName" serializeAs="String"> <value>CDRE</value> </setting> <setting name="VertexColorSourceColumnName" serializeAs="String"> <value>Type</value> </setting> <setting name="EdgeVisibilitySourceColumnName" serializeAs="String"> <value /> </setting> <setting name="VertexLayoutOrderSourceColumnName" serializeAs="String"> <value /> </setting> <setting name="VertexToolTipSourceColumnName" serializeAs="String"> <value /> </setting> <setting name="VertexAlphaSourceColumnName" serializeAs="String"> <value /> </setting> <setting name="GroupCollapsedSourceColumnName" serializeAs="String"> <value /> </setting> <setting name="VertexPolarRSourceColumnName" serializeAs="String"> <value /> </setting> <setting name="EdgeWidthSourceColumnName" serializeAs="String"> <value>N</value> </setting> <setting name="VertexShapeSourceColumnName" serializeAs="String"> <value /> </setting> <setting name="EdgeStyleSourceColumnName" serializeAs="String"> <value /> </setting> <setting name="EdgeColorSourceColumnName" serializeAs="String"> <value>S</value> </setting> <setting name="VertexPolarAngleSourceColumnName" serializeAs="String"> <value /> </setting> <setting name="VertexLabelFillColorSourceColumnName" serializeAs="String"> <value /> </setting> <setting name="VertexVisibilitySourceColumnName" serializeAs="String"> <value /> </setting> <setting name="VertexVisibilityDetails" serializeAs="String"> <value>GreaterThan 0 Show if in an Edge Skip</value> </setting> <setting name="VertexYDetails" serializeAs="String"> <value>False False 0 0 0 9999 False False</value> </setting> <setting name="VertexLayoutOrderDetails" serializeAs="String"> <value>False False 0 0 1 9999 False False</value> </setting> <setting name="EdgeStyleDetails" serializeAs="String"> <value>GreaterThan 0 Solid Dash</value> </setting> <setting name="VertexColorDetails" serializeAs="String"> <value>False False 0 10 241, 137, 4 46, 7, 195 False False False</value> </setting> <setting name="EdgeAlphaDetails" serializeAs="String"> <value>False False 0 0 10 100 False False</value> </setting> <setting name="VertexLabelPositionDetails" serializeAs="String"> <value>GreaterThan 0 Bottom Center Nowhere</value> </setting> <setting name="VertexPolarAngleDetails" serializeAs="String"> <value>False False 0 0 0 359 False False</value> </setting> <setting name="VertexAlphaDetails" serializeAs="String"> <value>False False 0 100 10 100 False False</value> </setting> <setting name="EdgeWidthDetails" serializeAs="String"> <value>True False 0 0 1 2 False False</value> </setting> <setting name="GroupCollapsedDetails" serializeAs="String"> <value>GreaterThan 0 Yes No</value> </setting> <setting name="VertexRadiusDetails" serializeAs="String"> <value>False False 1 10 1.5 10 False False</value> </setting> <setting name="VertexShapeDetails" serializeAs="String"> <value>GreaterThan 0 Label Disk</value> </setting> <setting name="VertexXDetails" serializeAs="String"> <value>False False 0 0 0 9999 False False</value> </setting> <setting name="EdgeColorDetails" serializeAs="String"> <value>True True 0 1 64, 0, 64 128, 255, 0 False False True</value> </setting> <setting name="VertexLabelFillColorDetails" serializeAs="String"> <value>False False 0 10 241, 137, 4 46, 7, 195 False False True</value> </setting> <settin
B10: 4 | D10: Solid Triangle | E10: Solid Triangle | H10: Bottom Center | J10: Workbook Settings 3 | K10: g name="EdgeVisibilityDetails" serializeAs="String"> <value>GreaterThan 0 Show Skip</value> </setting> <setting name="VertexPolarRDetails" serializeAs="String"> <value>False False 0 0 0 1 False False</value> </setting> <setting name="GroupLabelDetails" serializeAs="String"> <value>False</value> </setting> </AutoFillUserSettings3> <GeneralUserSettings4> <setting name="ReadEdgeLabels" serializeAs="String"> <value>True</value> </setting> <setting name="ShowGraphLegend" serializeAs="String"> <value>False</value> </setting> <setting name="ShowGraphAxes" serializeAs="String"> <value>False</value> </setting> <setting name="ReadVertexLabels" serializeAs="String"> <value>True</value> </setting> <setting name="ReadGroupLabels" serializeAs="String"> <value>True</value> </setting> <setting name="NewWorkbookGraphDirectedness" serializeAs="String"> <value>Directed</value> </setting> <setting name="BackColor" serializeAs="String"> <value>White</value> </setting> <setting name="BackgroundImageUri" serializeAs="String"> <value /> </setting> <setting name="AutoReadWorkbook" serializeAs="String"> <value>True</value> </setting> <setting name="SelectedEdgeColor" serializeAs="String"> <value>Red</value> </setting> <setting name="VertexAlpha" serializeAs="String"> <value>100</value> </setting> <setting name="AxisFont" serializeAs="String"> <value>Microsoft Sans Serif, 8.25pt</value> </setting> <setting name="EdgeBezierDisplacementFactor" serializeAs="String"> <value>0.2</value> </setting> <setting name="VertexRadius" serializeAs="String"> <value>1.5</value> </setting> <setting name="VertexRelativeOuterGlowSize" serializeAs="String"> <value>3</value> </setting> <setting name="AutoSelect" serializeAs="String"> <value>True</value> </setting> <setting name="EdgeCurveStyle" serializeAs="String"> <value>Straight</value> </setting> <setting name="VertexEffect" serializeAs="String"> <value>None</value> </setting> <setting name="LabelUserSettings" serializeAs="String"> <value>Garamond, 9.75pt White BottomCenter 2147483647 2147483647 Black True 200 Black 86 MiddleCenter</value> </setting> <setting name="EdgeBundlerStraightening" serializeAs="String"> <value>0.15</value> </setting> <setting name="EdgeAlpha" serializeAs="String"> <value>100</value> </setting> <setting name="SelectedVertexColor" serializeAs="String"> <value>Red</value> </setting> <setting name="VertexColor" serializeAs="String"> <value>Black</value> </setting> <setting name="EdgeWidth" serializeAs="String"> <value>1</value> </setting> <setting name="VertexShape" serializeAs="String"> <value>Disk</value> </setting> <setting name="RelativeArrowSize" serializeAs="String"> <value>3</value> </setting> <setting name="VertexImageSize" serializeAs="String"> <value>100</value> </setting> <setting name="EdgeColor" serializeAs="String"> <value>Gray</value> </setting> </GeneralUserSettings4> <GraphZoomAndScaleUserSettings> <setting name="GraphScale" serializeAs="String"> <value>0.48</value> </setting> </GraphZoomAndScaleUserSettings> </userSettings> </configuration>
B11: 5 | D11: Label | E11: 1 | H11: Bottom Right
D12: Image | E12: 2 | H12: 0
D13: 1 | E13: 3 | H13: 1
D14: 2 | E14: 4 | H14: 2
D15: 3 | E15: 5 | H15: 3
D16: 4 | E16: 6 | H16: 4
D17: 5 | E17: 7 | H17: 5
D18: 6 | E18: 8 | H18: 6
D19: 7 | E19: 9 | H19: 7
D20: 8 | H20: 8
D21: 9 | H21: 9
D22: 10
D23: 11
